Service Area,Service Division,Expense Type,Expense Code,Detailed Expense Type,Payment Date,Transaction Number,Amount Exc VAT,Supplier Name
Transformation and Partnerships,Partnerships & Community Engagement Div.,Supplies and Services,338099,Services,02/01/2020,3685269-2419,"3,931.00",ALAN HILLARY EVENTS LTD.
Transformation and Partnerships,Partnerships & Community Engagement Div.,Supplies and Services,338099,Services,02/01/2020,3685269-2420,"1,400.00",ALAN HILLARY EVENTS LTD.
Resources BK0010,Legal & Democratic Services,Supplies and Services,338102,Services,02/01/2020,3685271-006500,"7,100.00",ANALYTICAL SERVICES INTERNATIONAL LTD.
Children and Young Peoples Services,Head of Childrens Social Care,Third Party Payments,425041,Rendered by Voluntary Organisations,02/01/2020,3685272-ARC1920-338,"51,000.00",ARC ADOPTION NORTH EAST.
Children and Young Peoples Services,Head of Childrens Social Care,Third Party Payments,425041,Rendered by Voluntary Organisations,02/01/2020,3685272-ARC1920-345,"31,620.00",ARC ADOPTION NORTH EAST.
Children and Young Peoples Services,Head of Early Help Inclusion & Vulnerable Children.,Third Party Payments,410037,Rendered by Other Local Authorities,02/01/2020,3685277-141009963,"5,851.00",BARNARDO SERVICES LTD.
Children and Young Peoples Services,Head of Early Help Inclusion & Vulnerable Children.,Third Party Payments,410037,Rendered by Other Local Authorities,02/01/2020,3685277-141010069,"5,313.00",BARNARDO SERVICES LTD.
Regeneration and Local Services,Corporate Property and Land,Supplies and Services,338066,Services,02/01/2020,3685282-SIN011988,"180,140.96",BLOOM PROCUREMENT SERVICES LTD (FORMERLY NEPRO LTD).
Regeneration and Local Services,Business Durham CL0850,Supplies and Services,338027,Services,02/01/2020,3685288-J0013,"241,825.81",BUCKINGHAMSHIRE PROPERTIES LTD.
Dedicated Schools Grant BG0015,DSG High Needs Block,Third Party Payments,410037,Rendered by Other Local Authorities,02/01/2020,3685395-1008633,"46,819.00",CARMEL EDUCATION TRUST T/A OUR LADY & ST BEDE CATHOLIC ACADEMY.
Adult and Health Services,Public Health CC0450,Third Party Payments,460803,Contract Payments,02/01/2020,3685292-3910017328,"368,605.00",CO DURHAM & DARLINGTON NHS FOUNDATION TRUST.
Resources BK0010,Legal & Democratic Services,Supplies and Services,338101,Services,02/01/2020,3685292-3910017400,"23,821.56",CO DURHAM & DARLINGTON NHS FOUNDATION TRUST.
Resources BK0010,Legal & Democratic Services,Supplies and Services,338025,Services,02/01/2020,3685293-S44995-01767,"1,620.00",CO-OPERATIVE FUNERAL CARE.
Children and Young Peoples Services,Head of Education and Skills,Supplies and Services,338094,Services,02/01/2020,3685296-212,855.00,CORNERSTONES CENTRE FOR THE COMMUNITY.
Children and Young Peoples Services,Head of Education and Skills,Supplies and Services,384199,Miscellaneous Expenses,02/01/2020,3685297-19/20-152,"6,650.00",CORNFORTH PARTNERSHIP.
Regeneration and Local Services,Environmental Services,Third Party Payments,430101,Rendered by Private Contractors,02/01/2020,3685309-IV1217194,"2,316.77",DIRECT TYRE MANAGEMENT LTD (DTM).
Regeneration and Local Services,Environmental Services,Third Party Payments,430101,Rendered by Private Contractors,02/01/2020,3685309-IV1220133,"1,886.67",DIRECT TYRE MANAGEMENT LTD (DTM).
Transformation and Partnerships,Partnerships & Community Engagement Div.,Supplies and Services,384871,Miscellaneous Expenses,02/01/2020,3685312-TAP-12-2019-003,"10,000.00",DURHAM CITY OF SANCTUARY.
Adult and Health Services,Commissioning inc Supporting People,Supplies and Services,338089,Services,02/01/2020,3685316-5344,"1,125.00",EDGE TRAINING & CONSULTANCY LTD.
Adult and Health Services,Commissioning inc Supporting People,Supplies and Services,338089,Services,02/01/2020,3685316-5345,"1,125.00",EDGE TRAINING & CONSULTANCY LTD.
Adult and Health Services,Head of Adults,Third Party Payments,478151,Purchase of Care,02/01/2020,3685318-K17BPERIOD9,672.32,EMBRACING CARE.
Regeneration and Local Services,Environmental Services,Supplies and Services,384956,Miscellaneous Expenses,02/01/2020,3685319-HOO126036,800.00,ENVIRONMENT AGENCY.
Regeneration and Local Services,Technical Services CM0300,Supplies and Services,304221,Equipment and Materials,02/01/2020,3685321-1912\038,"1,195.34",EPPLETON QUARRY PRODUCTS LTD.
Regeneration and Local Services,Technical Services CM0300,Third Party Payments,430100,Rendered by Private Contractors,02/01/2020,3685322-160377A,"1,540.89",ESH CONSTRUCTION LTD FORMERLY LUMSDEN & CARROLL CONSTRUCTION LTD.
Children and Young Peoples Services,Head of Education and Skills,Supplies and Services,338094,Services,02/01/2020,3685323-0000000143,584.00,EXCEL ACADEMY PARTNERSHIP T/A FRAMWELLGATE SCHOOL DURHAM.
Children and Young Peoples Services,Head of Education and Skills,Supplies and Services,338094,Services,02/01/2020,3685323-0000000149,552.90,EXCEL ACADEMY PARTNERSHIP T/A FRAMWELLGATE SCHOOL DURHAM.
Children and Young Peoples Services,Head of Education and Skills,Third Party Payments,440999,Other third party payments E440,02/01/2020,3685325-7007,"2,901.00",FANE LTD.
Regeneration and Local Services,Transport and Contracted Services,Third Party Payments,430106,Rendered by Private Contractors,02/01/2020,3685327-PUBLICSERVICENOV19,"3,583.60",FERRYHILL VILLAGE TRAVEL.
Adult and Health Services,Commissioning inc Supporting People,Third Party Payments,470103,Purchase of Care,02/01/2020,3685330-HLGVOID15122019,"1,100.19",FOUR SEASONS (NO 9) LTD.
Regeneration and Local Services,Technical Services CM0300,Premises,150015,Apportioned Exps of Operational Blds,02/01/2020,3685334-410078459,"1,150.00",GAP GROUP LTD.
Children and Young Peoples Services,Head of Childrens Social Care,Employees,080025,Agency Staff,02/01/2020,3685337-2434689,"99,377.80",GEOMETRIC RESULTS INTERNATIONAL.
Regeneration and Local Services,Technical Services CM0300,Supplies and Services,304358,Equipment and Materials,02/01/2020,3685338-75935,633.76,GEORGE VARDY HAULAGE.
Regeneration and Local Services,Technical Services CM0300,Supplies and Services,304358,Equipment and Materials,02/01/2020,3685338-75936,633.76,GEORGE VARDY HAULAGE.
Regeneration and Local Services,Technical Services CM0300,Supplies and Services,304358,Equipment and Materials,02/01/2020,3685338-75940,676.00,GEORGE VARDY HAULAGE.
Non-Service Specific,Non Service Specific-Financing,Long Term Debtors,924001,Car loans,02/01/2020,3685341-72006,970.00,GO GATESHEAD LTD.
Regeneration and Local Services,Technical Services CM0300,Stock A926,926900,Stock in hand-Inventory system,02/01/2020,3685348-SI-5735,553.50,HARELAW SAWMILL LTD.
Regeneration and Local Services,Environmental Services,Third Party Payments,430119,Rendered by Private Contractors,02/01/2020,3685349-114077,"17,738.82",HARPERS ENVIRONMENTAL LTD.
Regeneration and Local Services,Transport and Contracted Services,Third Party Payments,430106,Rendered by Private Contractors,02/01/2020,3685351-17052,"3,963.19",HODGSONS COACH OPERATORS LTD.
Children and Young Peoples Services,Head of Education and Skills,Third Party Payments,440999,Other third party payments E440,02/01/2020,3685355-1209,"3,591.34",J & K TRAINING LTD.
Regeneration and Local Services,Corporate Property and Land,Supplies and Services,324117,Provisions E324,02/01/2020,3685356-5419,616.70,J MORAN LTD T/A CAFFE VINCI.
Regeneration and Local Services,Technical Services CM0300,Construction work A908,908105,Construction work,02/01/2020,3685357-23722,651.79,JACK COUPE & SONS LTD T/A COUPE LINE.
Regeneration and Local Services,Technical Services CM0300,Premises,150015,Apportioned Exps of Operational Blds,02/01/2020,3685358-2496328,800.31,JOHN NIXON LTD.
Regeneration and Local Services,Culture Sport and Tourism,Supplies and Services,384237,Miscellaneous Expenses,02/01/2020,3685359-LUMIERE2019,"1,250.00",KAY HENDERSON T/A A & K CRAFTS.
Regeneration and Local Services,Corporate Property and Land,Construction work A908,908105,Construction work,02/01/2020,3685361-10003798,"987,580.57",KIER PROPERTY DEVELOPMENTS LTD.
Adult and Health Services,Head of Adults,Transport,230005,Contract Hire,02/01/2020,3685365-PEACO003-NOV,"1,158.08",LETS TRAVEL.
Children and Young Peoples Services,Head of Education and Skills,Transport,230008,Contract Hire,02/01/2020,3685369-KW998,750.00,MARK O`NEILL T/A KWIK CABS.
Regeneration and Local Services,Environmental Services,Supplies and Services,384073,Miscellaneous Expenses,02/01/2020,3685372-37075,"1,166.67",MAVEN CAPITAL SHD (TRADING) LTD T/A HOTEL INDIGO DURHAM.
Children and Young Peoples Services,Head of Education and Skills,Transport,230008,Contract Hire,02/01/2020,3685373-INV184,"1,014.00",MICHAEL COBB T/A HAIL TAXIS.
Regeneration and Local Services,Technical Services CM0300,Premises,150015,Apportioned Exps of Operational Blds,02/01/2020,3685375-7001466447,745.29,MOBILE MINI UK LTD.
Regeneration and Local Services,Culture Sport and Tourism,Supplies and Services,324001,Provisions E324,02/01/2020,3685376-905600060,564.03,MOLSON COORS BREWING COMPANY (UK) LTD.
Regeneration and Local Services,Culture Sport and Tourism,Supplies and Services,324117,Provisions E324,02/01/2020,3685376-905620276,"1,348.24",MOLSON COORS BREWING COMPANY (UK) LTD.
Children and Young Peoples Services,Head of Education and Skills,Supplies and Services,338027,Services,02/01/2020,3685380-0019,"1,250.00",MRS NATALIE ANNE DALTON (EDUCATIONAL CONSULTANT).
Dedicated Schools Grant BG0015,DSG High Needs Block,Third Party Payments,425005,Rendered by Voluntary Organisations,02/01/2020,3685385-0000050552,"14,040.00",NORTH EAST AUTISM SOCIETY.
Dedicated Schools Grant BG0015,DSG High Needs Block,Third Party Payments,440080,Other third party payments E440,02/01/2020,3685385-0000050559,"14,040.00",NORTH EAST AUTISM SOCIETY.
Non-Service Specific,Insurances,Expenditure 8INSEX,810012,Insurance Expenditure,02/01/2020,3685387-DI20332279,"1,847.75",NORTHERN POWERGRID (NORTHEAST) LTD.
Regeneration and Local Services,Technical Services CM0300,Fees,901004,Capital - Detailed Design,02/01/2020,3685390-22045,"1,314.00",NW SECURITY GROUP LTD.
Regeneration and Local Services,Environmental Services,Transport,215005,Running Costs of Vehicles,02/01/2020,3685391-504682,"4,077.78",OIL NRG LTD.
Regeneration and Local Services,Environmental Services,Transport,215005,Running Costs of Vehicles,02/01/2020,3685391-507614,"15,079.99",OIL NRG LTD.
Regeneration and Local Services,Environmental Services,Transport,215022,Running Costs of Vehicles,02/01/2020,3685391-507618,"1,654.30",OIL NRG LTD.
Regeneration and Local Services,Environmental Services,Transport,215005,Running Costs of Vehicles,02/01/2020,3685391-507621,"4,043.62",OIL NRG LTD.
Regeneration and Local Services,Environmental Services,Transport,215022,Running Costs of Vehicles,02/01/2020,3685391-507622,587.98,OIL NRG LTD.
Regeneration and Local Services,Environmental Services,Transport,215005,Running Costs of Vehicles,02/01/2020,3685391-507623,"2,033.76",OIL NRG LTD.
Regeneration and Local Services,Environmental Services,Transport,215022,Running Costs of Vehicles,02/01/2020,3685391-507624,556.24,OIL NRG LTD.
Regeneration and Local Services,Environmental Services,Transport,215005,Running Costs of Vehicles,02/01/2020,3685391-511729,"15,310.07",OIL NRG LTD.
Regeneration and Local Services,Environmental Services,Transport,215005,Running Costs of Vehicles,02/01/2020,3685391-511748,"4,067.20",OIL NRG LTD.
Regeneration and Local Services,Environmental Services,Transport,215005,Running Costs of Vehicles,02/01/2020,3685391-511754,"2,057.57",OIL NRG LTD.
Children and Young Peoples Services,Head of Education and Skills,Supplies and Services,384199,Miscellaneous Expenses,02/01/2020,3685393-INV-0546,"1,330.00",OPTIMUM SKILLS LTD.
Regeneration and Local Services,Technical Services CM0300,Third Party Payments,430100,Rendered by Private Contractors,02/01/2020,3685405-162938,"3,435.50",PREMIER TRAFFIC MANAGEMENT LTD.
Regeneration and Local Services,Technical Services CM0300,Third Party Payments,430100,Rendered by Private Contractors,02/01/2020,3685405-162939,"16,398.31",PREMIER TRAFFIC MANAGEMENT LTD.
Children and Young Peoples Services,Head of Early Help Inclusion & Vulnerable Children.,Premises,108135,Service Repairs and Maintenance,02/01/2020,3685407-51455534,"1,003.95",PROTOCOL EDUCATION LTD.
Children and Young Peoples Services,Head of Early Help Inclusion & Vulnerable Children.,Premises,108135,Service Repairs and Maintenance,02/01/2020,3685407-51455535,569.20,PROTOCOL EDUCATION LTD.
Children and Young Peoples Services,Head of Early Help Inclusion & Vulnerable Children.,Premises,108135,Service Repairs and Maintenance,02/01/2020,3685407-51458278,"1,003.95",PROTOCOL EDUCATION LTD.
Children and Young Peoples Services,Head of Early Help Inclusion & Vulnerable Children.,Premises,108135,Service Repairs and Maintenance,02/01/2020,3685407-51458279,569.20,PROTOCOL EDUCATION LTD.
Children and Young Peoples Services,Head of Early Help Inclusion & Vulnerable Children.,Premises,108135,Service Repairs and Maintenance,02/01/2020,3685407-51462178,569.20,PROTOCOL EDUCATION LTD.
Children and Young Peoples Services,Head of Early Help Inclusion & Vulnerable Children.,Premises,108135,Service Repairs and Maintenance,02/01/2020,3685407-51462513,698.75,PROTOCOL EDUCATION LTD.
Transformation and Partnerships,Business Support,Supplies and Services,340001,Postages E340,02/01/2020,3685412-9060026099,"1,548.71",ROYAL MAIL GROUP PLC.
Regeneration and Local Services,Corporate Property and Land,Supplies and Services,324117,Provisions E324,02/01/2020,3685415-200028086,572.40,SELECTA UK LTD.
Regeneration and Local Services,Technical Services CM0300,Third Party Payments,430100,Rendered by Private Contractors,02/01/2020,3685416-20620,"62,938.76",SEYMOUR (CIVIL ENGINEERING CONTRACTORS) LTD.
Regeneration and Local Services,Technical Services CM0300,Third Party Payments,430100,Rendered by Private Contractors,02/01/2020,3685416-20692,"53,127.79",SEYMOUR (CIVIL ENGINEERING CONTRACTORS) LTD.
Regeneration and Local Services,Technical Services CM0300,Stock A926,926900,Stock in hand-Inventory system,02/01/2020,3685419-193695,"2,805.84",SNAPFAST.
Regeneration and Local Services,Technical Services CM0300,Stock A926,926900,Stock in hand-Inventory system,02/01/2020,3685420-270243474,595.18,SOVEREIGN CHEMICALS LTD.
Regeneration and Local Services,Environmental Services,Third Party Payments,430100,Rendered by Private Contractors,02/01/2020,3685421-0001412773,"1,673.82",SRCL LTD.
Regeneration and Local Services,Technical Services CM0300,Third Party Payments,430100,Rendered by Private Contractors,02/01/2020,3685422-125689,"2,542.24",STONEGRAVE AGGREGATES LTD.
Regeneration and Local Services,Technical Services CM0300,Third Party Payments,430100,Rendered by Private Contractors,02/01/2020,3685422-125742,"1,434.42",STONEGRAVE AGGREGATES LTD.
Regeneration and Local Services,Culture Sport and Tourism,Supplies and Services,304259,Equipment and Materials,02/01/2020,3685427-103432,529.00,TECHNICAL LAMP SUPPLIES UK LTD.
Regeneration and Local Services,Culture Sport and Tourism,Supplies and Services,304259,Equipment and Materials,02/01/2020,3685427-103646,555.00,TECHNICAL LAMP SUPPLIES UK LTD.
Children and Young Peoples Services,Head of Education and Skills,Supplies and Services,338094,Services,02/01/2020,3685431-6283,"1,127.20",THE DURHAM CENTRE LTD.
Dedicated Schools Grant BG0015,DSG High Needs Block,Third Party Payments,425005,Rendered by Voluntary Organisations,02/01/2020,3685433-A630002185,"2,100.00",THE PRIORY GROUP.
Dedicated Schools Grant BG0015,DSG High Needs Block,Third Party Payments,425005,Rendered by Voluntary Organisations,02/01/2020,3685433-A630002226,"2,887.50",THE PRIORY GROUP.
Regeneration and Local Services,Corporate Property and Land,Third Party Payments,430105,Rendered by Private Contractors,02/01/2020,3685439-8541185894,"1,227.00",VEOLIA ENVIRONMENTAL SERVICES ES (UK) LTD.
Children and Young Peoples Services,Head of Childrens Social Care,Third Party Payments,473101,Purchase of Care,02/01/2020,3685440-VSH0002642,640.00,VOYAGE SPECIALIST HEALTHCARE LTD.
Children and Young Peoples Services,Head of Childrens Social Care,Third Party Payments,473101,Purchase of Care,02/01/2020,3685440-VSH0002748,624.00,VOYAGE SPECIALIST HEALTHCARE LTD.
Children and Young Peoples Services,Head of Childrens Social Care,Third Party Payments,473101,Purchase of Care,02/01/2020,3685440-VSH0002978,688.00,VOYAGE SPECIALIST HEALTHCARE LTD.
Regeneration and Local Services,Corporate Property and Land,Premises,150015,Apportioned Exps of Operational Blds,02/01/2020,3685443-950016,570.57,WERNICK HIRE LTD.
Regeneration and Local Services,Technical Services CM0300,Premises,150015,Apportioned Exps of Operational Blds,02/01/2020,3685443-949920,637.14,WERNICK HIRE LTD.
Regeneration and Local Services,Technical Services CM0300,Premises,150015,Apportioned Exps of Operational Blds,02/01/2020,3685443-949932,598.29,WERNICK HIRE LTD.
Regeneration and Local Services,Technical Services CM0300,Premises,150015,Apportioned Exps of Operational Blds,02/01/2020,3685443-949938,699.30,WERNICK HIRE LTD.
Regeneration and Local Services,Technical Services CM0300,Premises,150015,Apportioned Exps of Operational Blds,02/01/2020,3685443-949941,649.30,WERNICK HIRE LTD.
Regeneration and Local Services,Technical Services CM0300,Premises,150015,Apportioned Exps of Operational Blds,02/01/2020,3685443-949952,"1,230.77",WERNICK HIRE LTD.
Regeneration and Local Services,Corporate Property and Land,Premises,120021,Energy Costs,03/01/2020,3685504-712977767,712.85,BRITISH GAS BUSINESS.
Adult and Health Services,Public Health CC0450,Third Party Payments,460802,Contract Payments,03/01/2020,3685635-IHP-036,"1,120.00",INTRAHEALTH LTD.*
Non-Service Specific,Insurances,Expenditure 8INSEX,810012,Insurance Expenditure,03/01/2020,3685647-G188/003/2019/216,527.00,JONATHAN WALLIS CHARTERED SURVEYOR.
Regeneration and Local Services,Technical Services CM0300,Third Party Payments,430127,Rendered by Private Contractors,03/01/2020,3685650-6271,"6,743.00",JR TIPLADY.
Regeneration and Local Services,Technical Services CM0300,Supplies and Services,304221,Equipment and Materials,03/01/2020,3685666-CINV-077340,"1,124.67",LIMELIGHT SIGNS LTD.
Regeneration and Local Services,Environmental Services,Supplies and Services,384199,Miscellaneous Expenses,03/01/2020,3685717-111,650.00,NICOLA BALFOUR T/A THE BARN AT EASINGTON.
Regeneration and Local Services,Environmental Services,Transport,215022,Running Costs of Vehicles,03/01/2020,3685730-511743,"1,113.07",OIL NRG LTD.
Regeneration and Local Services,Environmental Services,Transport,215022,Running Costs of Vehicles,03/01/2020,3685730-511752,555.09,OIL NRG LTD.
Regeneration and Local Services,Environmental Services,Transport,215022,Running Costs of Vehicles,03/01/2020,3685730-511756,560.14,OIL NRG LTD.
Regeneration and Local Services,Environmental Services,Transport,215005,Running Costs of Vehicles,03/01/2020,3685730-515754,"16,404.23",OIL NRG LTD.
Children and Young Peoples Services,Head of Early Help Inclusion & Vulnerable Children.,Premises,108135,Service Repairs and Maintenance,03/01/2020,3685766-51464032,569.20,PROTOCOL EDUCATION LTD.
Children and Young Peoples Services,Head of Early Help Inclusion & Vulnerable Children.,Premises,108135,Service Repairs and Maintenance,03/01/2020,3685766-51464034,698.75,PROTOCOL EDUCATION LTD.
Children and Young Peoples Services,Head of Education and Skills,Supplies and Services,384199,Miscellaneous Expenses,03/01/2020,3685776-INV-0091,"15,250.00",RAW DIGITAL TRAINING LTD.
Regeneration and Local Services,Culture Sport and Tourism,Supplies and Services,352001,Conference Expenses,03/01/2020,3685789-6057,"1,041.67",RIVERSIDE EVENTS LLP.
Regeneration and Local Services,Transport and Contracted Services,Third Party Payments,430106,Rendered by Private Contractors,03/01/2020,3685804-2988,"7,231.68",SCARLET BAND BUS & COACH LTD.
Regeneration and Local Services,Transport and Contracted Services,Third Party Payments,430106,Rendered by Private Contractors,03/01/2020,3685804-2991,"135,333.62",SCARLET BAND BUS & COACH LTD.
Regeneration and Local Services,Corporate Property and Land,Supplies and Services,304221,Equipment and Materials,03/01/2020,3685836-R050016956,"1,056.85",STANNAH LIFT SERVICE LTD.
Children and Young Peoples Services,Head of Childrens Social Care,Supplies and Services,338045,Services,03/01/2020,3685898-40352,813.50,WRIXON SECURITY SERVICES LTD T/A WRIXON CARE.
Regeneration and Local Services,Culture Sport and Tourism,Supplies and Services,304252,Equipment and Materials,06/01/2020,3685909-90138384,"1,804.42",ABACUS LIGHTING LTD.
Resources BK0010,People & Talent Management,Supplies and Services,352001,Conference Expenses,06/01/2020,3685911-14/8523,"5,160.00",ACAS.
Regeneration and Local Services,Community Protection,Supplies and Services,338027,Services,06/01/2020,3685913-28409992,"1,608.75",AECOM LTD.
Regeneration and Local Services,Development and Housing,Supplies and Services,338027,Services,06/01/2020,3685921-107546,"1,472.67",ANTHESIS UK LTD.
Regeneration and Local Services,Technical Services CM0300,Third Party Payments,460351,Contract Payments,06/01/2020,3685922-0000033195,"1,300.00",AQUAJET DRAIN CLEANING LTD.
Regeneration and Local Services,Technical Services CM0300,Third Party Payments,430100,Rendered by Private Contractors,06/01/2020,3685928-CSUKOU/INV/82779,"13,747.71",BALFOUR BEATTY LIVING PLACES LTD.*
Regeneration and Local Services,Environmental Services,Supplies and Services,304259,Equipment and Materials,06/01/2020,3685929-51992,752.00,BARHALE CONSTRUCTION SERVICES LTD.
Regeneration and Local Services,Corporate Property and Land,Third Party Payments,430100,Rendered by Private Contractors,06/01/2020,150-6554A,"3,066.00",BELL CONTROL SOLUTIONS LTD.
Adult and Health Services,Head of Adults,Supplies and Services,304516,Equipment and Materials,06/01/2020,3685935-INV-307,731.00,BILL SCOTT TAXIS LTD.
Regeneration and Local Services,Culture Sport and Tourism,Supplies and Services,312013,Newspapers books and periodicals E312,06/01/2020,3685937-42878,"1,500.00",BOLINDA DIGITAL LTD.
Regeneration and Local Services,Culture Sport and Tourism,Supplies and Services,384199,Miscellaneous Expenses,06/01/2020,3685938-131219-01,"1,750.00",BOSS EVENT MANAGEMENT.
Resources BK0010,Legal & Democratic Services,Premises,120021,Energy Costs,06/01/2020,3685939-17804,920.45,BRADLEY HALL LTD.
Children and Young Peoples Services,Head of Education and Skills,Third Party Payments,440999,Other third party payments E440,06/01/2020,3685943-DCCALS/BI/0081920,"2,910.19",BUSINESS IMPROVEMENT LTD T/A SKILLS ACADEMY GROUP.
Regeneration and Local Services,Culture Sport and Tourism,Supplies and Services,338047,Services,06/01/2020,3685945-2472,800.00,CAROLINE RYAN T/A HANDS UP.
Children and Young Peoples Services,Head of Education and Skills,Transport,230008,Contract Hire,06/01/2020,3685952-INV-035,"1,200.00",CLARE LYNSEY STEWART T/A K&C TAXIS.
Regeneration and Local Services,Technical Services CM0300,Stock A926,926004,Stock,06/01/2020,3685953-400020940,"7,712.82",CLEVELAND POTASH LTD T/A ICL FERTILIZERS.
Regeneration and Local Services,Technical Services CM0300,Stock A926,926004,Stock,06/01/2020,3685953-400020941,"3,912.99",CLEVELAND POTASH LTD T/A ICL FERTILIZERS.
Regeneration and Local Services,Technical Services CM0300,Stock A926,926004,Stock,06/01/2020,3685953-400020942,"5,246.07",CLEVELAND POTASH LTD T/A ICL FERTILIZERS.
Regeneration and Local Services,Technical Services CM0300,Stock A926,926004,Stock,06/01/2020,3685953-400020943,"8,751.96",CLEVELAND POTASH LTD T/A ICL FERTILIZERS.
Regeneration and Local Services,Technical Services CM0300,Stock A926,926900,Stock in hand-Inventory system,06/01/2020,3685954-620255,"1,744.25",CMT EQUIPMENT LTD.
Adult and Health Services,Public Health CC0450,Third Party Payments,460803,Contract Payments,06/01/2020,3685955-3910017451,"368,605.00",CO DURHAM & DARLINGTON NHS FOUNDATION TRUST.
Regeneration and Local Services,Environmental Services,Third Party Payments,430100,Rendered by Private Contractors,06/01/2020,3685956-JOB001/19855,595.00,COLIN JOBLING T/A RAINBOW INTERNATIONAL.
Regeneration and Local Services,Environmental Services,Cap Exp on Grants & Other Financial Assistance (REFCUS),918501,Exp assets not owned by authority,06/01/2020,3685958-CO558,"8,750.00",CONSERVEFOR.
Regeneration and Local Services,Environmental Services,Cap Exp on Grants & Other Financial Assistance (REFCUS),918501,Exp assets not owned by authority,06/01/2020,3685958-CO559,"2,520.00",CONSERVEFOR.
Regeneration and Local Services,Environmental Services,Cap Exp on Grants & Other Financial Assistance (REFCUS),918501,Exp assets not owned by authority,06/01/2020,3685958-CO560,"5,754.00",CONSERVEFOR.
Resources BK0010,Digital and Customer Services,Supplies and Services,304639,Equipment and Materials,06/01/2020,3685969-7402580595,851.95,DELL COMPUTER CORPORATION LTD.
Regeneration and Local Services,Culture Sport and Tourism,Supplies and Services,384302,Miscellaneous Expenses,06/01/2020,3685973-337215,"2,000.00",DURHAM UNIVERSITY.
Dedicated Schools Grant BG0015,DSG High Needs Block,Third Party Payments,440999,Other third party payments E440,06/01/2020,3685975-0000047274,"25,000.00",EAST DURHAM COLLEGE.
Regeneration and Local Services,Environmental Services,Supplies and Services,304221,Equipment and Materials,06/01/2020,3685977-0000041725,"1,744.55",EAST RIDING HORTICULTURE LTD.
Regeneration and Local Services,Corporate Property and Land,Supplies and Services,304221,Equipment and Materials,06/01/2020,3685978-5514505,645.00,EASTERN SHIRES PURCHASING ORGANISATION.
Regeneration and Local Services,Corporate Property and Land,Supplies and Services,304221,Equipment and Materials,06/01/2020,3685978-5514745,"1,188.00",EASTERN SHIRES PURCHASING ORGANISATION.
Regeneration and Local Services,Environmental Services,Third Party Payments,430120,Rendered by Private Contractors,06/01/2020,3685982-CTIN06591442,"1,235.56",FINNING (UK) LTD.
Regeneration and Local Services,Environmental Services,Third Party Payments,430120,Rendered by Private Contractors,06/01/2020,3685982-CTIN06591443,"8,313.17",FINNING (UK) LTD.
Regeneration and Local Services,Corporate Property and Land,Supplies and Services,304221,Equipment and Materials,06/01/2020,3685983-0002/00022857,964.26,FLAME HEATING SPARES LTD.
Children and Young Peoples Services,Head of Childrens Social Care,Employees,080025,Agency Staff,06/01/2020,3685992-2434870,"44,640.23",GEOMETRIC RESULTS INTERNATIONAL.
Regeneration and Local Services,Culture Sport and Tourism,Premises,145023,Cleaning and Domestic Supplies,06/01/2020,3685995-06/037353,"1,187.12",GREENHAM TRADING LTD.
Regeneration and Local Services,Corporate Property and Land,Supplies and Services,304259,Equipment and Materials,06/01/2020,3685997-INV0177885,"1,780.00",GV MULTIMEDIA LTD.
Resources BK0010,Digital and Customer Services,Supplies and Services,304303,Equipment and Materials,06/01/2020,3685997-INV0177861,"1,032.13",GV MULTIMEDIA LTD.
Regeneration and Local Services,Environmental Services,Third Party Payments,430113,Rendered by Private Contractors,06/01/2020,3686002-W200862,"320,861.54",HW MARTIN HOLDINGS LTD.
Regeneration and Local Services,Technical Services CM0300,Stock A926,926900,Stock in hand-Inventory system,06/01/2020,3686003-136949,"5,691.96",HYDRAM ENGINEERING LTD.
Regeneration and Local Services,Corporate Property and Land,Third Party Payments,430100,Rendered by Private Contractors,06/01/2020,3686004-INV19085,"4,986.98",HYDRATEC LIFT SERVICES LTD.
Resources BK0010,Digital and Customer Services,Supplies and Services,342033,Computers and Communications,06/01/2020,3686006-4650319,785.94,INSIGHT DIRECT (UK) LTD.
Children and Young Peoples Services,Head of Education and Skills,Supplies and Services,324117,Provisions E324,06/01/2020,3686008-6028,788.75,J MORAN LTD T/A CAFFE VINCI.
Regeneration and Local Services,Environmental Services,Supplies and Services,324117,Provisions E324,06/01/2020,3686008-6075,922.80,J MORAN LTD T/A CAFFE VINCI.
Regeneration and Local Services,Technical Services CM0300,Supplies and Services,304221,Equipment and Materials,06/01/2020,3686014-BII308400,"1,120.00",JT DOVE LTD.
Regeneration and Local Services,Technical Services CM0300,Supplies and Services,304221,Equipment and Materials,06/01/2020,3686014-GOI2035/D,800.00,JT DOVE LTD.
Regeneration and Local Services,Corporate Property and Land,Supplies and Services,304221,Equipment and Materials,06/01/2020,3686022-4699119,690.01,LONDON GENERAL SALES LTD.
Regeneration and Local Services,Environmental Services,Construction work A908,908105,Construction work,06/01/2020,3686023-102224,800.00,LUCION ENVIRONMENTAL LLP LTD.
Children and Young Peoples Services,Head of Education and Skills,Supplies and Services,384199,Miscellaneous Expenses,06/01/2020,3686028-INV-2712,"1,375.00",MID NITE EXPRESS.
Children and Young Peoples Services,Head of Education and Skills,Supplies and Services,338027,Services,06/01/2020,3686029-DCC3007,"1,425.00",MIKE REDSHAW EDUCATION CONSULTANT.
Resources BK0010,Legal & Democratic Services,Supplies and Services,338101,Services,06/01/2020,3686040-H0328391,"1,050.00",NEWCASTLE UPON TYNE HOSPITALS NHS FOUNDATION TRUST.
Regeneration and Local Services,Culture Sport and Tourism,Supplies and Services,312013,Newspapers books and periodicals E312,06/01/2020,3686043-9016101542,"2,595.00",NIELSEN BOOK SERVICES LTD.
Regeneration and Local Services,Culture Sport and Tourism,Supplies and Services,312011,Newspapers books and periodicals E312,06/01/2020,3686045-2019/45,678.03,NORTHERN CHILDRENS BOOK FESTIVAL (NCBF).
Regeneration and Local Services,Environmental Services,Transport,215005,Running Costs of Vehicles,06/01/2020,3686047-513159,"18,131.40",OIL NRG LTD.
Regeneration and Local Services,Technical Services CM0300,Stock A926,926900,Stock in hand-Inventory system,06/01/2020,3686050-XL250090,847.19,PARK ELECTRICAL DISTRIBUTORS LTD.
Regeneration and Local Services,Corporate Property and Land,Supplies and Services,304221,Equipment and Materials,06/01/2020,3686054-346570,"1,356.86",PEW ELECTRICAL DISTRIBUTORS LTD.
Regeneration and Local Services,Culture Sport and Tourism,Supplies and Services,372009,Subscriptions E372,06/01/2020,3686059-SIN1323133,950.27,PPL PRS LTD.
Regeneration and Local Services,Technical Services CM0300,Supplies and Services,304221,Equipment and Materials,06/01/2020,3686062-128205,"2,115.12",PROTECTOR SECURITY GROUP LTD.
Children and Young Peoples Services,Head of Education and Skills,Supplies and Services,384199,Miscellaneous Expenses,06/01/2020,3686064-INV-0092,"1,125.00",RAW DIGITAL TRAINING LTD.
Children and Young Peoples Services,Head of Education and Skills,Supplies and Services,384199,Miscellaneous Expenses,06/01/2020,3686064-INV-0093,"6,625.00",RAW DIGITAL TRAINING LTD.
Regeneration and Local Services,Culture Sport and Tourism,Third Party Payments,430131,Rendered by Private Contractors,06/01/2020,3686075-261,528.75,SANDRA WATSON T/A HEART & SOLE FITNESS.
Transformation and Partnerships,Business Support,Supplies and Services,332029,Printing Stationery and Gen Off Exps,06/01/2020,3686080-24898,575.00,SIMPLY STRIPES (THE SIGNMAKERS) LTD.
Regeneration and Local Services,Corporate Property and Land,Supplies and Services,328041,Clothing uniforms and laundry E328,06/01/2020,3686082-0001/10140298,720.00,SMH PRODUCTS LTD.
Regeneration and Local Services,Technical Services CM0300,Stock A926,926900,Stock in hand-Inventory system,06/01/2020,3686083-SI190008112,505.00,SOLON SECURITY LTD.
Children and Young Peoples Services,Head of Education and Skills,Supplies and Services,338027,Services,06/01/2020,3686084-EPINAY-280,"1,596.05",SOUTH TYNESIDE COUNCIL.
Resources BK0010,Digital and Customer Services,Supplies and Services,342033,Computers and Communications,06/01/2020,3686091-132146,819.30,SWITCHSHOP LTD.
Regeneration and Local Services,Technical Services CM0300,Construction work A908,908105,Construction work,06/01/2020,3686092-19002807,"19,744.00",SYSTRA LTD.
Regeneration and Local Services,Technical Services CM0300,Supplies and Services,304221,Equipment and Materials,06/01/2020,3686093-9041259379,616.25,TARMAC TRADING LTD.
Regeneration and Local Services,Technical Services CM0300,Supplies and Services,304221,Equipment and Materials,06/01/2020,3686093-9041265835,622.80,TARMAC TRADING LTD.
Children and Young Peoples Services,Head of Early Help Inclusion & Vulnerable Children.,Supplies and Services,384302,Miscellaneous Expenses,06/01/2020,3686096-0044,760.00,THE RANDOLPH COMMUNITY CENTRE FOUNDATION TRUST.
Children and Young Peoples Services,Head of Education and Skills,Supplies and Services,384199,Miscellaneous Expenses,06/01/2020,3686099-RITHIR/00015538,"7,570.09",THIRTEEN HOUSING GROUP LTD.
Children and Young Peoples Services,Head of Education and Skills,Supplies and Services,384199,Miscellaneous Expenses,06/01/2020,3686099-RITHIR/00015539,"11,456.02",THIRTEEN HOUSING GROUP LTD.
Regeneration and Local Services,Environmental Services,Supplies and Services,304221,Equipment and Materials,06/01/2020,3686100-NSIN00026981,972.97,THOMAS OWEN & SONS (NEWCASTLE) LTD.
Regeneration and Local Services,Corporate Property and Land,Supplies and Services,304221,Equipment and Materials,06/01/2020,3686102-32659,"1,942.50",TOTAL PUMP SOLUTIONS LTD.
Regeneration and Local Services,Technical Services CM0300,Stock A926,926900,Stock in hand-Inventory system,06/01/2020,3686103-102902,"1,344.00",TOTAL RENTAL SOLUTIONS.
Regeneration and Local Services,Technical Services CM0300,Stock A926,926900,Stock in hand-Inventory system,06/01/2020,3686103-102903,"1,125.00",TOTAL RENTAL SOLUTIONS.
Regeneration and Local Services,Technical Services CM0300,Stock A926,926900,Stock in hand-Inventory system,06/01/2020,3686103-102904,"2,852.48",TOTAL RENTAL SOLUTIONS.
Regeneration and Local Services,Technical Services CM0300,Stock A926,926900,Stock in hand-Inventory system,06/01/2020,3686103-102905,"2,469.00",TOTAL RENTAL SOLUTIONS.
Regeneration and Local Services,Technical Services CM0300,Stock A926,926900,Stock in hand-Inventory system,06/01/2020,3686103-102906,971.20,TOTAL RENTAL SOLUTIONS.
Regeneration and Local Services,Environmental Services,Third Party Payments,430100,Rendered by Private Contractors,06/01/2020,3686106-12/12/19,"1,493.50",TREVOR BURN FENCING LTD.
Regeneration and Local Services,Business Durham CL0850,Supplies and Services,338066,Services,06/01/2020,3686109-48275,"4,750.00",UNW LLP.
Regeneration and Local Services,Technical Services CM0300,Third Party Payments,430127,Rendered by Private Contractors,06/01/2020,3686110-47551,"1,981.00",W MARLEY AGRICULTURAL CONTRACTORS LTD.
Regeneration and Local Services,Environmental Services,Supplies and Services,304252,Equipment and Materials,06/01/2020,3686114-19-0879,624.00,WM O SILMON LTD.
Children and Young Peoples Services,Head of Childrens Social Care,Supplies and Services,338045,Services,06/01/2020,3686117-40446,"1,553.59",WRIXON SECURITY SERVICES LTD T/A WRIXON CARE.
Regeneration and Local Services,Technical Services CM0300,Supplies and Services,338027,Services,06/01/2020,3686118-64434956,"3,140.00",WSP UK LTD.
Resources BK0010,Digital and Customer Services,Supplies and Services,342033,Computers and Communications,06/01/2020,3686119-KV46554,"2,524.70",XMA LTD.
Resources BK0010,Finance & Transactional Services,Intangible Assets,917003,Software capitalised implementation fees,06/01/2020,3686121-IN0048362,"15,262.50",ZELLIS UK LTD.
Regeneration and Local Services,Business Durham CL0850,Supplies and Services,384199,Miscellaneous Expenses,07/01/2020,3686877-ACE/SALVUS2019006,833.40,ACE MOTORCYCLE TRAINING (NE) LTD.
Children and Young Peoples Services,Head of Education and Skills,Transport,230008,Contract Hire,07/01/2020,3686880-18/19A,988.00,ADVANCE TRAVEL.
Adult and Health Services,Commissioning inc Supporting People,Third Party Payments,479102,Purchase of Care,07/01/2020,3686882-0000000561,"17,500.00",AGE UK COUNTY DURHAM.
Adult and Health Services,Commissioning inc Supporting People,Third Party Payments,479102,Purchase of Care,07/01/2020,3686882-0000000562,"42,500.00",AGE UK COUNTY DURHAM.
Regeneration and Local Services,Community Protection,Supplies and Services,304999,Equipment and Materials,07/01/2020,3686883-10392,960.00,AIR MONITORS LTD.
Regeneration and Local Services,Environmental Services,Third Party Payments,430100,Rendered by Private Contractors,07/01/2020,3686893-INV-3338,"1,969.94",ANNFIELD AUTO SERVICES.
Regeneration and Local Services,Environmental Services,Third Party Payments,430100,Rendered by Private Contractors,07/01/2020,3686893-INV-3349,611.50,ANNFIELD AUTO SERVICES.
Regeneration and Local Services,Environmental Services,Third Party Payments,430100,Rendered by Private Contractors,07/01/2020,3686893-INV-3352,"1,094.70",ANNFIELD AUTO SERVICES.
Regeneration and Local Services,Environmental Services,Third Party Payments,430100,Rendered by Private Contractors,07/01/2020,3686893-INV-3367,753.73,ANNFIELD AUTO SERVICES.
Adult and Health Services,Commissioning inc Supporting People,Third Party Payments,479111,Purchase of Care,07/01/2020,3686895-INV-9515,"6,400.00",APM CLEANING LTD.
Regeneration and Local Services,Corporate Property and Land,Supplies and Services,338066,Services,07/01/2020,3686896-1920/2104,"1,020.00",APSE.
Regeneration and Local Services,Corporate Property and Land,Premises,108099,Service Repairs and Maintenance,07/01/2020,3686897-33433,595.00,AQUAJET DRAIN CLEANING LTD.
Children and Young Peoples Services,Head of Education and Skills,Supplies and Services,338035,Services,07/01/2020,3686900-68516,670.00,ASCENTIS.
Regeneration and Local Services,Corporate Property and Land,Third Party Payments,430100,Rendered by Private Contractors,07/01/2020,3686901-14939,"2,110.00",ASTRAL CONTROL SERVICES LTD.
Children and Young Peoples Services,Head of Education and Skills,Fees,901002,Consultants fees 901002,07/01/2020,3686903-19056119,"1,000.00",ATKINS GLOBAL.
Regeneration and Local Services,Corporate Property and Land,Supplies and Services,304221,Equipment and Materials,07/01/2020,3686906-267542,"1,809.95",AVIRE LTD.
Children and Young Peoples Services,Head of Early Help Inclusion & Vulnerable Children.,Supplies and Services,308013,Furniture,07/01/2020,3686909-93515,"1,096.20",BAILEYS BLINDS LTD.
Children and Young Peoples Services,Head of Childrens Social Care,Supplies and Services,338045,Services,07/01/2020,3686910-241001873,"2,750.00",BARNARDO SERVICES LTD.
Children and Young Peoples Services,Head of Early Help Inclusion & Vulnerable Children.,Supplies and Services,304259,Equipment and Materials,07/01/2020,3686911-7811,707.20,BARRONS CONTRACTS.
Regeneration and Local Services,Environmental Services,Transport,210057,Repair and Maintenance of Vehicles,07/01/2020,3686915-35174570,930.47,BELL TRUCK SALES LTD T/A BELL TRUCK & VAN.
Regeneration and Local Services,Environmental Services,Transport,210057,Repair and Maintenance of Vehicles,07/01/2020,3686915-35174703,733.55,BELL TRUCK SALES LTD T/A BELL TRUCK & VAN.
Regeneration and Local Services,Environmental Services,Transport,210057,Repair and Maintenance of Vehicles,07/01/2020,3686915-35174871,784.52,BELL TRUCK SALES LTD T/A BELL TRUCK & VAN.
Regeneration and Local Services,Environmental Services,Transport,210057,Repair and Maintenance of Vehicles,07/01/2020,3686915-35174899,636.74,BELL TRUCK SALES LTD T/A BELL TRUCK & VAN.
Regeneration and Local Services,Environmental Services,Transport,210057,Repair and Maintenance of Vehicles,07/01/2020,3686915-35175320,757.83,BELL TRUCK SALES LTD T/A BELL TRUCK & VAN.
Regeneration and Local Services,Environmental Services,Transport,210057,Repair and Maintenance of Vehicles,07/01/2020,3686915-35175372,729.00,BELL TRUCK SALES LTD T/A BELL TRUCK & VAN.
Regeneration and Local Services,Environmental Services,Transport,210057,Repair and Maintenance of Vehicles,07/01/2020,3686915-35175389,"1,592.60",BELL TRUCK SALES LTD T/A BELL TRUCK & VAN.
Transformation and Partnerships,Communications Management,Supplies and Services,336005,Advertising E336,07/01/2020,3686919-14226,"3,780.00",BEYOND DIGITAL SOLUTIONS LTD.
Adult and Health Services,Public Health CC0450,Third Party Payments,460803,Contract Payments,07/01/2020,3686924-2663,675.00,BIONICAL SOLUTIONS LTD.
Transformation and Partnerships,Business Support,Supplies and Services,332029,Printing Stationery and Gen Off Exps,07/01/2020,3686931-13605,870.00,BORDER SIGNS & GRAPHICS.
Regeneration and Local Services,Culture Sport and Tourism,Intangible Assets,917003,Software capitalised implementation fees,07/01/2020,3686934-9457,"5,600.00",BRAMBLE HUB LTD.
Regeneration and Local Services,Environmental Services,Supplies and Services,304221,Equipment and Materials,07/01/2020,3686935-200148,"6,054.00",BRAMBLEDOWN LANDSCAPE SERVICES LTD.
Regeneration and Local Services,Culture Sport and Tourism,Premises,145023,Cleaning and Domestic Supplies,07/01/2020,3686937-22SI2255520,728.10,BRENNTAG UK LTD.
Regeneration and Local Services,Technical Services CM0300,Third Party Payments,430100,Rendered by Private Contractors,07/01/2020,3686938-45997,"1,177.00",BRIDGEWAY CONSULTING LTD.
Regeneration and Local Services,Environmental Services,Transport,210057,Repair and Maintenance of Vehicles,07/01/2020,3686939-7323436,569.75,BRISTOL STREET MOTORS.
Adult and Health Services,Public Health CC0450,Supplies and Services,344038,Telephones,07/01/2020,3686943-0790292521,580.80,BT GLOBAL SERVICES.
Regeneration and Local Services,Transport and Contracted Services,Construction work A908,908105,Construction work,07/01/2020,3686944-26384,"2,733.48",BUS SHELTERS LTD.
Regeneration and Local Services,Transport and Contracted Services,Construction work A908,908105,Construction work,07/01/2020,3686944-26391,"2,578.01",BUS SHELTERS LTD.
Regeneration and Local Services,Technical Services CM0300,Supplies and Services,338044,Services,07/01/2020,3686946-6017122686,"1,507.79",CAPITA PROPERTY & INFRASTRUCTURE LTD.
Adult and Health Services,Head of Adults,Supplies and Services,338366,Services,07/01/2020,3686947-64482,"1,507.00",CARE ABILITY HEALTHCARE LTD.
Resources BK0010,Digital and Customer Services,Supplies and Services,342033,Computers and Communications,07/01/2020,3686953-INVUK4355,"13,500.00",CELLEBRITE UK LTD.
Regeneration and Local Services,Corporate Property and Land,Supplies and Services,304221,Equipment and Materials,07/01/2020,3686954-5689,"10,370.00",CENTURY FABRICATIONS LTD.
Regeneration and Local Services,Culture Sport and Tourism,Premises,120037,Energy Costs,07/01/2020,3686956-3437944,"1,441.77",CERTAS ENERGY UK LTD.
Regeneration and Local Services,Transport and Contracted Services,Supplies and Services,372009,Subscriptions E372,07/01/2020,3686959-5411,"3,715.00",CHARGE YOUR CAR LTD.
Regeneration and Local Services,Environmental Services,Transport,210057,Repair and Maintenance of Vehicles,07/01/2020,3686964-3437348202DEBIT,780.17,CHEMETALL LTD.
Children and Young Peoples Services,Childrens Services Operational Support,Supplies and Services,338026,Services,07/01/2020,3686966-ED401,626.50,CHOICES & VOICES CARE LTD.
Resources BK0010,Finance & Transactional Services,Supplies and Services,338066,Services,07/01/2020,3686972-C/BN189075,"6,817.90",CIVICA UK LTD.
Resources BK0010,Finance & Transactional Services,Supplies and Services,342051,Computers and Communications,07/01/2020,3686972-C/RB189534,"3,692.89",CIVICA UK LTD.
Regeneration and Local Services,Technical Services CM0300,Stock A926,926004,Stock,07/01/2020,3686974-400020972,671.37,CLEVELAND POTASH LTD T/A ICL FERTILIZERS.
Regeneration and Local Services,Technical Services CM0300,Stock A926,926004,Stock,07/01/2020,3686974-400020973,"9,045.90",CLEVELAND POTASH LTD T/A ICL FERTILIZERS.
Regeneration and Local Services,Technical Services CM0300,Stock A926,926900,Stock in hand-Inventory system,07/01/2020,3686976-621244,505.20,CMT EQUIPMENT LTD.
Adult and Health Services,Public Health CC0450,Third Party Payments,460803,Contract Payments,07/01/2020,3686978-3910017452,"198,711.00",CO DURHAM & DARLINGTON NHS FOUNDATION TRUST.
Regeneration and Local Services,Culture Sport and Tourism,Third Party Payments,430100,Rendered by Private Contractors,07/01/2020,3686981-INV03988,772.20,COMPETITION LINE UK LTD T/A LIFESTYLE FITNESS.
Regeneration and Local Services,Culture Sport and Tourism,Third Party Payments,430100,Rendered by Private Contractors,07/01/2020,3686981-INV04419,798.85,COMPETITION LINE UK LTD T/A LIFESTYLE FITNESS.
Resources BK0010,Corporate Finance & Commercial Services,Third Party Payments,479112,Purchase of Care,07/01/2020,3686983-69929,"1,718.75",CONNECT HEALTH LTD.
Resources BK0010,Corporate Finance & Commercial Services,Third Party Payments,479112,Purchase of Care,07/01/2020,3686983-69930,"1,833.13",CONNECT HEALTH LTD.
Regeneration and Local Services,Business Durham CL0850,Premises,120021,Energy Costs,07/01/2020,3686988-14774897,"1,007.67",CORONA ENERGY RETAIL 2 LTD.
Regeneration and Local Services,Business Durham CL0850,Premises,120021,Energy Costs,07/01/2020,3686988-14775043,984.41,CORONA ENERGY RETAIL 2 LTD.
Resources BK0010,Legal & Democratic Services,Supplies and Services,338099,Services,07/01/2020,3686994-NECP20199,750.00,CRYSTALLISED LTD.
Regeneration and Local Services,Technical Services CM0300,Third Party Payments,430127,Rendered by Private Contractors,07/01/2020,3686998-034,"1,304.00",D & L HOPPS.
Regeneration and Local Services,Technical Services CM0300,Third Party Payments,430127,Rendered by Private Contractors,07/01/2020,3686998-035,"3,118.00",D & L HOPPS.
Regeneration and Local Services,Environmental Services,Third Party Payments,430100,Rendered by Private Contractors,07/01/2020,3687000-1932,"4,297.00",DAVE BLACK CONSTRUCTION LTD.
Children and Young Peoples Services,Head of Education and Skills,Supplies and Services,338027,Services,07/01/2020,3687002-3,750.00,DAVID FIRTH T/A BARDON MILL EDUCATIONAL CONSULTANTS.
Resources BK0010,Digital and Customer Services,Supplies and Services,342033,Computers and Communications,07/01/2020,3687005-7402578009,"1,690.71",DELL COMPUTER CORPORATION LTD.
Resources BK0010,Digital and Customer Services,Vehicles Equipment Furniture and Fittings,912701,Computer equipment,07/01/2020,3687005-7402580236,"1,186.01",DELL COMPUTER CORPORATION LTD.
Resources BK0010,Digital and Customer Services,Vehicles Equipment Furniture and Fittings,912701,Computer equipment,07/01/2020,3687005-7402581283,"5,463.20",DELL COMPUTER CORPORATION LTD.
Resources BK0010,Digital and Customer Services,Supplies and Services,342033,Computers and Communications,07/01/2020,3687005-7402581354,"15,440.10",DELL COMPUTER CORPORATION LTD.
Resources BK0010,Digital and Customer Services,Supplies and Services,342033,Computers and Communications,07/01/2020,3687005-7402581814,"2,553.60",DELL COMPUTER CORPORATION LTD.
Regeneration and Local Services,Environmental Services,Transport,210057,Repair and Maintenance of Vehicles,07/01/2020,3687007-96382011,514.81,DENNIS EAGLE LTD T/A TERBERG MATEC (UK) LTD.
Regeneration and Local Services,Environmental Services,Transport,210057,Repair and Maintenance of Vehicles,07/01/2020,3687007-96382076,"1,821.75",DENNIS EAGLE LTD T/A TERBERG MATEC (UK) LTD.
Regeneration and Local Services,Environmental Services,Third Party Payments,430100,Rendered by Private Contractors,07/01/2020,3687008-364633,"2,663.08",DENNIS EAGLE LTD.
Regeneration and Local Services,Environmental Services,Third Party Payments,430101,Rendered by Private Contractors,07/01/2020,3687010-IV1223294,884.81,DIRECT TYRE MANAGEMENT LTD (DTM).
Children and Young Peoples Services,Head of Childrens Social Care,Supplies and Services,338044,Services,07/01/2020,3687011-18310,977.97,DR HELEN YOUNG.
Transformation and Partnerships,Partnerships & Community Engagement Div.,Cap Exp on Grants & Other Financial Assistance (REFCUS),918004,Contributions to other bodies 918004,07/01/2020,3687019-VOUCHER19NB-CHES033,"3,251.70",EDMONDSLEY PARISH COUNCIL.
Regeneration and Local Services,Corporate Property and Land,Supplies and Services,304221,Equipment and Materials,07/01/2020,3687020-059-255559,"1,157.54",EDMUNDSON ELECTRICAL LTD.
Regeneration and Local Services,Corporate Property and Land,Supplies and Services,304221,Equipment and Materials,07/01/2020,3687020-059-257267,"1,949.96",EDMUNDSON ELECTRICAL LTD.
Regeneration and Local Services,Corporate Property and Land,Supplies and Services,304221,Equipment and Materials,07/01/2020,3687020-059-257300,555.17,EDMUNDSON ELECTRICAL LTD.
Dedicated Schools Grant BG0015,DSG High Needs Block,Supplies and Services,384199,Miscellaneous Expenses,07/01/2020,3687025-11,"2,125.00",EMILY BACKES T/A TALKINDALES.
Regeneration and Local Services,Environmental Services,Transport,230005,Contract Hire,07/01/2020,3687028-8155057,517.50,ENTERPRISE FLEX-E-RENT T/A BURNT TREE GROUP LTD.
Regeneration and Local Services,Environmental Services,Transport,230005,Contract Hire,07/01/2020,3687028-8155678,534.75,ENTERPRISE FLEX-E-RENT T/A BURNT TREE GROUP LTD.
Regeneration and Local Services,Environmental Services,Transport,230005,Contract Hire,07/01/2020,3687028-8155713,681.30,ENTERPRISE FLEX-E-RENT T/A BURNT TREE GROUP LTD.
Regeneration and Local Services,Technical Services CM0300,Stock A926,926900,Stock in hand-Inventory system,07/01/2020,3687034-131247,"2,727.50",FABRIKAT (NOTTINGHAM) LTD.
Children and Young Peoples Services,Head of Education and Skills,Fees,901002,Consultants fees 901002,07/01/2020,3687035-19057059,"5,000.00",FAITHFUL & GOULD LTD.
Regeneration and Local Services,Corporate Property and Land,Supplies and Services,304221,Equipment and Materials,07/01/2020,3687041-0002/00023070,"1,365.46",FLAME HEATING SPARES LTD.
Regeneration and Local Services,Community Protection,Supplies and Services,338045,Services,07/01/2020,3687043-110116-171219,"1,490.00",FOUNTAIN CHAMBERS.
Regeneration and Local Services,Corporate Property and Land,Supplies and Services,304221,Equipment and Materials,07/01/2020,3687045-SI13264263,574.14,FRED WILLIAMSON & SONS LTD.*
Regeneration and Local Services,Corporate Property and Land,Third Party Payments,430100,Rendered by Private Contractors,07/01/2020,3687048-11222,931.00,FROSTREE LTD.
Regeneration and Local Services,Corporate Property and Land,Third Party Payments,430100,Rendered by Private Contractors,07/01/2020,3687056-AP22598,"4,994.52",GEOFFREY ROBINSON LTD.
Regeneration and Local Services,Technical Services CM0300,Supplies and Services,304221,Equipment and Materials,07/01/2020,3687058-SI789665,"1,036.45",GLASDON UK LTD.
Regeneration and Local Services,Culture Sport and Tourism,Supplies and Services,384199,Miscellaneous Expenses,07/01/2020,3687059-617,920.00,GLASPER TUNSTALL STONE MASONRY LTD.
Regeneration and Local Services,Corporate Property and Land,Supplies and Services,304221,Equipment and Materials,07/01/2020,3687061-196999,"10,730.00",GLOBAL LIFT EQUIPMENT LTD.
Resources BK0010,Finance & Transactional Services,Supplies and Services,338045,Services,07/01/2020,3687068-711856,"2,475.00",GREENHALGH KERR.
Resources BK0010,Finance & Transactional Services,Supplies and Services,338045,Services,07/01/2020,3687068-711857,"1,401.60",GREENHALGH KERR.
Children and Young Peoples Services,Head of Education and Skills,Supplies and Services,384199,Miscellaneous Expenses,07/01/2020,3687074-0000013594,"2,453.70",GROUNDWORK NORTH EAST.
Children and Young Peoples Services,Head of Education and Skills,Supplies and Services,384199,Miscellaneous Expenses,07/01/2020,3687074-0000013596,"3,435.18",GROUNDWORK NORTH EAST.
Resources BK0010,Digital and Customer Services,Stock A926,926900,Stock in hand-Inventory system,07/01/2020,3687077-INV0177907,905.40,GV MULTIMEDIA LTD.
Dedicated Schools Grant BG0015,DSG High Needs Block,Supplies and Services,352001,Conference Expenses,07/01/2020,3687079-170,700.00,HALO PROJECT.
Regeneration and Local Services,Corporate Property and Land,Supplies and Services,304221,Equipment and Materials,07/01/2020,3687085-4657105,"4,301.60",HEADLAM (FLOORCOVERING DISTRIBUTORS) LTD.
Regeneration and Local Services,Technical Services CM0300,Third Party Payments,430101,Rendered by Private Contractors,07/01/2020,3687090-3033,"2,500.00",HIGHWAY CONSTRUCTION SERVICES LTD.
Regeneration and Local Services,Technical Services CM0300,Third Party Payments,430100,Rendered by Private Contractors,07/01/2020,3687090-3036,"6,130.91",HIGHWAY CONSTRUCTION SERVICES LTD.
Regeneration and Local Services,Technical Services CM0300,Third Party Payments,430101,Rendered by Private Contractors,07/01/2020,3687090-3039,"2,500.00",HIGHWAY CONSTRUCTION SERVICES LTD.
Regeneration and Local Services,Development and Housing,Supplies and Services,384999,Miscellaneous Expenses,07/01/2020,3687095-4100680426,700.00,HOMES OR HOUSES LTD.
Children and Young Peoples Services,Head of Childrens Social Care,Premises,106082,Centrally Controlled Rep and Maint,07/01/2020,3687096-7080800396,598.87,HONEYWELL NOVAR SYSTEMS LTD.
Children and Young Peoples Services,Head of Childrens Social Care,Premises,106082,Centrally Controlled Rep and Maint,07/01/2020,3687096-7080800433,611.50,HONEYWELL NOVAR SYSTEMS LTD.
Regeneration and Local Services,Corporate Property and Land,Supplies and Services,304221,Equipment and Materials,07/01/2020,3687100-A38/0114103,"1,188.30",HOWDENS JOINERY LTD.
Children and Young Peoples Services,Head of Early Help Inclusion & Vulnerable Children.,Supplies and Services,304335,Equipment and Materials,07/01/2020,3687101-32809,"1,250.00",HPC LASER LTD.
Regeneration and Local Services,Culture Sport and Tourism,Premises,106082,Centrally Controlled Rep and Maint,07/01/2020,3687104-4014-01,"2,400.00",HVAC COMMISSIONING SERVICES LTD.
Regeneration and Local Services,Development and Housing,Supplies and Services,342051,Computers and Communications,07/01/2020,3687107-7027771,"7,410.00",IDOX SOFTWARE LTD.
Resources BK0010,Digital and Customer Services,Supplies and Services,304303,Equipment and Materials,07/01/2020,3687109-SI-010560,"5,103.00",INFORMATION & DATA NETWORK SUPPLIES LTD (IDN).
Regeneration and Local Services,Corporate Property and Land,Third Party Payments,430100,Rendered by Private Contractors,07/01/2020,3687110-8262,885.00,INGLEFORD SCAFFOLDING LTD.
Regeneration and Local Services,Corporate Property and Land,Third Party Payments,430100,Rendered by Private Contractors,07/01/2020,3687110-8609,"1,331.40",INGLEFORD SCAFFOLDING LTD.
Regeneration and Local Services,Corporate Property and Land,Third Party Payments,430100,Rendered by Private Contractors,07/01/2020,3687110-8613,665.25,INGLEFORD SCAFFOLDING LTD.
Resources BK0010,Digital and Customer Services,Supplies and Services,304303,Equipment and Materials,07/01/2020,3687112-4653999,831.57,INSIGHT DIRECT (UK) LTD.
Resources BK0010,Digital and Customer Services,Supplies and Services,304639,Equipment and Materials,07/01/2020,3687112-4656114,786.06,INSIGHT DIRECT (UK) LTD.
Resources BK0010,Digital and Customer Services,Stock A926,926900,Stock in hand-Inventory system,07/01/2020,3687112-4659177,"2,050.00",INSIGHT DIRECT (UK) LTD.
Resources BK0010,Digital and Customer Services,Stock A926,926900,Stock in hand-Inventory system,07/01/2020,3687112-4659200,"1,640.00",INSIGHT DIRECT (UK) LTD.
Resources BK0010,Digital and Customer Services,Supplies and Services,304639,Equipment and Materials,07/01/2020,3687112-4661558,"1,165.59",INSIGHT DIRECT (UK) LTD.
Regeneration and Local Services,Technical Services CM0300,Supplies and Services,304221,Equipment and Materials,07/01/2020,3687113-715296,507.00,INSTARMAC GROUP PLC.
Regeneration and Local Services,Technical Services CM0300,Stock A926,926900,Stock in hand-Inventory system,07/01/2020,3687113-715422,"2,212.00",INSTARMAC GROUP PLC.
Regeneration and Local Services,Technical Services CM0300,Third Party Payments,430128,Rendered by Private Contractors,07/01/2020,3687117-1406/2019,"1,480.00",J & JG GILL & SONS LTD.
Regeneration and Local Services,Technical Services CM0300,Construction work A908,908105,Construction work,07/01/2020,3687120-23711,679.50,JACK COUPE & SONS LTD T/A COUPE LINE.
Regeneration and Local Services,Technical Services CM0300,Third Party Payments,430100,Rendered by Private Contractors,07/01/2020,3687120-23751,"2,679.51",JACK COUPE & SONS LTD T/A COUPE LINE.
Children and Young Peoples Services,Head of Early Help Inclusion & Vulnerable Children.,Supplies and Services,304259,Equipment and Materials,07/01/2020,3687122-35612,"1,065.23",JAMES FLETCHER LTD T/A JAMES FLETCHER MARQUEES.
Dedicated Schools Grant BG0015,DSG High Needs Block,Supplies and Services,304259,Equipment and Materials,07/01/2020,3687127-222960,"2,558.00",JENX LTD.
Regeneration and Local Services,Corporate Property and Land,Supplies and Services,304221,Equipment and Materials,07/01/2020,3687134-BII308613,644.73,JT DOVE LTD.
Regeneration and Local Services,Corporate Property and Land,Supplies and Services,304221,Equipment and Materials,07/01/2020,3687134-PHBI148387,660.00,JT DOVE LTD.
Regeneration and Local Services,Technical Services CM0300,Supplies and Services,304221,Equipment and Materials,07/01/2020,3687134-GOI2028/D,"4,482.25",JT DOVE LTD.
Regeneration and Local Services,Technical Services CM0300,Supplies and Services,304221,Equipment and Materials,07/01/2020,3687134-GOI2043/D,991.80,JT DOVE LTD.
Regeneration and Local Services,Technical Services CM0300,Supplies and Services,304221,Equipment and Materials,07/01/2020,3687134-GOI2044/D,"2,859.72",JT DOVE LTD.
Regeneration and Local Services,Technical Services CM0300,Supplies and Services,304221,Equipment and Materials,07/01/2020,3687134-GOI2045/D,"2,689.35",JT DOVE LTD.
Regeneration and Local Services,Technical Services CM0300,Stock A926,926900,Stock in hand-Inventory system,07/01/2020,3687134-GOI2055/D,"4,904.00",JT DOVE LTD.
Transformation and Partnerships,Transformation,Supplies and Services,338027,Services,07/01/2020,3687137-INV-0698,"4,968.00",JURA CONSULTANTS.
Regeneration and Local Services,Transport and Contracted Services,Supplies and Services,342051,Computers and Communications,07/01/2020,3687141-ORD-15791-F2Z8B7,"2,335.00",KEYSOFT SOLUTIONS LTD.
Regeneration and Local Services,Development and Housing,Supplies and Services,384999,Miscellaneous Expenses,07/01/2020,3687143-2353,575.00,KIMMITT LETTINGS LTD.
Regeneration and Local Services,Culture Sport and Tourism,Premises,145023,Cleaning and Domestic Supplies,07/01/2020,3687148-1912018,"1,380.00",KRYSTAL CLEANING SERVICES LTD (KCS).
Regeneration and Local Services,Environmental Services,Third Party Payments,430100,Rendered by Private Contractors,07/01/2020,3687154-231341128111,"1,107.27",LEEDS GALVANISING & POWDER COATING LTD.
Regeneration and Local Services,Technical Services CM0300,Supplies and Services,304221,Equipment and Materials,07/01/2020,3687158-CINV-077455,"21,449.69",LIMELIGHT SIGNS LTD.
Resources BK0010,Finance & Transactional Services,Supplies and Services,384180,Miscellaneous Expenses,07/01/2020,3687167-0354731,"3,959.19",LOOMIS UK LTD.
Regeneration and Local Services,Technical Services CM0300,Stock A926,926900,Stock in hand-Inventory system,07/01/2020,3687170-157181,716.75,MALLATITE LTD T/A MALLATITE PLASTICS LTD.
Regeneration and Local Services,Technical Services CM0300,Supplies and Services,304221,Equipment and Materials,07/01/2020,3687170-157190,"28,641.61",MALLATITE LTD T/A MALLATITE PLASTICS LTD.
Dedicated Schools Grant BG0015,DSG High Needs Block,Supplies and Services,384199,Miscellaneous Expenses,07/01/2020,3687173-88,540.00,MARGARET NETZLER T/A MC COUNSELLING SERVICES.
Dedicated Schools Grant BG0015,DSG High Needs Block,Supplies and Services,384199,Miscellaneous Expenses,07/01/2020,3687173-89,540.00,MARGARET NETZLER T/A MC COUNSELLING SERVICES.
Regeneration and Local Services,Corporate Property and Land,Third Party Payments,430100,Rendered by Private Contractors,07/01/2020,3687174-59086,"13,490.00",MARIAN DOORS & SHUTTERS.
Children and Young Peoples Services,Head of Childrens Social Care,Supplies and Services,338099,Services,07/01/2020,3687175-MB00131,"2,300.00",MARIANNE BROAD.
Regeneration and Local Services,Culture Sport and Tourism,Supplies and Services,332029,Printing Stationery and Gen Off Exps,07/01/2020,3687186-52491,"2,275.00",MHG (SUPPLIES) LTD.
Resources BK0010,Legal & Democratic Services,Supplies and Services,338042,Services,07/01/2020,3687189-162449-16/12/19,"2,100.00",MISS ALISON DAVENPORT (SPIRE BARRISTERS).
Regeneration and Local Services,Corporate Property and Land,Third Party Payments,430100,Rendered by Private Contractors,07/01/2020,3687193-30559/92015687,880.00,MITIE PROPERTY SERVICES (UK) LTD.
Children and Young Peoples Services,Head of Education and Skills,Supplies and Services,338027,Services,07/01/2020,3687205-0020,750.00,MRS NATALIE ANNE DALTON (EDUCATIONAL CONSULTANT).
Regeneration and Local Services,Environmental Services,Third Party Payments,430100,Rendered by Private Contractors,07/01/2020,3687209-11369,537.00,N1 JETTING SYSTEMS LTD.
Regeneration and Local Services,Environmental Services,Third Party Payments,430100,Rendered by Private Contractors,07/01/2020,3687209-11421,573.66,N1 JETTING SYSTEMS LTD.
Children and Young Peoples Services,Head of Education and Skills,Supplies and Services,338035,Services,07/01/2020,3687212-SI00081682,"3,002.00",NCFE.
Resources BK0010,Digital and Customer Services,Supplies and Services,344033,Telephones,07/01/2020,3687215-202798,"1,385.29",NETWORKS 2 BUSINESS LTD.
Regeneration and Local Services,Culture Sport and Tourism,Supplies and Services,352001,Conference Expenses,07/01/2020,3687216-SLINV/00003762,861.56,NEW COLLEGE DURHAM.
Children and Young Peoples Services,Childrens Services Operational Support,Supplies and Services,384956,Miscellaneous Expenses,07/01/2020,3687218-1800009914096,"24,582.77",NEWCASTLE UPON TYNE CITY COUNCIL.
Adult and Health Services,Head of Adults,Third Party Payments,474101,Purchase of Care,07/01/2020,3687219-CAS-01-2020-020,"12,639.36",NEWCROSS HEALTHCARE SOLUTIONS LTD.
Regeneration and Local Services,Development and Housing,Supplies and Services,336005,Advertising E336,07/01/2020,3687220-31949187,511.78,NEWSQUEST (YORKSHIRE & NORTH EAST) LTD.
Regeneration and Local Services,Environmental Services,Transport,210057,Repair and Maintenance of Vehicles,07/01/2020,3687225-75895,"2,551.00",NORPLAST LTD.
Regeneration and Local Services,Environmental Services,Third Party Payments,430100,Rendered by Private Contractors,07/01/2020,3687226-1418029,"1,795.52",NORTH EAST TRUCK & VAN LTD.
Regeneration and Local Services,Environmental Services,Transport,210057,Repair and Maintenance of Vehicles,07/01/2020,3687226-21841865,703.13,NORTH EAST TRUCK & VAN LTD.
Regeneration and Local Services,Culture Sport and Tourism,Supplies and Services,384999,Miscellaneous Expenses,07/01/2020,3687228-19-20/001,"2,000.00",NORTHERN HEARTLANDS.
Adult and Health Services,Head of Adults,Third Party Payments,478151,Purchase of Care,07/01/2020,3687234-37522,"7,940.04",OAKLEA TRUST.
Regeneration and Local Services,Environmental Services,Transport,215005,Running Costs of Vehicles,07/01/2020,3687235-515758,"3,119.10",OIL NRG LTD.
Regeneration and Local Services,Environmental Services,Transport,215005,Running Costs of Vehicles,07/01/2020,3687235-516579,"10,175.85",OIL NRG LTD.
Regeneration and Local Services,Technical Services CM0300,Third Party Payments,430100,Rendered by Private Contractors,07/01/2020,3687236-22125,"4,760.00",OLIVERS TREE SERVICES LTD.
Regeneration and Local Services,Technical Services CM0300,Third Party Payments,430100,Rendered by Private Contractors,07/01/2020,3687236-22134,840.00,OLIVERS TREE SERVICES LTD.
Regeneration and Local Services,Technical Services CM0300,Supplies and Services,338027,Services,07/01/2020,3687238-NE82532919,"3,371.27",OPENREACH LLU.
Regeneration and Local Services,Technical Services CM0300,Stock A926,926900,Stock in hand-Inventory system,07/01/2020,3687243-XL250318,"1,099.00",PARK ELECTRICAL DISTRIBUTORS LTD.
Regeneration and Local Services,Culture Sport and Tourism,Supplies and Services,384199,Miscellaneous Expenses,07/01/2020,3687249-GALA171219,555.00,REDACTED - PAYMENT TO INDIVIDUAL
Regeneration and Local Services,Technical Services CM0300,Third Party Payments,430100,Rendered by Private Contractors,07/01/2020,3687252-314221,"5,157.00",PEART FENCING LTD.
Regeneration and Local Services,Technical Services CM0300,Supplies and Services,338027,Services,07/01/2020,3687253-64009862,"43,291.67",PELL FRISCHMANN CONSULTANTS LTD.
Regeneration and Local Services,Technical Services CM0300,Third Party Payments,430128,Rendered by Private Contractors,07/01/2020,3687258-10371,908.00,PETER MONKHOUSE HAULAGE.
Regeneration and Local Services,Corporate Property and Land,Supplies and Services,304221,Equipment and Materials,07/01/2020,3687260-347833,"2,790.09",PEW ELECTRICAL DISTRIBUTORS LTD.
Dedicated Schools Grant BG0015,DSG High Needs Block,Supplies and Services,304259,Equipment and Materials,07/01/2020,3687262-2592595167,"2,960.00",PHONAK UK LTD.
Dedicated Schools Grant BG0015,DSG High Needs Block,Supplies and Services,304259,Equipment and Materials,07/01/2020,3687262-2592596378,"1,750.40",PHONAK UK LTD.
Dedicated Schools Grant BG0015,DSG High Needs Block,Supplies and Services,304259,Equipment and Materials,07/01/2020,3687262-2592599209,938.40,PHONAK UK LTD.
Regeneration and Local Services,Culture Sport and Tourism,Supplies and Services,338047,Services,07/01/2020,3687264-INV08994,833.33,PICTUREHOUSE CINEMAS LTD.
Adult and Health Services,Public Health CC0450,Third Party Payments,460803,Contract Payments,07/01/2020,3687265-INV-141305,890.00,PINNACLE HEALTH PARTNERSHIP LLP.
Children and Young Peoples Services,Head of Education and Skills,Supplies and Services,338094,Services,07/01/2020,3687266-16950/14,"1,171.23",PIONEERING CARE PARTNERSHIP.
Regeneration and Local Services,Environmental Services,Third Party Payments,430100,Rendered by Private Contractors,07/01/2020,3687267-TEE209,695.60,PIRTEK CLEVELAND.
Regeneration and Local Services,Culture Sport and Tourism,Supplies and Services,372009,Subscriptions E372,07/01/2020,3687271-SIN1328060,"2,221.22",PPL PRS LTD.
Transformation and Partnerships,Business Support,Supplies and Services,304245,Equipment and Materials,07/01/2020,3687272-1170791,921.60,PREMIER PAPER GROUP LTD.
Regeneration and Local Services,Environmental Services,Supplies and Services,338099,Services,07/01/2020,3687273-162945,"1,960.00",PREMIER TRAFFIC MANAGEMENT LTD.
Regeneration and Local Services,Environmental Services,Supplies and Services,384199,Miscellaneous Expenses,07/01/2020,3687273-162946,"1,960.00",PREMIER TRAFFIC MANAGEMENT LTD.
Regeneration and Local Services,Technical Services CM0300,Third Party Payments,430100,Rendered by Private Contractors,07/01/2020,3687276-1801,"1,095.00",PRODAR SURVEYS LTD.
Regeneration and Local Services,Corporate Property and Land,Supplies and Services,304245,Equipment and Materials,07/01/2020,3687278-OP/I821051,805.92,PROTEC FIRE DETECTION PLC.
Adult and Health Services,Public Health CC0450,Premises,145009,Cleaning and Domestic Supplies,07/01/2020,3687284-INV-1326,637.20,QUALITY CLEANING SERVICES (NORTHERN) LTD.
Regeneration and Local Services,Technical Services CM0300,Third Party Payments,430100,Rendered by Private Contractors,07/01/2020,3687286-12292,"20,764.26",QUANTUM POWER CONNECTIONS LTD.
Transformation and Partnerships,Business Support,Supplies and Services,332029,Printing Stationery and Gen Off Exps,07/01/2020,3687287-17846,930.00,RADECAL SIGNS GRAPHICS & ADVERTISING.
Children and Young Peoples Services,Childrens Services Operational Support,Supplies and Services,338089,Services,07/01/2020,3687291-440496809,"5,250.00",REDCAR & CLEVELAND BOROUGH COUNCIL.
Regeneration and Local Services,Development and Housing,Supplies and Services,338027,Services,07/01/2020,3687293-190458,600.00,RENAISSANCE RESEARCH UK LTD.
Regeneration and Local Services,Environmental Services,Transport,210057,Repair and Maintenance of Vehicles,07/01/2020,3687295-731124,668.01,RICKERBY LTD.
Regeneration and Local Services,Development and Housing,Supplies and Services,338099,Services,07/01/2020,3687296-141073384,"1,000.00",RIGHTMOVE GROUP LTD.
Regeneration and Local Services,Corporate Property and Land,Supplies and Services,304221,Equipment and Materials,07/01/2020,3687297-0000054839,"4,542.70",RINNAI UK LTD.
Transformation and Partnerships,Partnerships & Community Engagement Div.,Supplies and Services,384071,Miscellaneous Expenses,07/01/2020,3687299-7140009902,"3,608.33",RIVERSIDE EVENTS LLP.
Children and Young Peoples Services,Head of Education and Skills,Fees,901002,Consultants fees 901002,07/01/2020,3687305-TEC536039,"1,900.00",RPS CONSULTING SERVICES LTD.
Children and Young Peoples Services,Head of Education and Skills,Supplies and Services,304259,Equipment and Materials,07/01/2020,3687312-10860,525.00,SAFEGUARD SECURITY (NE) LTD.
Regeneration and Local Services,Business Durham CL0850,Premises,108099,Service Repairs and Maintenance,07/01/2020,3687312-10962,736.00,SAFEGUARD SECURITY (NE) LTD.
Regeneration and Local Services,Environmental Services,Supplies and Services,304221,Equipment and Materials,07/01/2020,3687314-20201000003559,"2,147.10",SCARAB SWEEPERS LTD.
Regeneration and Local Services,Business Durham CL0850,Premises,106082,Centrally Controlled Rep and Maint,07/01/2020,3687315-458070587,"1,686.77",SCHINDLER LTD.
Dedicated Schools Grant BG0015,DSG High Needs Block,Supplies and Services,384199,Miscellaneous Expenses,07/01/2020,3687319-28,930.00,SHARON HOWARD T/A SH COUNSELLING SERVICES.
Regeneration and Local Services,Culture Sport and Tourism,Third Party Payments,430100,Rendered by Private Contractors,07/01/2020,3687330-14857,672.26,SMITH CONSTRUCTION (HECKINGTON) LTD.
Regeneration and Local Services,Environmental Services,Supplies and Services,338027,Services,07/01/2020,3687333-0000795667,"3,360.00",SOCOTEC UK LTD.
Regeneration and Local Services,Corporate Property and Land,Third Party Payments,430100,Rendered by Private Contractors,07/01/2020,3687337-7012,988.00,ST ASTIER LTD.
Adult and Health Services,Public Health CC0450,Third Party Payments,460803,Contract Payments,07/01/2020,3687338-BS0011403,"4,080.66",ST CUTHBERTS HOSPICE DURHAM.
Regeneration and Local Services,Culture Sport and Tourism,Supplies and Services,304259,Equipment and Materials,07/01/2020,3687344-116775,"11,428.00",STEEL LINE LTD.
Transformation and Partnerships,Partnerships & Community Engagement Div.,Cap Exp on Grants & Other Financial Assistance (REFCUS),918004,Contributions to other bodies 918004,07/01/2020,3687345-VOUCHER19AB-DVLY0061STINST,"10,800.00",STEM 4 LIFE CIC.
Children and Young Peoples Services,Head of Education and Skills,Supplies and Services,336005,Advertising E336,07/01/2020,3687346-INV-4909,"2,027.00",STEVE DAVIDSON ADVERTISING LTD T/A SD ADVERTISING LTD.
Regeneration and Local Services,Technical Services CM0300,Stock A926,926900,Stock in hand-Inventory system,07/01/2020,3687355-4717083,"1,830.00",SUPPLIES TEAM LTD NOW KNOWN AS BANNER GROUP LTD.
Regeneration and Local Services,Technical Services CM0300,Supplies and Services,338027,Services,07/01/2020,3687358-31135,550.00,SURVEY OPERATIONS LTD.
Children and Young Peoples Services,Childrens Services Operational Support,Supplies and Services,338026,Services,07/01/2020,3687359-SC17,833.00,SUSAN CAWTHERLEY.
Resources BK0010,Digital and Customer Services,Supplies and Services,342225,Computers and Communications,07/01/2020,3687361-132168,"27,012.22",SWITCHSHOP LTD.
Regeneration and Local Services,Transport and Contracted Services,Supplies and Services,342053,Computers and Communications,07/01/2020,3687362-19003305,"3,300.00",SYSTRA LTD.
Regeneration and Local Services,Technical Services CM0300,Supplies and Services,304221,Equipment and Materials,07/01/2020,3687364-9041271473,963.55,TARMAC TRADING LTD.
Children and Young Peoples Services,Head of Early Help Inclusion & Vulnerable Children.,Employees,080025,Agency Staff,07/01/2020,3687367-2355323,"1,315.15",TEACHING PERSONNEL LTD.
Regeneration and Local Services,Environmental Services,Third Party Payments,430100,Rendered by Private Contractors,07/01/2020,3687368-3322,795.00,TEAM VALLEY TRANSMISSIONS LTD.
Regeneration and Local Services,Culture Sport and Tourism,Supplies and Services,304259,Equipment and Materials,07/01/2020,3687369-104770,699.00,TECHNICAL LAMP SUPPLIES UK LTD.
Regeneration and Local Services,Transport and Contracted Services,Supplies and Services,336005,Advertising E336,07/01/2020,3687370-11508,768.50,TEESDALE MERCURY LTD.
Children and Young Peoples Services,Head of Education and Skills,Supplies and Services,332029,Printing Stationery and Gen Off Exps,07/01/2020,3687376-INV-1238,"1,324.50",THE BIGGER SCENE.
Children and Young Peoples Services,Head of Childrens Social Care,Supplies and Services,352001,Conference Expenses,07/01/2020,3687379-24333,"4,057.32",THE FOSTERING NETWORK.
Regeneration and Local Services,Culture Sport and Tourism,Supplies and Services,328041,Clothing uniforms and laundry E328,07/01/2020,3687386-NSIN00027101,"1,057.65",THOMAS OWEN & SONS (NEWCASTLE) LTD.
Regeneration and Local Services,Culture Sport and Tourism,Supplies and Services,328041,Clothing uniforms and laundry E328,07/01/2020,3687386-NSIN00027198,874.71,THOMAS OWEN & SONS (NEWCASTLE) LTD.
Regeneration and Local Services,Culture Sport and Tourism,Supplies and Services,328041,Clothing uniforms and laundry E328,07/01/2020,3687386-NSIN00027408,971.52,THOMAS OWEN & SONS (NEWCASTLE) LTD.
Regeneration and Local Services,Culture Sport and Tourism,Supplies and Services,328041,Clothing uniforms and laundry E328,07/01/2020,3687386-NSIN00027523,626.09,THOMAS OWEN & SONS (NEWCASTLE) LTD.
Regeneration and Local Services,Environmental Services,Supplies and Services,328041,Clothing uniforms and laundry E328,07/01/2020,3687386-NSIN00026885,"1,471.12",THOMAS OWEN & SONS (NEWCASTLE) LTD.
Regeneration and Local Services,Environmental Services,Supplies and Services,328041,Clothing uniforms and laundry E328,07/01/2020,3687386-NSIN00027389,642.60,THOMAS OWEN & SONS (NEWCASTLE) LTD.
Regeneration and Local Services,Technical Services CM0300,Third Party Payments,430100,Rendered by Private Contractors,07/01/2020,3687386-NSIN00027371,"1,006.80",THOMAS OWEN & SONS (NEWCASTLE) LTD.
Regeneration and Local Services,Environmental Services,Supplies and Services,338066,Services,07/01/2020,3687387-050629,"11,248.50",THORPE TREES LTD.
Regeneration and Local Services,Technical Services CM0300,Supplies and Services,304221,Equipment and Materials,07/01/2020,3687390-111834,"1,555.00",TOFCO LTD.
Regeneration and Local Services,Corporate Property and Land,Supplies and Services,304221,Equipment and Materials,07/01/2020,3687392-32681,"1,173.00",TOTAL PUMP SOLUTIONS LTD.
Children and Young Peoples Services,Head of Education and Skills,Supplies and Services,338099,Services,07/01/2020,3687396-55937,900.00,TRAINING QUALIFICATIONS UK.
Resources BK0010,Legal & Democratic Services,Supplies and Services,338042,Services,07/01/2020,3687397-266297/INVKI082,"1,850.00",TRINITY CHAMBERS.
Children and Young Peoples Services,Head of Education and Skills,Supplies and Services,338035,Services,07/01/2020,3687398-1-1818561861,"3,620.74",TRINITY COLLEGE LONDON.
Regeneration and Local Services,Environmental Services,Supplies and Services,304221,Equipment and Materials,07/01/2020,3687406-38662,"2,338.68",UK CONTAINER MAINTENANCE LTD.
Regeneration and Local Services,Environmental Services,Supplies and Services,342215,Computers and Communications,07/01/2020,3687408-44341,"3,405.55",UK TELEMATICS LTD.
Regeneration and Local Services,Corporate Property and Land,Premises,108099,Service Repairs and Maintenance,07/01/2020,3687412-R-60749,"2,903.16",UPNORTH ENGINEERING SERVICES LTD.
Regeneration and Local Services,Environmental Services,Supplies and Services,338027,Services,07/01/2020,3687414-465,"4,306.25",URBAN FORESIGHT LTD.
Resources BK0010,Digital and Customer Services,Supplies and Services,342051,Computers and Communications,07/01/2020,3687415-INVSOL004381,"2,080.00",VERSION 1 SOLUTIONS LTD.
Regeneration and Local Services,Corporate Property and Land,Supplies and Services,304221,Equipment and Materials,07/01/2020,3687417-6890320159,843.50,VIESSMANN LTD.
Regeneration and Local Services,Corporate Property and Land,Supplies and Services,304221,Equipment and Materials,07/01/2020,3687417-6890320248,"13,020.64",VIESSMANN LTD.
Regeneration and Local Services,Corporate Property and Land,Third Party Payments,430100,Rendered by Private Contractors,07/01/2020,3687417-6890320263,700.00,VIESSMANN LTD.
Resources BK0010,Legal & Democratic Services,Supplies and Services,344014,Telephones,07/01/2020,3687423-NP99834,646.60,VODAFONE CORPORATE LTD.
Adult and Health Services,Head of Adults,Third Party Payments,473101,Purchase of Care,07/01/2020,3687428-CAS-01-2020-023,"1,947.00",WEAR 1 CARE LTD.
Children and Young Peoples Services,Head of Education and Skills,Transport,235005,Public Transport,07/01/2020,3687430-15538,"183,336.36",WEARDALE MOTOR SERVICES LTD.
Regeneration and Local Services,Technical Services CM0300,Third Party Payments,430100,Rendered by Private Contractors,07/01/2020,3687432-201950299,"2,834.00",WEMO-TEC UK LTD.
Regeneration and Local Services,Technical Services CM0300,Third Party Payments,430100,Rendered by Private Contractors,07/01/2020,3687432-201950303,"1,632.00",WEMO-TEC UK LTD.
Regeneration and Local Services,Technical Services CM0300,Third Party Payments,430100,Rendered by Private Contractors,07/01/2020,3687432-201950304,560.00,WEMO-TEC UK LTD.
Regeneration and Local Services,Business Durham CL0850,Construction work A908,908105,Construction work,07/01/2020,3687437-226,595.00,WHORLTON LAND SURVEYS LTD.
Regeneration and Local Services,Technical Services CM0300,Stock A926,926900,Stock in hand-Inventory system,07/01/2020,3687441-65314506,707.65,WOLSELEY UK LTD.
Regeneration and Local Services,Technical Services CM0300,Supplies and Services,338027,Services,07/01/2020,3687445-64435510,645.34,WSP UK LTD.
Resources BK0010,Digital and Customer Services,Stock A926,926900,Stock in hand-Inventory system,07/01/2020,3687447-KV47902,"1,233.88",XMA LTD.
Regeneration and Local Services,Corporate Property and Land,Supplies and Services,304221,Equipment and Materials,07/01/2020,3687448-041IN80396,584.79,YESSS ELECTRICAL.
Regeneration and Local Services,Culture Sport and Tourism,Supplies and Services,338047,Services,07/01/2020,3687449-0000008662,"3,000.00",YORK ARCHAELOGICAL TRUST.
Resources BK0010,Finance & Transactional Services,Intangible Assets,917003,Software capitalised implementation fees,07/01/2020,3687452-IN0063841,"37,500.00",ZELLIS UK LTD.
Regeneration and Local Services,Culture Sport and Tourism,Supplies and Services,304337,Equipment and Materials,07/01/2020,3687455-I-0628631,981.85,ZOGGS INTERNATIONAL LTD.
Regeneration and Local Services,Culture Sport and Tourism,Supplies and Services,304337,Equipment and Materials,07/01/2020,3687455-I-0628934,"1,407.62",ZOGGS INTERNATIONAL LTD.
Children and Young Peoples Services,Head of Education and Skills,Transport,230034,Contract Hire,08/01/2020,3687457-121901,"1,800.00",24/7 TAXI SERVICES LTD.
Children and Young Peoples Services,Head of Education and Skills,Transport,230034,Contract Hire,08/01/2020,3687457-121902,"1,395.90",24/7 TAXI SERVICES LTD.
Children and Young Peoples Services,Head of Education and Skills,Transport,230034,Contract Hire,08/01/2020,3687457-121903,"1,610.00",24/7 TAXI SERVICES LTD.
Children and Young Peoples Services,Head of Education and Skills,Transport,230008,Contract Hire,08/01/2020,3687457-121907,"1,950.00",24/7 TAXI SERVICES LTD.
Children and Young Peoples Services,Head of Education and Skills,Transport,230008,Contract Hire,08/01/2020,3687457-121908,"1,402.44",24/7 TAXI SERVICES LTD.
Children and Young Peoples Services,Head of Education and Skills,Transport,230008,Contract Hire,08/01/2020,3687457-121909,"2,178.30",24/7 TAXI SERVICES LTD.
Children and Young Peoples Services,Head of Education and Skills,Transport,230008,Contract Hire,08/01/2020,3687457-121911,"2,207.81",24/7 TAXI SERVICES LTD.
Children and Young Peoples Services,Head of Education and Skills,Transport,230008,Contract Hire,08/01/2020,3687457-121912,"2,932.30",24/7 TAXI SERVICES LTD.
Children and Young Peoples Services,Head of Education and Skills,Transport,230008,Contract Hire,08/01/2020,3687457-121913,"1,500.00",24/7 TAXI SERVICES LTD.
Children and Young Peoples Services,Head of Education and Skills,Transport,230006,Contract Hire,08/01/2020,3687457-121916,"1,042.68",24/7 TAXI SERVICES LTD.
Children and Young Peoples Services,Head of Education and Skills,Transport,230006,Contract Hire,08/01/2020,3687457-121917,"1,278.00",24/7 TAXI SERVICES LTD.
Children and Young Peoples Services,Head of Education and Skills,Transport,230009,Contract Hire,08/01/2020,3687457-121919,660.00,24/7 TAXI SERVICES LTD.
Children and Young Peoples Services,Head of Education and Skills,Transport,230008,Contract Hire,08/01/2020,3687457-121920,"2,250.00",24/7 TAXI SERVICES LTD.
Children and Young Peoples Services,Head of Education and Skills,Transport,230012,Contract Hire,08/01/2020,3687457-121921,"2,055.00",24/7 TAXI SERVICES LTD.
Dedicated Schools Grant BG0015,DSG High Needs Block,Transport,230010,Contract Hire,08/01/2020,3687457-121910/3,510.00,24/7 TAXI SERVICES LTD.
Regeneration and Local Services,Environmental Services,Supplies and Services,304357,Equipment and Materials,08/01/2020,3687458-2909,"3,591.00",A & J GUTHRIE.
Children and Young Peoples Services,Head of Education and Skills,Transport,230012,Contract Hire,08/01/2020,3687460-O436,"1,820.00",ABC & OUSTON CABS.
Regeneration and Local Services,Business Durham CL0850,Supplies and Services,352001,Conference Expenses,08/01/2020,3687462-2001,500.00,ACADEMY FOR CHIEF EXECUTIVES NORTH EAST.
Children and Young Peoples Services,Head of Education and Skills,Supplies and Services,304259,Equipment and Materials,08/01/2020,3687463-DCCS2019052,800.00,ADDED BRASS T/A DURHAM MUSIC SHOP.
Children and Young Peoples Services,Head of Childrens Social Care,Supplies and Services,338044,Services,08/01/2020,3687464-MWKK271219,"2,239.90",ADVANCED CHILD CARE ASSESSMENTS LTD.
Regeneration and Local Services,Technical Services CM0300,Supplies and Services,304221,Equipment and Materials,08/01/2020,3687466-29233354,"1,207.80",AGGREGATE INDUSTRIES UK LTD.
Regeneration and Local Services,Technical Services CM0300,Supplies and Services,304221,Equipment and Materials,08/01/2020,3687466-29244723,"1,179.74",AGGREGATE INDUSTRIES UK LTD.
Regeneration and Local Services,Technical Services CM0300,Supplies and Services,304221,Equipment and Materials,08/01/2020,3687466-29251387,"1,209.02",AGGREGATE INDUSTRIES UK LTD.
Regeneration and Local Services,Technical Services CM0300,Supplies and Services,304221,Equipment and Materials,08/01/2020,3687466-29258319,"1,202.92",AGGREGATE INDUSTRIES UK LTD.
Regeneration and Local Services,Technical Services CM0300,Supplies and Services,304221,Equipment and Materials,08/01/2020,3687466-29266539,"1,198.04",AGGREGATE INDUSTRIES UK LTD.
Regeneration and Local Services,Technical Services CM0300,Supplies and Services,304221,Equipment and Materials,08/01/2020,3687466-29266541,"1,341.24",AGGREGATE INDUSTRIES UK LTD.
Regeneration and Local Services,Technical Services CM0300,Supplies and Services,304221,Equipment and Materials,08/01/2020,3687466-29266543,814.04,AGGREGATE INDUSTRIES UK LTD.
Regeneration and Local Services,Technical Services CM0300,Supplies and Services,304221,Equipment and Materials,08/01/2020,3687466-29273330,603.90,AGGREGATE INDUSTRIES UK LTD.
Regeneration and Local Services,Technical Services CM0300,Supplies and Services,304221,Equipment and Materials,08/01/2020,3687466-29273333,"1,011.00",AGGREGATE INDUSTRIES UK LTD.
Regeneration and Local Services,Technical Services CM0300,Supplies and Services,304221,Equipment and Materials,08/01/2020,3687466-29279818,606.34,AGGREGATE INDUSTRIES UK LTD.
Regeneration and Local Services,Technical Services CM0300,Supplies and Services,304221,Equipment and Materials,08/01/2020,3687466-29279821,"1,131.26",AGGREGATE INDUSTRIES UK LTD.
Regeneration and Local Services,Technical Services CM0300,Supplies and Services,304221,Equipment and Materials,08/01/2020,3687466-29279822,598.40,AGGREGATE INDUSTRIES UK LTD.
Regeneration and Local Services,Environmental Services,Transport,210057,Repair and Maintenance of Vehicles,08/01/2020,3687474-INV00000844313,676.00,ARNDALE GROUP OF COMPANIES.
Non-Service Specific,Non Service Specific-Financing,Long Term Debtors,924001,Car loans,08/01/2020,3687476-116519,639.00,ARRIVA DURHAM COUNTY LTD.
Regeneration and Local Services,Corporate Property and Land,Supplies and Services,304221,Equipment and Materials,08/01/2020,3687477-7334,"2,490.00",ATLAS WASHROOM SYSTEMS LTD.
Regeneration and Local Services,Environmental Services,Transport,230005,Contract Hire,08/01/2020,3687478-0000029140,"4,590.00",AUTOMOTIVE GROUP (NEWCASTLE UPON TYNE) LTD.
Regeneration and Local Services,Corporate Property and Land,Third Party Payments,430100,Rendered by Private Contractors,08/01/2020,3687482-6619,600.00,BELL CONTROL SOLUTIONS LTD.
Regeneration and Local Services,Corporate Property and Land,Third Party Payments,430100,Rendered by Private Contractors,08/01/2020,3687482-6620,600.00,BELL CONTROL SOLUTIONS LTD.
Regeneration and Local Services,Environmental Services,Transport,210057,Repair and Maintenance of Vehicles,08/01/2020,3687483-35175388,709.42,BELL TRUCK SALES LTD T/A BELL TRUCK & VAN.
Children and Young Peoples Services,Head of Education and Skills,Transport,230006,Contract Hire,08/01/2020,3687484-4-F792,"1,431.00",BELMONT TAXIS.
Regeneration and Local Services,Culture Sport and Tourism,Supplies and Services,338066,Services,08/01/2020,3687490-1157,"2,075.00",BLUEGRASS RESEARCH LTD.
Regeneration and Local Services,Culture Sport and Tourism,Supplies and Services,338066,Services,08/01/2020,3687490-1170,"2,075.00",BLUEGRASS RESEARCH LTD.
Children and Young Peoples Services,Head of Education and Skills,Transport,230034,Contract Hire,08/01/2020,3687491-28015,"1,400.00",BLUELINE TAXIS.
Children and Young Peoples Services,Head of Education and Skills,Transport,230007,Contract Hire,08/01/2020,3687491-28019,"2,239.44",BLUELINE TAXIS.
Children and Young Peoples Services,Head of Education and Skills,Transport,230008,Contract Hire,08/01/2020,3687491-28020,"1,360.00",BLUELINE TAXIS.
Regeneration and Local Services,Culture Sport and Tourism,Premises,145023,Cleaning and Domestic Supplies,08/01/2020,3687494-22SI2255688,"1,478.74",BRENNTAG UK LTD.
Regeneration and Local Services,Culture Sport and Tourism,Supplies and Services,384199,Miscellaneous Expenses,08/01/2020,3687500-4100671624FINALINST,585.00,REDACTED - PAYMENT TO INDIVIDUAL
Regeneration and Local Services,Environmental Services,Third Party Payments,430100,Rendered by Private Contractors,08/01/2020,3687510-414569,"1,976.84",CHATFIELDS T/A EVANS HALSHAW.
Regeneration and Local Services,Corporate Property and Land,Third Party Payments,430100,Rendered by Private Contractors,08/01/2020,3687516-5970,"9,920.00",CITY FABRICATIONS LTD.
Regeneration and Local Services,Culture Sport and Tourism,Construction work A908,908105,Construction work,08/01/2020,3687518-1,"75,985.71",CLEVELAND LAND SERVICES (GUISBOROUGH) LTD.
Regeneration and Local Services,Technical Services CM0300,Stock A926,926004,Stock,08/01/2020,3687519-400021029,"3,664.59",CLEVELAND POTASH LTD T/A ICL FERTILIZERS.
Regeneration and Local Services,Technical Services CM0300,Stock A926,926004,Stock,08/01/2020,3687519-400021030,"3,657.69",CLEVELAND POTASH LTD T/A ICL FERTILIZERS.
Regeneration and Local Services,Technical Services CM0300,Stock A926,926004,Stock,08/01/2020,3687519-400021165,"1,963.05",CLEVELAND POTASH LTD T/A ICL FERTILIZERS.
Children and Young Peoples Services,Head of Education and Skills,Transport,230008,Contract Hire,08/01/2020,3687522-1558,"1,464.00",CONNORS MINI BUSES.*
Children and Young Peoples Services,Head of Education and Skills,Transport,230008,Contract Hire,08/01/2020,3687522-1559,"1,709.55",CONNORS MINI BUSES.*
Children and Young Peoples Services,Head of Education and Skills,Transport,230008,Contract Hire,08/01/2020,3687522-1560,"1,495.80",CONNORS MINI BUSES.*
Children and Young Peoples Services,Head of Education and Skills,Transport,230008,Contract Hire,08/01/2020,3687522-1561,"1,909.65",CONNORS MINI BUSES.*
Regeneration and Local Services,Environmental Services,Third Party Payments,460305,Contract Payments,08/01/2020,3687521-5442,"1,170.00",CO-WHEELS CAR CLUB CIC.
Regeneration and Local Services,Culture Sport and Tourism,Supplies and Services,384199,Miscellaneous Expenses,08/01/2020,3687527-609PC8,585.00,COWLEY KNOX & GUY.
Regeneration and Local Services,Environmental Services,Transport,230005,Contract Hire,08/01/2020,3687528-18311,"1,277.75",CP DAVIDSON & SONS LTD.
Children and Young Peoples Services,Head of Education and Skills,Transport,230006,Contract Hire,08/01/2020,3687534-109832,"2,972.85",CROFT BUSINESS SERVICES (UK) LTD T/A CROFT TAXIS.
Children and Young Peoples Services,Head of Education and Skills,Transport,230008,Contract Hire,08/01/2020,3687534-109833,"2,246.82",CROFT BUSINESS SERVICES (UK) LTD T/A CROFT TAXIS.
Children and Young Peoples Services,Head of Education and Skills,Transport,230008,Contract Hire,08/01/2020,3687534-109834,"2,140.16",CROFT BUSINESS SERVICES (UK) LTD T/A CROFT TAXIS.
Children and Young Peoples Services,Head of Education and Skills,Transport,230008,Contract Hire,08/01/2020,3687534-109835,"2,117.85",CROFT BUSINESS SERVICES (UK) LTD T/A CROFT TAXIS.
Children and Young Peoples Services,Head of Education and Skills,Transport,230008,Contract Hire,08/01/2020,3687534-109836,"1,948.53",CROFT BUSINESS SERVICES (UK) LTD T/A CROFT TAXIS.
Children and Young Peoples Services,Head of Education and Skills,Transport,230008,Contract Hire,08/01/2020,3687534-109837,"1,965.00",CROFT BUSINESS SERVICES (UK) LTD T/A CROFT TAXIS.
Children and Young Peoples Services,Head of Education and Skills,Transport,230008,Contract Hire,08/01/2020,3687534-109838,"1,780.65",CROFT BUSINESS SERVICES (UK) LTD T/A CROFT TAXIS.
Children and Young Peoples Services,Head of Education and Skills,Transport,230006,Contract Hire,08/01/2020,3687534-109841,"3,350.40",CROFT BUSINESS SERVICES (UK) LTD T/A CROFT TAXIS.
Children and Young Peoples Services,Head of Education and Skills,Transport,230008,Contract Hire,08/01/2020,3687534-109843,"2,850.00",CROFT BUSINESS SERVICES (UK) LTD T/A CROFT TAXIS.
Children and Young Peoples Services,Head of Education and Skills,Transport,230008,Contract Hire,08/01/2020,3687534-109844,"2,503.50",CROFT BUSINESS SERVICES (UK) LTD T/A CROFT TAXIS.
Children and Young Peoples Services,Head of Education and Skills,Transport,230008,Contract Hire,08/01/2020,3687534-109875,"1,549.05",CROFT BUSINESS SERVICES (UK) LTD T/A CROFT TAXIS.
Dedicated Schools Grant BG0015,DSG High Needs Block,Transport,230010,Contract Hire,08/01/2020,3687534-109840,"1,917.30",CROFT BUSINESS SERVICES (UK) LTD T/A CROFT TAXIS.
Dedicated Schools Grant BG0015,DSG High Needs Block,Transport,230010,Contract Hire,08/01/2020,3687534-109845,"2,894.92",CROFT BUSINESS SERVICES (UK) LTD T/A CROFT TAXIS.
Adult and Health Services,Head of Adults,Third Party Payments,478151,Purchase of Care,08/01/2020,3687541-INV-0385,"2,419.20",DEACONSTAR LTD.
Adult and Health Services,Head of Adults,Third Party Payments,478151,Purchase of Care,08/01/2020,3687541-INV-0386,"1,761.76",DEACONSTAR LTD.
Adult and Health Services,Head of Adults,Third Party Payments,478151,Purchase of Care,08/01/2020,3687541-INV-0387,"2,016.00",DEACONSTAR LTD.
Resources BK0010,Digital and Customer Services,Supplies and Services,342033,Computers and Communications,08/01/2020,3687544-7402583315,"1,690.71",DELL COMPUTER CORPORATION LTD.
Regeneration and Local Services,Environmental Services,Transport,210057,Repair and Maintenance of Vehicles,08/01/2020,3687545-96381478,514.81,DENNIS EAGLE LTD T/A TERBERG MATEC (UK) LTD.
Regeneration and Local Services,Environmental Services,Stock A926,926004,Stock,08/01/2020,3687545-96381674,"1,654.74",DENNIS EAGLE LTD T/A TERBERG MATEC (UK) LTD.
Regeneration and Local Services,Environmental Services,Transport,210057,Repair and Maintenance of Vehicles,08/01/2020,3687545-96381675,528.58,DENNIS EAGLE LTD T/A TERBERG MATEC (UK) LTD.
Regeneration and Local Services,Environmental Services,Stock A926,926004,Stock,08/01/2020,3687545-96381819,503.01,DENNIS EAGLE LTD T/A TERBERG MATEC (UK) LTD.
Regeneration and Local Services,Environmental Services,Transport,210057,Repair and Maintenance of Vehicles,08/01/2020,3687545-96381819A,"1,017.82",DENNIS EAGLE LTD T/A TERBERG MATEC (UK) LTD.
Regeneration and Local Services,Environmental Services,Transport,210057,Repair and Maintenance of Vehicles,08/01/2020,3687545-96382396,871.38,DENNIS EAGLE LTD T/A TERBERG MATEC (UK) LTD.
Regeneration and Local Services,Environmental Services,Transport,210057,Repair and Maintenance of Vehicles,08/01/2020,3687545-96382567,595.70,DENNIS EAGLE LTD T/A TERBERG MATEC (UK) LTD.
Regeneration and Local Services,Environmental Services,Transport,210057,Repair and Maintenance of Vehicles,08/01/2020,3687545-96382568,514.81,DENNIS EAGLE LTD T/A TERBERG MATEC (UK) LTD.
Regeneration and Local Services,Environmental Services,Transport,210057,Repair and Maintenance of Vehicles,08/01/2020,3687545-96382867,"1,233.79",DENNIS EAGLE LTD T/A TERBERG MATEC (UK) LTD.
Regeneration and Local Services,Environmental Services,Stock A926,926004,Stock,08/01/2020,3687545-96383061,"1,839.29",DENNIS EAGLE LTD T/A TERBERG MATEC (UK) LTD.
Regeneration and Local Services,Environmental Services,Transport,210057,Repair and Maintenance of Vehicles,08/01/2020,3687545-96383062,514.81,DENNIS EAGLE LTD T/A TERBERG MATEC (UK) LTD.
Regeneration and Local Services,Environmental Services,Transport,210057,Repair and Maintenance of Vehicles,08/01/2020,3687545-96383174,514.81,DENNIS EAGLE LTD T/A TERBERG MATEC (UK) LTD.
Regeneration and Local Services,Environmental Services,Transport,210057,Repair and Maintenance of Vehicles,08/01/2020,3687545-96383175,537.10,DENNIS EAGLE LTD T/A TERBERG MATEC (UK) LTD.
Regeneration and Local Services,Environmental Services,Transport,210057,Repair and Maintenance of Vehicles,08/01/2020,3687545-96383253,563.60,DENNIS EAGLE LTD T/A TERBERG MATEC (UK) LTD.
Regeneration and Local Services,Environmental Services,Transport,210057,Repair and Maintenance of Vehicles,08/01/2020,3687545-96383254,583.88,DENNIS EAGLE LTD T/A TERBERG MATEC (UK) LTD.
Regeneration and Local Services,Environmental Services,Transport,210057,Repair and Maintenance of Vehicles,08/01/2020,3687546-DE11264953,774.57,DENNIS EAGLE LTD.
Resources BK0010,Legal & Democratic Services,Supplies and Services,338042,Services,08/01/2020,3687547-351301/INVBD137,"2,400.00",DERE STREET BARRISTERS.
Resources BK0010,Legal & Democratic Services,Supplies and Services,338042,Services,08/01/2020,3687547-351841/INVJAH67,650.00,DERE STREET BARRISTERS.
Adult and Health Services,Head of Adults,Third Party Payments,472101,Purchase of Care,08/01/2020,3687550-CAS-01-2020-024,"6,889.82",DIMENSIONS PERSONALISED SUPPORT LTD.
Regeneration and Local Services,Environmental Services,Third Party Payments,430101,Rendered by Private Contractors,08/01/2020,3687551-IV1223303,964.86,DIRECT TYRE MANAGEMENT LTD (DTM).
Regeneration and Local Services,Business Durham CL0850,Premises,120009,Energy Costs,08/01/2020,3687555-000006958014,"2,624.56",EDF ENERGY CUSTOMERS PLC T/A EDF ENERGY.
Regeneration and Local Services,Corporate Property and Land,Supplies and Services,304221,Equipment and Materials,08/01/2020,3687556-059-257404,949.40,EDMUNDSON ELECTRICAL LTD.
Regeneration and Local Services,Culture Sport and Tourism,Supplies and Services,384199,Miscellaneous Expenses,08/01/2020,3687560-GALA48,"1,130.00",REDACTED - PAYMENT TO INDIVIDUAL
Regeneration and Local Services,Technical Services CM0300,Construction work A908,908105,Construction work,08/01/2020,3687563-163032,"130,886.67",ESH CONSTRUCTION LTD FORMERLY LUMSDEN & CARROLL CONSTRUCTION LTD.
Regeneration and Local Services,Technical Services CM0300,Supplies and Services,304357,Equipment and Materials,08/01/2020,3687573-DCC011219,"18,648.61",GAP GROUP LTD.
Adult and Health Services,Head of Adults,Third Party Payments,473101,Purchase of Care,08/01/2020,3687574-CAS-01-2020-022,543.60,GAPPS DAY SERVICES LTD.
Children and Young Peoples Services,Head of Education and Skills,Transport,230034,Contract Hire,08/01/2020,3687575-GS004-DEC19,"1,050.00",GARY JACKSON PRIVATE HIRE.
Children and Young Peoples Services,Head of Education and Skills,Transport,230008,Contract Hire,08/01/2020,3687577-RG002,"1,399.50",GAVIN ELLIOTT T/A LOCATION TAXIS.
Regeneration and Local Services,Environmental Services,Stock A926,926004,Stock,08/01/2020,3687578-IN223665,940.00,GB LUBRICANTS LTD.
Regeneration and Local Services,Environmental Services,Stock A926,926004,Stock,08/01/2020,3687578-IN223668,615.00,GB LUBRICANTS LTD.
Regeneration and Local Services,Environmental Services,Stock A926,926004,Stock,08/01/2020,3687578-IN224414,615.00,GB LUBRICANTS LTD.
Regeneration and Local Services,Environmental Services,Supplies and Services,338066,Services,08/01/2020,3687581-BURSARY-JANUARY,524.16,GEMMA MASON (GEOLOGY TRAINEE).
Children and Young Peoples Services,Head of Education and Skills,Transfer Payments,510028,School Children,08/01/2020,3687582-CAS-01-2020-028,"20,000.00",GIANT STEPS LTD.
Children and Young Peoples Services,Head of Education and Skills,Transport,230007,Contract Hire,08/01/2020,3687583-72094,"6,222.90",GO GATESHEAD LTD.
Regeneration and Local Services,Environmental Services,Transport,230005,Contract Hire,08/01/2020,3687584-R0018202,920.00,GO PLANT FLEET SERVICES LTD.
Regeneration and Local Services,Environmental Services,Transport,230005,Contract Hire,08/01/2020,3687584-R0018433,"3,340.00",GO PLANT FLEET SERVICES LTD.
Children and Young Peoples Services,Head of Education and Skills,Transport,230008,Contract Hire,08/01/2020,3687585-04-W082,"1,800.00",GRAHAM WILLIAMS T/A BUS 2 MINIBUS HIRE.
Regeneration and Local Services,Development and Housing,Vehicles Equipment Furniture and Fittings,912529,Purchase-equipment,08/01/2020,3687587-GPS/501,"3,000.00",GREEN PROPERTY SERVICES LTD..
Regeneration and Local Services,Corporate Property and Land,Premises,145023,Cleaning and Domestic Supplies,08/01/2020,3687589-06/037358,820.80,GREENHAM TRADING LTD.
Regeneration and Local Services,Corporate Property and Land,Premises,145023,Cleaning and Domestic Supplies,08/01/2020,3687589-06/039769,"3,967.80",GREENHAM TRADING LTD.
Regeneration and Local Services,Environmental Services,Transport,210057,Repair and Maintenance of Vehicles,08/01/2020,3687591-261579,545.15,GREENLAY T/A THOMAS SHERRIFF & CO LTD.
Regeneration and Local Services,Environmental Services,Third Party Payments,430100,Rendered by Private Contractors,08/01/2020,3687591-261593,780.93,GREENLAY T/A THOMAS SHERRIFF & CO LTD.
Regeneration and Local Services,Environmental Services,Third Party Payments,430100,Rendered by Private Contractors,08/01/2020,3687591-261594,699.00,GREENLAY T/A THOMAS SHERRIFF & CO LTD.
Adult and Health Services,Head of Adults,Transport,230005,Contract Hire,08/01/2020,3687596-04/DM208,621.00,HARDIP SINGH MAHIL T/A AMBER CARS.
Children and Young Peoples Services,Head of Education and Skills,Transport,230006,Contract Hire,08/01/2020,3687596-36,"1,035.00",HARDIP SINGH MAHIL T/A AMBER CARS.
Adult and Health Services,Public Health CC0450,Third Party Payments,460803,Contract Payments,08/01/2020,3687597-2510030014,"4,460.70",HARROGATE & DISTRICT NHS FOUNDATION TRUST.
Resources BK0010,Corporate Finance & Commercial Services,Supplies and Services,338221,Services,08/01/2020,3687598-SF-047292,"1,019.34",HEALTH ASSURED LTD.
Regeneration and Local Services,Environmental Services,Transport,210057,Repair and Maintenance of Vehicles,08/01/2020,3687599-108299,925.47,HEXHAM MACHINERY CENTRE LTD.
Regeneration and Local Services,Environmental Services,Transport,210057,Repair and Maintenance of Vehicles,08/01/2020,3687601-9457,522.80,HILLCREST AUTO ELECTRICS.
Regeneration and Local Services,Environmental Services,Transport,210057,Repair and Maintenance of Vehicles,08/01/2020,3687601-9468A,585.00,HILLCREST AUTO ELECTRICS.
Children and Young Peoples Services,Head of Education and Skills,Transport,230007,Contract Hire,08/01/2020,3687602-17044,"1,386.32",HODGSONS COACH OPERATORS LTD.
Regeneration and Local Services,Environmental Services,Third Party Payments,430100,Rendered by Private Contractors,08/01/2020,3687603-80645,938.95,HOGARTH COACHWORKS LTD.
Dedicated Schools Grant BG0015,DSG High Needs Block,Third Party Payments,440999,Other third party payments E440,08/01/2020,3687604-HWSI66,"100,000.00",HOPE WOOD ACADEMY.
Adult and Health Services,Public Health CC0450,Third Party Payments,460803,Contract Payments,08/01/2020,3687608-520/20/1801,"43,000.00",HUMANKIND CHARITY.
Children and Young Peoples Services,Head of Education and Skills,Transport,230016,Contract Hire,08/01/2020,3687610-IR1912003-E006,"1,511.70",I & R EXECUTIVE TRAVEL.
Regeneration and Local Services,Environmental Services,Supplies and Services,304357,Equipment and Materials,08/01/2020,3687611-2653,"6,811.51",IAN C LIDDLE.
Regeneration and Local Services,Technical Services CM0300,Third Party Payments,430127,Rendered by Private Contractors,08/01/2020,3687618-5305803,694.00,JA GILSON (AGRICULTURAL CONTRACTORS) LTD.
Regeneration and Local Services,Culture Sport and Tourism,Supplies and Services,384199,Miscellaneous Expenses,08/01/2020,3687621-KF/7734,854.15,JANET PLATER MANAGEMENT LTD.
Regeneration and Local Services,Culture Sport and Tourism,Supplies and Services,384199,Miscellaneous Expenses,08/01/2020,3687621-NA/7731,"1,285.88",JANET PLATER MANAGEMENT LTD.
Regeneration and Local Services,Environmental Services,Third Party Payments,430100,Rendered by Private Contractors,08/01/2020,3687624-122381,889.55,JG PAXTON & SONS LTD.
Children and Young Peoples Services,Head of Education and Skills,Transport,230008,Contract Hire,08/01/2020,3687625-20/12/2019E,"2,161.20",JL EBDON. T/A DIAL-A-CAB.
Children and Young Peoples Services,Head of Education and Skills,Transport,230006,Contract Hire,08/01/2020,3687629-4,"1,069.80",JOHN BELL TAXI.
Adult and Health Services,Head of Adults,Transport,230005,Contract Hire,08/01/2020,3687630-04-DM112,990.00,JOHN CRAKE & SONS MINI BUSES LTD.
Adult and Health Services,Head of Adults,Transport,230005,Contract Hire,08/01/2020,3687630-100-DEC19,900.00,JOHN CRAKE & SONS MINI BUSES LTD.
Children and Young Peoples Services,Head of Education and Skills,Transport,230007,Contract Hire,08/01/2020,3687630-99-DEC19,"1,395.90",JOHN CRAKE & SONS MINI BUSES LTD.
Children and Young Peoples Services,Head of Education and Skills,Transport,230009,Contract Hire,08/01/2020,3687633-7231204,910.00,JOVIAL PRIVATE HIRE.
Children and Young Peoples Services,Head of Education and Skills,Transport,230008,Contract Hire,08/01/2020,3687633-E00504,"1,522.20",JOVIAL PRIVATE HIRE.
Children and Young Peoples Services,Head of Education and Skills,Transport,230008,Contract Hire,08/01/2020,3687633-M00927,"1,189.50",JOVIAL PRIVATE HIRE.
Children and Young Peoples Services,Head of Education and Skills,Transport,230008,Contract Hire,08/01/2020,3687633-M01626,938.85,JOVIAL PRIVATE HIRE.
Children and Young Peoples Services,Head of Education and Skills,Transport,230008,Contract Hire,08/01/2020,3687633-M01726,700.05,JOVIAL PRIVATE HIRE.
Regeneration and Local Services,Technical Services CM0300,Supplies and Services,304221,Equipment and Materials,08/01/2020,3687635-GOI2058/D,896.45,JT DOVE LTD.
Regeneration and Local Services,Culture Sport and Tourism,Supplies and Services,384199,Miscellaneous Expenses,08/01/2020,3687640-DH004,625.41,KEDDIE SCOTT ASSOCIATES LTD.
Children and Young Peoples Services,Head of Early Help Inclusion & Vulnerable Children.,Transport,230007,Contract Hire,08/01/2020,3687641-011219,"1,200.08",KEVIN EDMUNDSON.
Regeneration and Local Services,Environmental Services,Third Party Payments,430100,Rendered by Private Contractors,08/01/2020,3687644-6229,785.00,KTD NE LTD.
Children and Young Peoples Services,Head of Education and Skills,Transport,230003,Contract Hire,08/01/2020,3687649-7981/4017,"2,241.15",LEE`S COACHES LTD.
Children and Young Peoples Services,Head of Education and Skills,Transport,230003,Contract Hire,08/01/2020,3687649-7981/4020,"1,954.20",LEE`S COACHES LTD.
Children and Young Peoples Services,Head of Education and Skills,Transport,230007,Contract Hire,08/01/2020,3687649-7982/3056,"2,835.00",LEE`S COACHES LTD.
Children and Young Peoples Services,Head of Education and Skills,Transport,230007,Contract Hire,08/01/2020,3687649-7982/3192,"1,492.50",LEE`S COACHES LTD.
Children and Young Peoples Services,Head of Education and Skills,Transport,230008,Contract Hire,08/01/2020,3687652-DECA060,"1,500.00",LION CABS.
Regeneration and Local Services,Technical Services CM0300,Supplies and Services,304358,Equipment and Materials,08/01/2020,3687656-MS1949,567.45,M SPENCE SURFACING LTD.
Dedicated Schools Grant BG0015,DSG High Needs Block,Supplies and Services,342033,Computers and Communications,08/01/2020,3687657-INV-1301,"1,079.11",MAC SECURITY & FIRE LTD.
Children and Young Peoples Services,Head of Education and Skills,Transport,230008,Contract Hire,08/01/2020,3687659-58,"1,273.05",MALCOLM CARR T/A CARLY CABS.
Regeneration and Local Services,Technical Services CM0300,Supplies and Services,304221,Equipment and Materials,08/01/2020,3687660-151917,"2,094.00",MALLATITE LTD T/A MALLATITE PLASTICS LTD.
Regeneration and Local Services,Technical Services CM0300,Supplies and Services,304221,Equipment and Materials,08/01/2020,3687660-151918,"4,188.00",MALLATITE LTD T/A MALLATITE PLASTICS LTD.
Regeneration and Local Services,Technical Services CM0300,Supplies and Services,304221,Equipment and Materials,08/01/2020,3687660-151919,"5,136.00",MALLATITE LTD T/A MALLATITE PLASTICS LTD.
Children and Young Peoples Services,Head of Education and Skills,Transport,230008,Contract Hire,08/01/2020,3687661-12/1908,"2,255.70",MARK & JOHN CHISHOLM T/A (CHEVRON).
Children and Young Peoples Services,Head of Education and Skills,Transport,230034,Contract Hire,08/01/2020,3687661-12/1909,"1,337.70",MARK & JOHN CHISHOLM T/A (CHEVRON).
Children and Young Peoples Services,Head of Education and Skills,Transport,230008,Contract Hire,08/01/2020,3687661-12/1910,"1,387.10",MARK & JOHN CHISHOLM T/A (CHEVRON).
Children and Young Peoples Services,Head of Education and Skills,Transport,230006,Contract Hire,08/01/2020,3687661-INV12/1917,"1,705.95",MARK & JOHN CHISHOLM T/A (CHEVRON).
Dedicated Schools Grant BG0015,DSG High Needs Block,Transport,230010,Contract Hire,08/01/2020,3687661-12/1914,"1,800.00",MARK & JOHN CHISHOLM T/A (CHEVRON).
Regeneration and Local Services,Culture Sport and Tourism,Supplies and Services,384199,Miscellaneous Expenses,08/01/2020,3687662-20193,825.00,REDACTED - PAYMENT TO INDIVIDUAL
Children and Young Peoples Services,Head of Education and Skills,Transport,230006,Contract Hire,08/01/2020,3687663-201219,528.00,MARK MUSGROVE T/A MARKS TAXIS.
Children and Young Peoples Services,Head of Education and Skills,Transport,230009,Contract Hire,08/01/2020,3687663-201219/7325,620.40,MARK MUSGROVE T/A MARKS TAXIS.
Regeneration and Local Services,Corporate Property and Land,Supplies and Services,304221,Equipment and Materials,08/01/2020,3687665-NE194078,"1,164.45",MCNAUGHTON BLAIR LTD T/A LLOYD WORRALL (NEWCASTLE UPON TYNE) LTD.
Regeneration and Local Services,Corporate Property and Land,Third Party Payments,430100,Rendered by Private Contractors,08/01/2020,3687666-43593,"1,127.00",MCVICKERS LTD.
Children and Young Peoples Services,Head of Education and Skills,Transport,230012,Contract Hire,08/01/2020,3687670-KDC-011219,"2,052.45",MJ TIMNEY T/A KDC & C&M TAXIS.
Adult and Health Services,Head of Adults,Third Party Payments,478151,Purchase of Care,08/01/2020,3687673-03,"1,900.00",MOORLAND HOLDINGS (NE) LTD.
Children and Young Peoples Services,Head of Education and Skills,Transport,230008,Contract Hire,08/01/2020,3687674-MEAD112-19,971.60,MR CT WALKER T/A CW TAXIS.
Children and Young Peoples Services,Head of Education and Skills,Transport,230007,Contract Hire,08/01/2020,3687677-089,720.00,MR LJ TARRY T/A TARRY`S TAXI`S.
Children and Young Peoples Services,Head of Education and Skills,Transport,230012,Contract Hire,08/01/2020,3687677-090,"1,083.58",MR LJ TARRY T/A TARRY`S TAXI`S.
Dedicated Schools Grant BG0015,DSG High Needs Block,Transport,230010,Contract Hire,08/01/2020,3687678-02/BL023,553.00,MR MARK WILE T/A HARRY`S TAXIS.
Dedicated Schools Grant BG0015,DSG High Needs Block,Transport,230010,Contract Hire,08/01/2020,3687678-02/BL023/2,600.40,MR MARK WILE T/A HARRY`S TAXIS.
Regeneration and Local Services,Development and Housing,Fees,901002,Consultants fees 901002,08/01/2020,3687683-19/1018/GD/RR,517.50,NAPPER ARCHITECTS LTD.
Adult and Health Services,Head of Adults,Transport,230005,Contract Hire,08/01/2020,3687688-251,"1,725.00",NEVILLE FORBES T/A FORBES TAXIS.
Regeneration and Local Services,Business Durham CL0850,Supplies and Services,384899,Miscellaneous Expenses,08/01/2020,3687691-90789,"1,000.00",NORTH EAST BUSINESS & INNOVATION CENTRE LTD.
Children and Young Peoples Services,Head of Education and Skills,Transport,230007,Contract Hire,08/01/2020,3687692-6356,"2,700.00",NORTH EAST COACHWAYS LTD.
Children and Young Peoples Services,Head of Education and Skills,Transport,230003,Contract Hire,08/01/2020,3687692-6359,"2,700.00",NORTH EAST COACHWAYS LTD.
Resources BK0010,Legal & Democratic Services,Supplies and Services,384199,Miscellaneous Expenses,08/01/2020,3687697-23255446,"6,832.28",NORTH TYNESIDE COUNCIL.
Regeneration and Local Services,Transport and Contracted Services,Third Party Payments,440999,Other third party payments E440,08/01/2020,3687698-DI20333200,713.00,NORTHERN POWERGRID (NORTHEAST) LTD.
Regeneration and Local Services,Transport and Contracted Services,Third Party Payments,440999,Other third party payments E440,08/01/2020,3687698-DI20333201,713.00,NORTHERN POWERGRID (NORTHEAST) LTD.
Resources BK0010,Finance & Transactional Services,Supplies and Services,338066,Services,08/01/2020,3687700-91428802,"3,793.50",NORTHGATE PUBLIC SERVICES (UK) LTD.
Regeneration and Local Services,Environmental Services,Transport,215022,Running Costs of Vehicles,08/01/2020,3687705-515757,"1,157.20",OIL NRG LTD.
Regeneration and Local Services,Environmental Services,Transport,215022,Running Costs of Vehicles,08/01/2020,3687705-515760,"1,157.20",OIL NRG LTD.
Regeneration and Local Services,Corporate Property and Land,Third Party Payments,430100,Rendered by Private Contractors,08/01/2020,3687706-9722-208,"1,108.18",OPUS BUILDING SERVICES LTD.
Regeneration and Local Services,Corporate Property and Land,Third Party Payments,430100,Rendered by Private Contractors,08/01/2020,3687706-9722-209,"1,051.87",OPUS BUILDING SERVICES LTD.
Regeneration and Local Services,Corporate Property and Land,Third Party Payments,430100,Rendered by Private Contractors,08/01/2020,3687706-9722-210,"1,051.87",OPUS BUILDING SERVICES LTD.
Regeneration and Local Services,Culture Sport and Tourism,Supplies and Services,384199,Miscellaneous Expenses,08/01/2020,3687708-OGM003-ALAD/COLES,635.00,ORLANDO GRAY MANAGEMENT LTD.
Regeneration and Local Services,Corporate Property and Land,Third Party Payments,430100,Rendered by Private Contractors,08/01/2020,3687712-2266,"1,215.00",PARAMOUNT CEILINGS & PARTITIONS.
Resources BK0010,Legal & Democratic Services,Supplies and Services,338101,Services,08/01/2020,3687714-PPSLPMSNOV-DEC2019,"5,630.70",PATEL PATH SERVICES LTD.
Adult and Health Services,Head of Adults,Transport,230005,Contract Hire,08/01/2020,3687715-90,720.00,PAUL B TAXIS.
Regeneration and Local Services,Culture Sport and Tourism,Supplies and Services,384199,Miscellaneous Expenses,08/01/2020,3687716-PD1920-18.,555.00,REDACTED - PAYMENT TO INDIVIDUAL
Adult and Health Services,Head of Adults,Transport,230005,Contract Hire,08/01/2020,3687717-EAS150/12,900.00,PAUL GREEN T/A GREEN TAXIS.
Children and Young Peoples Services,Head of Education and Skills,Transport,230006,Contract Hire,08/01/2020,3687717-A039/12,720.00,PAUL GREEN T/A GREEN TAXIS.
Children and Young Peoples Services,Head of Education and Skills,Transport,230007,Contract Hire,08/01/2020,3687718-1844-3046,"1,800.00",PAUL WATSON TRAVEL.
Children and Young Peoples Services,Head of Education and Skills,Transport,230003,Contract Hire,08/01/2020,3687718-1846,"2,109.00",PAUL WATSON TRAVEL.
Children and Young Peoples Services,Head of Education and Skills,Transport,230009,Contract Hire,08/01/2020,3687719-7311/12,"1,650.00",PAUL WILSON.
Children and Young Peoples Services,Head of Education and Skills,Transport,230007,Contract Hire,08/01/2020,3687721-13,"1,294.80",PETER NAYLOR.
Children and Young Peoples Services,Head of Education and Skills,Transport,230034,Contract Hire,08/01/2020,3687721-14,"1,170.00",PETER NAYLOR.
Children and Young Peoples Services,Head of Education and Skills,Transport,230007,Contract Hire,08/01/2020,3687721-15,770.00,PETER NAYLOR.
Children and Young Peoples Services,Head of Education and Skills,Transport,230007,Contract Hire,08/01/2020,3687721-16,834.00,PETER NAYLOR.
Regeneration and Local Services,Culture Sport and Tourism,Supplies and Services,384199,Miscellaneous Expenses,08/01/2020,3687723-4100671280-003,738.34,PGI SMITH SOLUTIONS LTD.
Children and Young Peoples Services,Head of Education and Skills,Transport,230008,Contract Hire,08/01/2020,3687724-53,"1,330.94",PHILLIP BOYD T/A FILS TAXIS.
Regeneration and Local Services,Technical Services CM0300,Stock A926,926900,Stock in hand-Inventory system,08/01/2020,3687728-5378968,"1,115.20",PRISM MEDICAL UK WESTHOLME DIVISION.
Regeneration and Local Services,Transport and Contracted Services,Third Party Payments,430106,Rendered by Private Contractors,08/01/2020,3687730-2098,"4,080.28",R COOPER T/A DC TAXIS.
Regeneration and Local Services,Business Durham CL0850,Supplies and Services,336005,Advertising E336,08/01/2020,3687732-INV-0837,950.00,RESOLUTION MEDIA & PUBLISHING LTD T/A WEAR BUSINESS
Children and Young Peoples Services,Head of Education and Skills,Transport,230007,Contract Hire,08/01/2020,3687737-1385,"2,153.62",ROBERTS TOURS.
Children and Young Peoples Services,Head of Education and Skills,Transport,230007,Contract Hire,08/01/2020,3687737-1386,"2,042.32",ROBERTS TOURS.
Children and Young Peoples Services,Head of Education and Skills,Transport,230007,Contract Hire,08/01/2020,3687737-1387,"1,704.22",ROBERTS TOURS.
Transformation and Partnerships,Business Support,Supplies and Services,340001,Postages E340,08/01/2020,3687739-9060103133,"1,791.77",ROYAL MAIL GROUP PLC.
Regeneration and Local Services,Corporate Property and Land,Third Party Payments,430100,Rendered by Private Contractors,08/01/2020,3687745-5278,765.92,SAFE STRIP UK LTD.
Regeneration and Local Services,Corporate Property and Land,Third Party Payments,430100,Rendered by Private Contractors,08/01/2020,3687745-5284,680.00,SAFE STRIP UK LTD.
Regeneration and Local Services,Corporate Property and Land,Supplies and Services,338078,Services,08/01/2020,3687746-10858,"2,016.00",SAFEGUARD SECURITY (NE) LTD.
Regeneration and Local Services,Corporate Property and Land,Supplies and Services,338078,Services,08/01/2020,3687746-11105,"1,517.00",SAFEGUARD SECURITY (NE) LTD.
Regeneration and Local Services,Development and Housing,Fees,901001,Internal fees,08/01/2020,3687747-NEW12665,900.00,SANDERSON WEATHERALL LLP.
Regeneration and Local Services,Environmental Services,Transport,210057,Repair and Maintenance of Vehicles,08/01/2020,3687748-20201000003679,"2,469.86",SCARAB SWEEPERS LTD.
Regeneration and Local Services,Environmental Services,Third Party Payments,430100,Rendered by Private Contractors,08/01/2020,3687748-20201000003830,"1,020.73",SCARAB SWEEPERS LTD.
Regeneration and Local Services,Environmental Services,Third Party Payments,430100,Rendered by Private Contractors,08/01/2020,3687748-20201000003917,551.25,SCARAB SWEEPERS LTD.
Regeneration and Local Services,Technical Services CM0300,Third Party Payments,460224,Contract Payments,08/01/2020,3687752-20691,"210,275.01",SEYMOUR (CIVIL ENGINEERING CONTRACTORS) LTD.
Resources BK0010,Digital and Customer Services,Supplies and Services,342051,Computers and Communications,08/01/2020,3687761-INV02448723,"4,204.50",SOFTCAT LTD.
Children and Young Peoples Services,Head of Education and Skills,Transport,230007,Contract Hire,08/01/2020,3687764-04363,"2,165.52",STANLEY TRAVEL (NORTH EAST) LTD.
Children and Young Peoples Services,Head of Education and Skills,Transport,230007,Contract Hire,08/01/2020,3687764-04364,992.88,STANLEY TRAVEL (NORTH EAST) LTD.
Children and Young Peoples Services,Head of Education and Skills,Transport,230006,Contract Hire,08/01/2020,3687764-10-F759,"1,045.00",STANLEY TRAVEL (NORTH EAST) LTD.
Children and Young Peoples Services,Head of Education and Skills,Transport,230008,Contract Hire,08/01/2020,3687764-10-N038,934.61,STANLEY TRAVEL (NORTH EAST) LTD.
Children and Young Peoples Services,Head of Education and Skills,Transport,230006,Contract Hire,08/01/2020,3687764-11-F759,"1,140.00",STANLEY TRAVEL (NORTH EAST) LTD.
Children and Young Peoples Services,Head of Education and Skills,Transport,230006,Contract Hire,08/01/2020,3687766-2003,"1,725.00",STEPHEN REED T/A STEVE`S TAXIS.
Adult and Health Services,Head of Adults,Transport,230005,Contract Hire,08/01/2020,3687767-031,576.00,STEVEN HENDERSON T/A HENDYS TAXIS.
Children and Young Peoples Services,Head of Education and Skills,Transport,230034,Contract Hire,08/01/2020,3687767-032,"1,050.00",STEVEN HENDERSON T/A HENDYS TAXIS.
Dedicated Schools Grant BG0015,DSG High Needs Block,Transport,230010,Contract Hire,08/01/2020,3687767-030,975.00,STEVEN HENDERSON T/A HENDYS TAXIS.
Children and Young Peoples Services,Head of Education and Skills,Transport,230006,Contract Hire,08/01/2020,3687768-SI-205,810.00,STEVEN PRATT T/A PTL TAXIS DURHAM.
Children and Young Peoples Services,Head of Early Help Inclusion & Vulnerable Children.,Employees,080025,Agency Staff,08/01/2020,3687777-2359881,"1,444.60",TEACHING PERSONNEL LTD.
Regeneration and Local Services,Environmental Services,Third Party Payments,430100,Rendered by Private Contractors,08/01/2020,3687778-9342,575.00,TEAM VALLEY TRANSMISSIONS LTD.
Regeneration and Local Services,Environmental Services,Transport,215023,Running Costs of Vehicles,08/01/2020,3687780-4091332,690.00,TENNANTS DISTRIBUTION LTD.
Regeneration and Local Services,Culture Sport and Tourism,Supplies and Services,384199,Miscellaneous Expenses,08/01/2020,3687789-4100671287-4,"1,350.00",REDACTED - PAYMENT TO INDIVIDUAL
Regeneration and Local Services,Environmental Services,Transport,230005,Contract Hire,08/01/2020,3687793-20652,975.00,TRASH UK LTD.
Regeneration and Local Services,Environmental Services,Transport,230005,Contract Hire,08/01/2020,3687793-20675,975.00,TRASH UK LTD.
Regeneration and Local Services,Transport and Contracted Services,Supplies and Services,304245,Equipment and Materials,08/01/2020,3687798-3IN/10349005,"6,683.50",TUNSTALL HEALTHCARE (UK) LTD.
Regeneration and Local Services,Technical Services CM0300,Supplies and Services,304221,Equipment and Materials,08/01/2020,3687802-206955,611.22,TYNEDALE ROADSTONE LTD.
Regeneration and Local Services,Environmental Services,Transport,210057,Repair and Maintenance of Vehicles,08/01/2020,3687805-15717,773.14,VERSALIFT DISTRIBUTORS (UK) LTD.
Regeneration and Local Services,Business Durham CL0850,Supplies and Services,352001,Conference Expenses,08/01/2020,3687808-INV00099452,"2,310.00",VISTAGE INTERNATIONAL (UK) LTD.
Regeneration and Local Services,Culture Sport and Tourism,Premises,135005,Water Services,08/01/2020,3687809-888888974846274492,"4,720.01",WAVE (AWBN).
Resources BK0010,Finance & Transactional Services,Intangible Assets,917003,Software capitalised implementation fees,08/01/2020,3687812-IN0063234,"2,188.80",ZELLIS UK LTD.
Resources BK0010,Finance & Transactional Services,Intangible Assets,917003,Software capitalised implementation fees,08/01/2020,3687812-IN0063856,"2,188.80",ZELLIS UK LTD.
Regeneration and Local Services,Environmental Services,Transport,210057,Repair and Maintenance of Vehicles,08/01/2020,3687813-SI113956,664.00,ZOELLER WASTE SYSTEMS LTD.
Regeneration and Local Services,Culture Sport and Tourism,Supplies and Services,304337,Equipment and Materials,08/01/2020,3687814-I-0628930,694.53,ZOGGS INTERNATIONAL LTD.
Regeneration and Local Services,Technical Services CM0300,Supplies and Services,304221,Equipment and Materials,09/01/2020,3687820-29273329,"1,220.38",AGGREGATE INDUSTRIES UK LTD.
Regeneration and Local Services,Technical Services CM0300,Supplies and Services,304221,Equipment and Materials,09/01/2020,3687820-29279817,"1,588.36",AGGREGATE INDUSTRIES UK LTD.
Regeneration and Local Services,Technical Services CM0300,Supplies and Services,304221,Equipment and Materials,09/01/2020,3687820-29286537,"1,194.38",AGGREGATE INDUSTRIES UK LTD.
Regeneration and Local Services,Technical Services CM0300,Supplies and Services,304221,Equipment and Materials,09/01/2020,3687820-29286538,"1,198.04",AGGREGATE INDUSTRIES UK LTD.
Regeneration and Local Services,Technical Services CM0300,Supplies and Services,304221,Equipment and Materials,09/01/2020,3687820-29286540,"1,115.08",AGGREGATE INDUSTRIES UK LTD.
Regeneration and Local Services,Technical Services CM0300,Supplies and Services,304221,Equipment and Materials,09/01/2020,3687820-29293201,"1,363.68",AGGREGATE INDUSTRIES UK LTD.
Regeneration and Local Services,Technical Services CM0300,Supplies and Services,304221,Equipment and Materials,09/01/2020,3687820-29293202,600.24,AGGREGATE INDUSTRIES UK LTD.
Regeneration and Local Services,Technical Services CM0300,Supplies and Services,304221,Equipment and Materials,09/01/2020,3687820-29293205,602.40,AGGREGATE INDUSTRIES UK LTD.
Regeneration and Local Services,Technical Services CM0300,Supplies and Services,304221,Equipment and Materials,09/01/2020,3687820-29301937,"1,489.76",AGGREGATE INDUSTRIES UK LTD.
Regeneration and Local Services,Technical Services CM0300,Supplies and Services,304221,Equipment and Materials,09/01/2020,3687820-29301938,"1,210.24",AGGREGATE INDUSTRIES UK LTD.
Regeneration and Local Services,Technical Services CM0300,Supplies and Services,304221,Equipment and Materials,09/01/2020,3687820-29301941,"1,177.80",AGGREGATE INDUSTRIES UK LTD.
Regeneration and Local Services,Technical Services CM0300,Supplies and Services,304221,Equipment and Materials,09/01/2020,3687820-29308002,"1,215.12",AGGREGATE INDUSTRIES UK LTD.
Regeneration and Local Services,Technical Services CM0300,Supplies and Services,304221,Equipment and Materials,09/01/2020,3687820-29308003,685.50,AGGREGATE INDUSTRIES UK LTD.
Regeneration and Local Services,Technical Services CM0300,Supplies and Services,304221,Equipment and Materials,09/01/2020,3687820-29308005,610.00,AGGREGATE INDUSTRIES UK LTD.
Regeneration and Local Services,Culture Sport and Tourism,Supplies and Services,384199,Miscellaneous Expenses,09/01/2020,3687821-1683,624.00,REDACTED - PAYMENT TO INDIVIDUAL
Adult and Health Services,Commissioning inc Supporting People,Third Party Payments,479102,Purchase of Care,09/01/2020,3687822-141009908,"38,675.66",BARNARDO SERVICES LTD.
Regeneration and Local Services,Corporate Property and Land,Supplies and Services,304221,Equipment and Materials,09/01/2020,3687823-2583214A,728.00,BES LTD.
Regeneration and Local Services,Technical Services CM0300,Supplies and Services,384199,Miscellaneous Expenses,09/01/2020,3687825-1344831,"18,550.50",BLAENAU GWENT COUNTY BOROUGH COUNCIL.
Regeneration and Local Services,Technical Services CM0300,Premises,150015,Apportioned Exps of Operational Blds,09/01/2020,3687831-134880,857.96,CLEE HILL PLANT LTD.
Regeneration and Local Services,Technical Services CM0300,Premises,150015,Apportioned Exps of Operational Blds,09/01/2020,3687831-134881,724.46,CLEE HILL PLANT LTD.
Regeneration and Local Services,Business Durham CL0850,Premises,120021,Energy Costs,09/01/2020,3687832-14777016,921.89,CORONA ENERGY RETAIL 2 LTD.
Regeneration and Local Services,Business Durham CL0850,Premises,120021,Energy Costs,09/01/2020,3687832-14777039,"1,656.24",CORONA ENERGY RETAIL 2 LTD.
Regeneration and Local Services,Business Durham CL0850,Premises,120021,Energy Costs,09/01/2020,3687832-14777434,598.07,CORONA ENERGY RETAIL 2 LTD.
Adult and Health Services,Head of Adults,Supplies and Services,338042,Services,09/01/2020,3687838-350287/INVSRG112,910.00,DERE STREET BARRISTERS.
Resources BK0010,Legal & Democratic Services,Supplies and Services,338042,Services,09/01/2020,3687838-348891/INVVK48,750.00,DERE STREET BARRISTERS.
Resources BK0010,Legal & Democratic Services,Supplies and Services,338042,Services,09/01/2020,3687838-350690/INVREB95,850.00,DERE STREET BARRISTERS.
Resources BK0010,Legal & Democratic Services,Supplies and Services,338042,Services,09/01/2020,3687838-351587/INVBD134,"1,000.00",DERE STREET BARRISTERS.
Regeneration and Local Services,Business Durham CL0850,Premises,120009,Energy Costs,09/01/2020,3687842-000006950438,"1,791.47",EDF ENERGY CUSTOMERS PLC T/A EDF ENERGY.
Regeneration and Local Services,Business Durham CL0850,Premises,120009,Energy Costs,09/01/2020,3687842-000006992702,"4,527.92",EDF ENERGY CUSTOMERS PLC T/A EDF ENERGY.
Regeneration and Local Services,Technical Services CM0300,Supplies and Services,304221,Equipment and Materials,09/01/2020,3687845-1912\120,"1,290.95",EPPLETON QUARRY PRODUCTS LTD.
Regeneration and Local Services,Technical Services CM0300,Supplies and Services,304221,Equipment and Materials,09/01/2020,3687845-1912\123,713.13,EPPLETON QUARRY PRODUCTS LTD.
Regeneration and Local Services,Corporate Property and Land,Supplies and Services,338027,Services,09/01/2020,3687847-135819/01,"2,850.00",FAIRHURST (CONSULTING ENGINEERS).
Regeneration and Local Services,Technical Services CM0300,Premises,150015,Apportioned Exps of Operational Blds,09/01/2020,3687850-410173450,"1,020.00",GAP GROUP LTD.
Resources BK0010,Legal & Democratic Services,Supplies and Services,338025,Services,09/01/2020,3687852-F1828,720.00,GORDON FLETCHER & SONS LTD.
Adult and Health Services,Head of Adults,Third Party Payments,478151,Purchase of Care,09/01/2020,3687855-HLC137,"4,028.00",HIGHLEA CARE LTD.
Regeneration and Local Services,Corporate Property and Land,Third Party Payments,430100,Rendered by Private Contractors,09/01/2020,3687857-8612,"1,320.00",INGLEFORD SCAFFOLDING LTD.
Regeneration and Local Services,Culture Sport and Tourism,Supplies and Services,336005,Advertising E336,09/01/2020,3687858-13388,"4,234.57",ISAPPHIRE LTD.
Regeneration and Local Services,Technical Services CM0300,Construction work A908,908105,Construction work,09/01/2020,3687859-23720,"1,097.40",JACK COUPE & SONS LTD T/A COUPE LINE.
Regeneration and Local Services,Business Durham CL0850,Supplies and Services,338066,Services,09/01/2020,3687867-DBOP14,691.00,LEC CONSULTANCY LTD.
Regeneration and Local Services,Corporate Property and Land,Third Party Payments,430100,Rendered by Private Contractors,09/01/2020,3687869-43599,931.00,MCVICKERS LTD.
Regeneration and Local Services,Corporate Property and Land,Third Party Payments,430100,Rendered by Private Contractors,09/01/2020,3687869-43618,808.50,MCVICKERS LTD.
Regeneration and Local Services,Corporate Property and Land,Third Party Payments,430100,Rendered by Private Contractors,09/01/2020,3687869-43622,"1,102.50",MCVICKERS LTD.
Regeneration and Local Services,Culture Sport and Tourism,Supplies and Services,338047,Services,09/01/2020,3687870-FBC749,600.00,MEDIA EXCENTRIQUE.
Transformation and Partnerships,Partnerships & Community Engagement Div.,Supplies and Services,336005,Advertising E336,09/01/2020,3687875-376644,859.74,NATIONAL LEAFLET CO LTD.
Regeneration and Local Services,Transport and Contracted Services,Supplies and Services,384199,Miscellaneous Expenses,09/01/2020,3687880-162348,630.00,PREMIER TRAFFIC MANAGEMENT LTD.
Regeneration and Local Services,Transport and Contracted Services,Supplies and Services,384199,Miscellaneous Expenses,09/01/2020,3687880-162817,"2,220.00",PREMIER TRAFFIC MANAGEMENT LTD.
Resources BK0010,Digital and Customer Services,Supplies and Services,342033,Computers and Communications,09/01/2020,3687883-SIN051801,"4,230.00",REDWAY NETWORKS LTD.
Regeneration and Local Services,Transport and Contracted Services,Supplies and Services,384199,Miscellaneous Expenses,09/01/2020,3687885-RGS-023,"4,000.00",RGS ASSOCIATES.
Transformation and Partnerships,Business Support,Supplies and Services,340001,Postages E340,09/01/2020,3687888-9060027547,"10,164.79",ROYAL MAIL GROUP PLC.
Regeneration and Local Services,Business Durham CL0850,Fees,901002,Consultants fees 901002,09/01/2020,3687889-TEC536048,"1,179.00",RPS CONSULTING SERVICES LTD.
Adult and Health Services,Commissioning inc Supporting People,Third Party Payments,473111,Purchase of Care,09/01/2020,3687897-961,"40,953.00",ST MARGARETS CENTRE.
Regeneration and Local Services,Transport and Contracted Services,Third Party Payments,430106,Rendered by Private Contractors,09/01/2020,3687906-15814,"25,190.00",WEARDALE MOTOR SERVICES LTD.
Regeneration and Local Services,Business Durham CL0850,Supplies and Services,384899,Miscellaneous Expenses,09/01/2020,3687908-WCINV-0471,"5,000.00",WHITECAP CONSULTING LTD.
Children and Young Peoples Services,Head of Education and Skills,Transport,230006,Contract Hire,10/01/2020,3687912-4-DEC,855.00,A & C TAXIS.
Children and Young Peoples Services,Head of Education and Skills,Transport,230006,Contract Hire,10/01/2020,3687913-DECEMBER01-F802,"1,485.00",A & P TAXIS.
Children and Young Peoples Services,Head of Education and Skills,Transport,230006,Contract Hire,10/01/2020,3687913-DECEMBER02-F007,"1,200.00",A & P TAXIS.
Children and Young Peoples Services,Head of Education and Skills,Transport,230009,Contract Hire,10/01/2020,3687913-DECEMBER03-2019,750.00,A & P TAXIS.
Children and Young Peoples Services,Head of Education and Skills,Transport,230007,Contract Hire,10/01/2020,3687913-DECEMBER04,750.00,A & P TAXIS.
Children and Young Peoples Services,Head of Education and Skills,Transport,230006,Contract Hire,10/01/2020,3687914-590,702.00,A BARKER.
Children and Young Peoples Services,Head of Education and Skills,Transport,230006,Contract Hire,10/01/2020,3687914-591,613.20,A BARKER.
Dedicated Schools Grant BG0015,DSG High Needs Block,Transport,230010,Contract Hire,10/01/2020,3687915-76,"2,900.00",A HJ JOBLING T/A CASTLE TAXIS.
Children and Young Peoples Services,Head of Education and Skills,Transport,230009,Contract Hire,10/01/2020,3687917-C17/SR,980.00,AABAT TAXIS.
Children and Young Peoples Services,Head of Education and Skills,Transport,230008,Contract Hire,10/01/2020,3687917-D1/SA/12,"2,175.00",AABAT TAXIS.
Children and Young Peoples Services,Head of Education and Skills,Transport,230012,Contract Hire,10/01/2020,3687917-D12/SN/12,977.10,AABAT TAXIS.
Children and Young Peoples Services,Head of Education and Skills,Transport,230035,Contract Hire,10/01/2020,3687917-D14/SQ/12,656.32,AABAT TAXIS.
Children and Young Peoples Services,Head of Education and Skills,Transport,230012,Contract Hire,10/01/2020,3687917-D16/SS/12,960.00,AABAT TAXIS.
Children and Young Peoples Services,Head of Education and Skills,Transport,230008,Contract Hire,10/01/2020,3687917-D17/ST/12,"2,233.80",AABAT TAXIS.
Children and Young Peoples Services,Head of Education and Skills,Transport,230012,Contract Hire,10/01/2020,3687917-D6/SF/12,735.00,AABAT TAXIS.
Regeneration and Local Services,Culture Sport and Tourism,Supplies and Services,304259,Equipment and Materials,10/01/2020,3687918-90138150-1,"4,880.56",ABACUS LIGHTING LTD.
Regeneration and Local Services,Corporate Property and Land,Third Party Payments,430100,Rendered by Private Contractors,10/01/2020,3687923-43202884-61,"4,700.00",ADT FIRE & SECURITY PLC.
Regeneration and Local Services,Technical Services CM0300,Supplies and Services,304221,Equipment and Materials,10/01/2020,3687925-29182980,"1,183.40",AGGREGATE INDUSTRIES UK LTD.
Regeneration and Local Services,Technical Services CM0300,Supplies and Services,304221,Equipment and Materials,10/01/2020,3687925-29217680,"1,194.38",AGGREGATE INDUSTRIES UK LTD.
Regeneration and Local Services,Technical Services CM0300,Supplies and Services,304221,Equipment and Materials,10/01/2020,3687925-29233355,"1,183.40",AGGREGATE INDUSTRIES UK LTD.
Regeneration and Local Services,Technical Services CM0300,Supplies and Services,304221,Equipment and Materials,10/01/2020,3687925-29273331,720.20,AGGREGATE INDUSTRIES UK LTD.
Regeneration and Local Services,Technical Services CM0300,Supplies and Services,304221,Equipment and Materials,10/01/2020,3687925-29286541,676.40,AGGREGATE INDUSTRIES UK LTD.
Regeneration and Local Services,Technical Services CM0300,Supplies and Services,304221,Equipment and Materials,10/01/2020,3687925-29293203,714.92,AGGREGATE INDUSTRIES UK LTD.
Regeneration and Local Services,Technical Services CM0300,Supplies and Services,304221,Equipment and Materials,10/01/2020,3687925-29293206,730.20,AGGREGATE INDUSTRIES UK LTD.
Regeneration and Local Services,Technical Services CM0300,Supplies and Services,304221,Equipment and Materials,10/01/2020,3687925-29299537,796.00,AGGREGATE INDUSTRIES UK LTD.
Regeneration and Local Services,Technical Services CM0300,Supplies and Services,304221,Equipment and Materials,10/01/2020,3687925-29301940,608.80,AGGREGATE INDUSTRIES UK LTD.
Regeneration and Local Services,Technical Services CM0300,Supplies and Services,304221,Equipment and Materials,10/01/2020,3687925-29302921,752.87,AGGREGATE INDUSTRIES UK LTD.
Children and Young Peoples Services,Head of Education and Skills,Transport,230006,Contract Hire,10/01/2020,3687930-4,585.00,ANDREW ROBSON`S TAXI.
Children and Young Peoples Services,Head of Education and Skills,Transport,230006,Contract Hire,10/01/2020,3687930-4-F534,876.00,ANDREW ROBSON`S TAXI.
Children and Young Peoples Services,Head of Education and Skills,Transport,230008,Contract Hire,10/01/2020,3687931-0084,"1,350.00",ANDREW SIMPSON T/A ANDY`S CABS.
Regeneration and Local Services,Business Durham CL0850,Supplies and Services,304259,Equipment and Materials,10/01/2020,3687939-14908,996.28,ASTRAL CONTROL SERVICES LTD.
Regeneration and Local Services,Business Durham CL0850,Premises,106080,Centrally Controlled Rep and Maint,10/01/2020,3687939-14910,"9,358.74",ASTRAL CONTROL SERVICES LTD.
Regeneration and Local Services,Corporate Property and Land,Premises,108099,Service Repairs and Maintenance,10/01/2020,3687939-14909,"4,973.50",ASTRAL CONTROL SERVICES LTD.
Children and Young Peoples Services,Head of Education and Skills,Transport,230009,Contract Hire,10/01/2020,3687940-04049,718.20,ATLAS TAXIS CONSETT.
Children and Young Peoples Services,Head of Education and Skills,Transport,230008,Contract Hire,10/01/2020,3687941-03,"1,742.00",AUCKLAND TRAVEL.
Children and Young Peoples Services,Head of Education and Skills,Transport,230007,Contract Hire,10/01/2020,3687942-2021219,876.00,AVALON TAXIS.
Children and Young Peoples Services,Head of Education and Skills,Transport,230008,Contract Hire,10/01/2020,3687948-SMITH2/DECEMBER19,620.55,BEELINE PRIVATE HIRE.
Regeneration and Local Services,Technical Services CM0300,Supplies and Services,304221,Equipment and Materials,10/01/2020,3687953-BMPR/287/BJW,636.00,BISHOP MIDDLEHAM PLANT & RECYCLING LTD.
Children and Young Peoples Services,Head of Education and Skills,Transport,230006,Contract Hire,10/01/2020,3687954-F780/12,960.00,BL TAXIS.
Children and Young Peoples Services,Head of Childrens Social Care,Supplies and Services,338066,Services,10/01/2020,3687955-SIN012229,"34,310.39",BLOOM PROCUREMENT SERVICES LTD (FORMERLY NEPRO LTD).
Children and Young Peoples Services,Head of Education and Skills,Transport,230008,Contract Hire,10/01/2020,3687956-27463,717.00,BLUELINE TAXIS.
Children and Young Peoples Services,Head of Education and Skills,Transport,230007,Contract Hire,10/01/2020,3687956-28018,988.80,BLUELINE TAXIS.
Children and Young Peoples Services,Head of Education and Skills,Transport,230008,Contract Hire,10/01/2020,3687957-8012-DEC19,"1,739.56",BOBBY DOVE PRIVATE HIRE.
Children and Young Peoples Services,Head of Education and Skills,Transport,230008,Contract Hire,10/01/2020,3687960-DC15,"1,431.00",BOWES TRAVEL.
Children and Young Peoples Services,Head of Education and Skills,Transport,230008,Contract Hire,10/01/2020,3687962-BZ00330,746.46,BREZ`S TAXIS.
Children and Young Peoples Services,Head of Education and Skills,Transport,230008,Contract Hire,10/01/2020,3687962-BZ00331,766.74,BREZ`S TAXIS.
Regeneration and Local Services,Technical Services CM0300,Third Party Payments,430100,Rendered by Private Contractors,10/01/2020,3687963-45964,"3,702.86",BRIDGEWAY CONSULTING LTD.
Children and Young Peoples Services,Head of Education and Skills,Transport,230008,Contract Hire,10/01/2020,3687966-BIL0181,795.60,CA MUSGROVE.
Adult and Health Services,Head of Adults,Supplies and Services,338366,Services,10/01/2020,3687968-64551,"1,488.10",CARE ABILITY HEALTHCARE LTD.
Adult and Health Services,Head of Adults,Supplies and Services,338366,Services,10/01/2020,3687968-64673,"2,255.50",CARE ABILITY HEALTHCARE LTD.
Adult and Health Services,Head of Adults,Supplies and Services,338366,Services,10/01/2020,3687968-64674,"2,208.50",CARE ABILITY HEALTHCARE LTD.
Adult and Health Services,Commissioning inc Supporting People,Third Party Payments,479111,Purchase of Care,10/01/2020,3687969-4304,"5,052.66",CARERS FEDERATION LTD.
Regeneration and Local Services,Culture Sport and Tourism,Premises,106080,Centrally Controlled Rep and Maint,10/01/2020,3687975-19504337,936.52,CENTRICA BUSINESS SOLUTIONS UK LTD.
Regeneration and Local Services,Culture Sport and Tourism,Premises,106080,Centrally Controlled Rep and Maint,10/01/2020,3687975-19504338,754.93,CENTRICA BUSINESS SOLUTIONS UK LTD.
Children and Young Peoples Services,Head of Education and Skills,Transport,230008,Contract Hire,10/01/2020,3687978-037,"3,252.28",CHANNER`S CABS.
Children and Young Peoples Services,Head of Education and Skills,Transport,230008,Contract Hire,10/01/2020,3687981-CW4-DEC19,"1,203.30",CHIPPERS TAXIS.
Children and Young Peoples Services,Head of Education and Skills,Transport,230008,Contract Hire,10/01/2020,3687981-SS4/12,"1,958.55",CHIPPERS TAXIS.
Children and Young Peoples Services,Head of Education and Skills,Transport,230007,Contract Hire,10/01/2020,3687987-1155,746.34,CLIVE HUBERY.
Regeneration and Local Services,Corporate Property and Land,Supplies and Services,384999,Miscellaneous Expenses,10/01/2020,3687988-19/1423,530.00,CLOSE THORNTON SOLICITORS.
Children and Young Peoples Services,Head of Education and Skills,Transport,230007,Contract Hire,10/01/2020,3687990-C/11113,"2,681.40",COCHRANES T/A KELVIN TRAVEL.
Children and Young Peoples Services,Head of Education and Skills,Transport,230003,Contract Hire,10/01/2020,3687990-C/11114,"2,100.00",COCHRANES T/A KELVIN TRAVEL.
Children and Young Peoples Services,Head of Education and Skills,Transport,230007,Contract Hire,10/01/2020,3687990-C/11116,"2,700.00",COCHRANES T/A KELVIN TRAVEL.
Children and Young Peoples Services,Head of Education and Skills,Transport,230003,Contract Hire,10/01/2020,3687990-C/1115,"2,227.50",COCHRANES T/A KELVIN TRAVEL.
Children and Young Peoples Services,Head of Education and Skills,Transport,230007,Contract Hire,10/01/2020,3687993-DCC/4003/DEC19,"1,448.10",COUNTY COACHES.
Children and Young Peoples Services,Head of Education and Skills,Transport,230003,Contract Hire,10/01/2020,3687993-DCC/4016/DEC19,"1,706.10",COUNTY COACHES.
Children and Young Peoples Services,Head of Education and Skills,Transport,230003,Contract Hire,10/01/2020,3687993-DCC/4021/DEC19,"1,923.30",COUNTY COACHES.
Children and Young Peoples Services,Head of Education and Skills,Transport,230003,Contract Hire,10/01/2020,3687993-DCC/4025/DEC19,"1,675.05",COUNTY COACHES.
Regeneration and Local Services,Technical Services CM0300,Third Party Payments,430100,Rendered by Private Contractors,10/01/2020,3687995-INV-1818,"3,940.00",D & J FRANKS PLUMBING & HEATING LTD.
Children and Young Peoples Services,Head of Education and Skills,Transport,230035,Contract Hire,10/01/2020,3687996-BEC1219,532.00,D IRVING T/A BJ TAXIS.
Children and Young Peoples Services,Head of Education and Skills,Transport,230006,Contract Hire,10/01/2020,3687996-THOR1219,869.49,D IRVING T/A BJ TAXIS.
Children and Young Peoples Services,Head of Education and Skills,Transport,230008,Contract Hire,10/01/2020,3687997-1655,"1,120.00",DA TAXIS.
Children and Young Peoples Services,Head of Education and Skills,Transport,230008,Contract Hire,10/01/2020,3687997-1656,"1,347.36",DA TAXIS.
Children and Young Peoples Services,Head of Education and Skills,Transport,230008,Contract Hire,10/01/2020,3687997-1657,"1,050.00",DA TAXIS.
Children and Young Peoples Services,Head of Education and Skills,Transport,230008,Contract Hire,10/01/2020,3687997-1658,"1,358.40",DA TAXIS.
Children and Young Peoples Services,Head of Education and Skills,Transport,230008,Contract Hire,10/01/2020,3687997-1659,"1,151.70",DA TAXIS.
Children and Young Peoples Services,Head of Education and Skills,Transport,230012,Contract Hire,10/01/2020,3687998-383,793.80,DA TRAVEL.
Children and Young Peoples Services,Head of Education and Skills,Transport,230016,Contract Hire,10/01/2020,3687998-384,900.00,DA TRAVEL.
Children and Young Peoples Services,Head of Education and Skills,Transport,230007,Contract Hire,10/01/2020,3688001-G004,579.52,DAVID BRIDDICK T/A COUNDONS TAXIS.
Children and Young Peoples Services,Head of Education and Skills,Transport,230008,Contract Hire,10/01/2020,3688004-0064,"3,946.05",DAVID WALKER TAXIS.
Children and Young Peoples Services,Head of Education and Skills,Transport,230008,Contract Hire,10/01/2020,3688006-1219-001,"1,200.00",DCM TAXIS.
Children and Young Peoples Services,Head of Education and Skills,Transport,230008,Contract Hire,10/01/2020,3688010-004/12,"2,047.50",DEXTERS PRIVATE HIRE.
Regeneration and Local Services,Environmental Services,Third Party Payments,430101,Rendered by Private Contractors,10/01/2020,3688012-IV1223296,"1,182.90",DIRECT TYRE MANAGEMENT LTD (DTM).
Regeneration and Local Services,Technical Services CM0300,Supplies and Services,304221,Equipment and Materials,10/01/2020,3688028-1912\126,705.04,EPPLETON QUARRY PRODUCTS LTD.
Children and Young Peoples Services,Head of Education and Skills,Transport,230008,Contract Hire,10/01/2020,3688038-012-DEC19,"1,128.00",FRANK ATKINSON T/A FJ MINIBUS TRAVEL.
Regeneration and Local Services,Culture Sport and Tourism,Premises,106080,Centrally Controlled Rep and Maint,10/01/2020,3688040-16398,500.00,FT LEISURE LTD.
Regeneration and Local Services,Technical Services CM0300,Supplies and Services,304357,Equipment and Materials,10/01/2020,3688041-DCC081219,"20,902.34",GAP GROUP LTD.
Children and Young Peoples Services,Head of Childrens Social Care,Employees,080025,Agency Staff,10/01/2020,3688045-2435051,"57,872.69",GEOMETRIC RESULTS INTERNATIONAL.
Children and Young Peoples Services,Head of Education and Skills,Transport,230008,Contract Hire,10/01/2020,3688049-004-DEC,"1,533.00",GMC TAXIS NORTH EAST.
Regeneration and Local Services,Culture Sport and Tourism,Supplies and Services,384199,Miscellaneous Expenses,10/01/2020,3688051-0005,546.00,REDACTED - PAYMENT TO INDIVIDUAL
Resources BK0010,Corporate Finance & Commercial Services,Supplies and Services,338220,Services,10/01/2020,3688059-F2F07AND8,"1,386.00",HARTLEPOOL & EAST DURHAM MIND.
Children and Young Peoples Services,Head of Education and Skills,Transport,230008,Contract Hire,10/01/2020,3688060-4/12,"1,913.50",HENRY FOREMAN T/A HENRY`S TAXIS.
Children and Young Peoples Services,Head of Early Help Inclusion & Vulnerable Children.,Premises,108135,Service Repairs and Maintenance,10/01/2020,3688066-7080801079,"5,477.83",HONEYWELL NOVAR SYSTEMS LTD.
Regeneration and Local Services,Corporate Property and Land,Premises,108099,Service Repairs and Maintenance,10/01/2020,3688066-7080801075,"37,794.00",HONEYWELL NOVAR SYSTEMS LTD.
Regeneration and Local Services,Corporate Property and Land,Premises,108099,Service Repairs and Maintenance,10/01/2020,3688066-7080801076,"2,376.50",HONEYWELL NOVAR SYSTEMS LTD.
Regeneration and Local Services,Corporate Property and Land,Premises,106080,Centrally Controlled Rep and Maint,10/01/2020,3688066-7080801080,"4,651.85",HONEYWELL NOVAR SYSTEMS LTD.
Regeneration and Local Services,Culture Sport and Tourism,Premises,106080,Centrally Controlled Rep and Maint,10/01/2020,3688066-7080801078,993.28,HONEYWELL NOVAR SYSTEMS LTD.
Regeneration and Local Services,Culture Sport and Tourism,Premises,106080,Centrally Controlled Rep and Maint,10/01/2020,3688066-7080801081,"3,115.44",HONEYWELL NOVAR SYSTEMS LTD.
Regeneration and Local Services,Culture Sport and Tourism,Premises,106080,Centrally Controlled Rep and Maint,10/01/2020,3688066-7080801085,"5,955.82",HONEYWELL NOVAR SYSTEMS LTD.
Regeneration and Local Services,Environmental Services,Premises,108099,Service Repairs and Maintenance,10/01/2020,3688066-7080801083,"4,744.14",HONEYWELL NOVAR SYSTEMS LTD.
Children and Young Peoples Services,Head of Early Help Inclusion & Vulnerable Children.,Supplies and Services,304259,Equipment and Materials,10/01/2020,3688070-32813,"4,000.00",HPC LASER LTD.
Adult and Health Services,Head of Adults,Transport,230005,Contract Hire,10/01/2020,3688071-IRI912004,"1,425.00",I & R EXECUTIVE TRAVEL.
Children and Young Peoples Services,Head of Education and Skills,Transport,230008,Contract Hire,10/01/2020,3688071-IRI912002,"1,468.48",I & R EXECUTIVE TRAVEL.
Regeneration and Local Services,Corporate Property and Land,Supplies and Services,304221,Equipment and Materials,10/01/2020,3688073-8618,686.00,INGLEFORD SCAFFOLDING LTD.
Regeneration and Local Services,Technical Services CM0300,Construction work A908,908105,Construction work,10/01/2020,3688078-23685,972.00,JACK COUPE & SONS LTD T/A COUPE LINE.
Children and Young Peoples Services,Head of Education and Skills,Transport,230008,Contract Hire,10/01/2020,3688079-0737,"1,275.00",JACKSON`S TAXI.
Children and Young Peoples Services,Head of Education and Skills,Transport,230006,Contract Hire,10/01/2020,3688080-DCC0015,540.00,JANICE BRADSHAW T/A JAN PRIVATE HIRE.
Children and Young Peoples Services,Head of Education and Skills,Transport,230008,Contract Hire,10/01/2020,3688083-2952,"1,365.45",JEFF ANDERSON COACHES LTD.
Children and Young Peoples Services,Head of Education and Skills,Transport,230008,Contract Hire,10/01/2020,3688083-2953,"1,288.35",JEFF ANDERSON COACHES LTD.
Children and Young Peoples Services,Head of Education and Skills,Transport,230008,Contract Hire,10/01/2020,3688083-2954,"1,447.35",JEFF ANDERSON COACHES LTD.
Children and Young Peoples Services,Head of Education and Skills,Transport,230007,Contract Hire,10/01/2020,3688083-2955,"1,217.40",JEFF ANDERSON COACHES LTD.
Children and Young Peoples Services,Head of Education and Skills,Transport,230008,Contract Hire,10/01/2020,3688086-20/12/2019A,"1,379.00",JL EBDON. T/A DIAL-A-CAB.
Children and Young Peoples Services,Head of Education and Skills,Transport,230008,Contract Hire,10/01/2020,3688086-20/12/2019B,"1,904.00",JL EBDON. T/A DIAL-A-CAB.
Children and Young Peoples Services,Head of Education and Skills,Transport,230008,Contract Hire,10/01/2020,3688086-20/12/2019C,"1,540.42",JL EBDON. T/A DIAL-A-CAB.
Children and Young Peoples Services,Head of Education and Skills,Transport,230008,Contract Hire,10/01/2020,3688086-20/12/2019D,"1,190.00",JL EBDON. T/A DIAL-A-CAB.
Children and Young Peoples Services,Head of Education and Skills,Transport,230008,Contract Hire,10/01/2020,3688086-20/12/2019F,"2,196.00",JL EBDON. T/A DIAL-A-CAB.
Children and Young Peoples Services,Head of Education and Skills,Transport,230034,Contract Hire,10/01/2020,3688086-20/12/2019G,"1,215.00",JL EBDON. T/A DIAL-A-CAB.
Adult and Health Services,Head of Adults,Transport,230005,Contract Hire,10/01/2020,3688087-01122019,620.40,JOHN HUBBLE T/A HUBB`S TAXIS.
Children and Young Peoples Services,Head of Early Help Inclusion & Vulnerable Children.,Transport,230007,Contract Hire,10/01/2020,3688088-177,826.00,JOHN ROBSON T/A ACE TAXIS.
Regeneration and Local Services,Corporate Property and Land,Construction work A908,908105,Construction work,10/01/2020,3688089-0000082241,"17,751.82",JOHN WADE (HAULAGE) LTD.
Children and Young Peoples Services,Head of Education and Skills,Transport,230008,Contract Hire,10/01/2020,3688093-1041,"1,845.00",K & R TAXIS (STANLEY).
Children and Young Peoples Services,Head of Education and Skills,Transport,230008,Contract Hire,10/01/2020,3688093-1042,"1,995.00",K & R TAXIS (STANLEY).
Children and Young Peoples Services,Head of Education and Skills,Transport,230008,Contract Hire,10/01/2020,3688093-1043,"2,389.50",K & R TAXIS (STANLEY).
Children and Young Peoples Services,Head of Education and Skills,Transport,230008,Contract Hire,10/01/2020,3688093-1044,"1,590.00",K & R TAXIS (STANLEY).
Children and Young Peoples Services,Head of Education and Skills,Transport,230008,Contract Hire,10/01/2020,3688093-1045,"1,860.00",K & R TAXIS (STANLEY).
Children and Young Peoples Services,Head of Education and Skills,Transport,230007,Contract Hire,10/01/2020,3688093-1046,"1,428.00",K & R TAXIS (STANLEY).
Children and Young Peoples Services,Head of Education and Skills,Transport,230009,Contract Hire,10/01/2020,3688097-2138,"1,065.40",KEN HINDS.
Adult and Health Services,Head of Adults,Transport,230005,Contract Hire,10/01/2020,3688102-004,"1,785.00",KULDEEP MAHIL T/A KOLARS CAB.
Children and Young Peoples Services,Head of Education and Skills,Transport,230012,Contract Hire,10/01/2020,3688106-4710,"1,125.00",LOCAL TRANSPORT LTD.
Regeneration and Local Services,Corporate Property and Land,Premises,108099,Service Repairs and Maintenance,10/01/2020,3688108-100178,"1,600.00",LUCION ENVIRONMENTAL LLP LTD.
Children and Young Peoples Services,Head of Education and Skills,Transport,230007,Contract Hire,10/01/2020,3688112-11/1913,"1,406.00",MARK & JOHN CHISHOLM T/A (CHEVRON).
Children and Young Peoples Services,Head of Education and Skills,Transport,230009,Contract Hire,10/01/2020,3688112-11/1925,"1,768.32",MARK & JOHN CHISHOLM T/A (CHEVRON).
Children and Young Peoples Services,Head of Education and Skills,Transport,230007,Contract Hire,10/01/2020,3688112-12/1913,"1,110.00",MARK & JOHN CHISHOLM T/A (CHEVRON).
Children and Young Peoples Services,Head of Education and Skills,Transport,230009,Contract Hire,10/01/2020,3688112-INV11/1924,716.00,MARK & JOHN CHISHOLM T/A (CHEVRON).
Dedicated Schools Grant BG0015,DSG High Needs Block,Transport,230010,Contract Hire,10/01/2020,3688112-12/1904,"1,665.00",MARK & JOHN CHISHOLM T/A (CHEVRON).
Children and Young Peoples Services,Head of Education and Skills,Transport,230007,Contract Hire,10/01/2020,3688118-0257,855.72,MICKS TAXIS - MURTON.
Children and Young Peoples Services,Head of Education and Skills,Transport,230007,Contract Hire,10/01/2020,3688118-0259,960.00,MICKS TAXIS - MURTON.
Children and Young Peoples Services,Head of Education and Skills,Transport,230007,Contract Hire,10/01/2020,3688118-0260,744.45,MICKS TAXIS - MURTON.
Children and Young Peoples Services,Head of Education and Skills,Transport,230006,Contract Hire,10/01/2020,3688118-0261,624.00,MICKS TAXIS - MURTON.
Children and Young Peoples Services,Head of Education and Skills,Transport,230006,Contract Hire,10/01/2020,3688124-952,"1,037.16",MR AD HOWARD T/A TOFT HILL TAXIS.
Children and Young Peoples Services,Head of Education and Skills,Transport,230034,Contract Hire,10/01/2020,3688125-AT206,750.00,MR AG WILSON T/A ALAN`S TAXIS (DURHAM CITY).
Children and Young Peoples Services,Head of Education and Skills,Transport,230008,Contract Hire,10/01/2020,3688126-4-M019,"1,118.00",MR BW YOUNG T/A ESH TAXIS.
Children and Young Peoples Services,Head of Education and Skills,Transport,230007,Contract Hire,10/01/2020,3688128-171,560.00,MR DAVID CULLEN T/A JED`S TAXIS.
Children and Young Peoples Services,Head of Education and Skills,Transport,230012,Contract Hire,10/01/2020,3688129-E136/12,673.54,MR DEREK HENDERSON.
Children and Young Peoples Services,Head of Education and Skills,Transport,230035,Contract Hire,10/01/2020,3688130-KDK/DEC19,667.20,MR IAN KELSEY T/A KDK TAXIS.
Children and Young Peoples Services,Head of Education and Skills,Transport,230006,Contract Hire,10/01/2020,3688131-OC/12/19,900.00,MR J AGAR T/A PARK TAXIS.
Dedicated Schools Grant BG0015,DSG High Needs Block,Transport,230010,Contract Hire,10/01/2020,3688133-4-DEC,"1,692.15",MR M FARREY T/A TK TAXIS.
Children and Young Peoples Services,Head of Education and Skills,Transport,230006,Contract Hire,10/01/2020,3688135-0042,"1,518.00",MR PM MULLEN T/A CATHEDRAL TAXIS.
Children and Young Peoples Services,Head of Education and Skills,Transport,230008,Contract Hire,10/01/2020,3688136-23B-DEC,"1,273.05",MR RAYMOND RENWICK T/A RAY`S TAXIS & MINIBUSES.
Children and Young Peoples Services,Head of Education and Skills,Transport,230008,Contract Hire,10/01/2020,3688136-24A-N031,"1,209.45",MR RAYMOND RENWICK T/A RAY`S TAXIS & MINIBUSES.
Children and Young Peoples Services,Head of Education and Skills,Transport,230007,Contract Hire,10/01/2020,3688137-ESH1119,636.60,MR STUART SCOTT T/A AIRPORT CARS DURHAM
Children and Young Peoples Services,Head of Education and Skills,Transport,230009,Contract Hire,10/01/2020,3688137-FIN1119,800.00,MR STUART SCOTT T/A AIRPORT CARS DURHAM
Children and Young Peoples Services,Head of Education and Skills,Transport,230009,Contract Hire,10/01/2020,3688137-FIN1219,592.00,MR STUART SCOTT T/A AIRPORT CARS DURHAM
Children and Young Peoples Services,Head of Education and Skills,Transport,230008,Contract Hire,10/01/2020,3688143-59,"1,432.20",NEIL PASSMOOR T/A NEIL`S TAXI.
Children and Young Peoples Services,Head of Early Help Inclusion & Vulnerable Children.,Third Party Payments,479101,Purchase of Care,10/01/2020,3688147-4010000805,"1,219.50",NHS SYNCHRONICITY CARE LTD.
Children and Young Peoples Services,Head of Education and Skills,Transport,230007,Contract Hire,10/01/2020,3688150-INV-6360,"1,706.10",NORTH EAST COACHWAYS LTD.
Children and Young Peoples Services,Head of Education and Skills,Transport,230007,Contract Hire,10/01/2020,3688162-8030,"1,768.20",OVERLANDER LTD.
Children and Young Peoples Services,Head of Education and Skills,Transport,230003,Contract Hire,10/01/2020,3688162-8031,"1,654.95",OVERLANDER LTD.
Children and Young Peoples Services,Head of Education and Skills,Transport,230003,Contract Hire,10/01/2020,3688162-8032,"1,964.70",OVERLANDER LTD.
Children and Young Peoples Services,Head of Education and Skills,Transport,230008,Contract Hire,10/01/2020,3688162-8033,"1,221.00",OVERLANDER LTD.
Children and Young Peoples Services,Head of Education and Skills,Transport,230008,Contract Hire,10/01/2020,3688162-8034,"1,194.20",OVERLANDER LTD.
Children and Young Peoples Services,Head of Education and Skills,Transport,230034,Contract Hire,10/01/2020,3688164-SC-505,"1,040.00",PAUL BURRELL T/A PAUL BURRELL TAXIS.
Dedicated Schools Grant BG0015,DSG High Needs Block,Transport,230035,Contract Hire,10/01/2020,3688164-SC-504,"1,200.00",PAUL BURRELL T/A PAUL BURRELL TAXIS.
Children and Young Peoples Services,Head of Education and Skills,Transport,230006,Contract Hire,10/01/2020,3688166-1847,810.00,PAUL WATSON TRAVEL.
Children and Young Peoples Services,Head of Education and Skills,Transport,230008,Contract Hire,10/01/2020,3688167-DCC276,"1,273.05",PAUL`S TAXIS..
Children and Young Peoples Services,Head of Education and Skills,Transport,230008,Contract Hire,10/01/2020,3688167-DCC277,"1,005.60",PAUL`S TAXIS..
Children and Young Peoples Services,Head of Education and Skills,Transport,230008,Contract Hire,10/01/2020,3688168-M01205,"1,200.00",PB PRIVATE HIRE.
Children and Young Peoples Services,Head of Education and Skills,Transport,230008,Contract Hire,10/01/2020,3688168-N07405,"1,355.85",PB PRIVATE HIRE.
Children and Young Peoples Services,Head of Education and Skills,Transport,230012,Contract Hire,10/01/2020,3688168-S03005,675.00,PB PRIVATE HIRE.
Children and Young Peoples Services,Head of Education and Skills,Transport,230007,Contract Hire,10/01/2020,3688169-1075-3037,"1,425.00",PBS TRAVEL LTD.
Children and Young Peoples Services,Head of Education and Skills,Transport,230007,Contract Hire,10/01/2020,3688169-1075-3058,"1,275.00",PBS TRAVEL LTD.
Children and Young Peoples Services,Head of Education and Skills,Transport,230007,Contract Hire,10/01/2020,3688169-1075-3065,"1,485.00",PBS TRAVEL LTD.
Adult and Health Services,Head of Adults,Transport,230005,Contract Hire,10/01/2020,3688175-DM204-DEC,990.00,PETER`S TAXIS.
Children and Young Peoples Services,Head of Education and Skills,Transport,230034,Contract Hire,10/01/2020,3688175-2074-DEC,"1,357.70",PETER`S TAXIS.
Children and Young Peoples Services,Head of Education and Skills,Transport,230006,Contract Hire,10/01/2020,3688175-F711-DEC,900.00,PETER`S TAXIS.
Children and Young Peoples Services,Head of Education and Skills,Transport,230006,Contract Hire,10/01/2020,3688175-F789-DEC,"1,665.00",PETER`S TAXIS.
Children and Young Peoples Services,Head of Education and Skills,Transport,230007,Contract Hire,10/01/2020,3688175-N103-DEC,"1,650.00",PETER`S TAXIS.
Children and Young Peoples Services,Head of Education and Skills,Transport,230034,Contract Hire,10/01/2020,3688172-641,"1,235.40",PETERLEE EXECUTIVE CARS.
Children and Young Peoples Services,Head of Education and Skills,Transport,230006,Contract Hire,10/01/2020,3688172-642,672.00,PETERLEE EXECUTIVE CARS.
Children and Young Peoples Services,Head of Education and Skills,Transport,230008,Contract Hire,10/01/2020,3688172-643,"1,036.00",PETERLEE EXECUTIVE CARS.
Children and Young Peoples Services,Head of Education and Skills,Transport,230008,Contract Hire,10/01/2020,3688179-1334,"2,136.15",PODA TAXIS LTD.
Children and Young Peoples Services,Head of Education and Skills,Transport,230008,Contract Hire,10/01/2020,3688179-1335,954.75,PODA TAXIS LTD.
Children and Young Peoples Services,Head of Education and Skills,Transport,230012,Contract Hire,10/01/2020,3688179-1336,"1,065.00",PODA TAXIS LTD.
Regeneration and Local Services,Technical Services CM0300,Third Party Payments,430100,Rendered by Private Contractors,10/01/2020,3688186-18283,640.00,PRM FABRICATIONS LTD.
Children and Young Peoples Services,Head of Education and Skills,Transport,230034,Contract Hire,10/01/2020,3688192-RDS054,896.00,RDS TAXI.
Regeneration and Local Services,Corporate Property and Land,Supplies and Services,372009,Subscriptions E372,10/01/2020,3688194-02723441FTI,580.00,RICS BOOKS.*
Children and Young Peoples Services,Head of Education and Skills,Transport,230003,Contract Hire,10/01/2020,3688198-ROXDCC111,"2,250.00",ROXBYS BUS HIRE.
Children and Young Peoples Services,Head of Education and Skills,Transport,230003,Contract Hire,10/01/2020,3688198-ROXDCC112,"1,950.00",ROXBYS BUS HIRE.
Children and Young Peoples Services,Head of Education and Skills,Transport,230003,Contract Hire,10/01/2020,3688198-ROXDCC113,"4,171.50",ROXBYS BUS HIRE.
Children and Young Peoples Services,Head of Education and Skills,Transport,230034,Contract Hire,10/01/2020,3688209-75372,"1,680.00",SHOTTON PRIVATE HIRE.
Regeneration and Local Services,Corporate Property and Land,Supplies and Services,304221,Equipment and Materials,10/01/2020,3688212-2450344446,"7,404.50",SIKA LTD.
Children and Young Peoples Services,Head of Education and Skills,Transport,230012,Contract Hire,10/01/2020,3688213-2018,"1,302.00",SIMONS TAXIS.
Children and Young Peoples Services,Head of Education and Skills,Transport,230006,Contract Hire,10/01/2020,3688213-2019,783.96,SIMONS TAXIS.
Transformation and Partnerships,Strategy,Supplies and Services,372009,Subscriptions E372,10/01/2020,3688217-76526,595.00,SNAP SURVEYS LTD.
Children and Young Peoples Services,Head of Education and Skills,Transport,230008,Contract Hire,10/01/2020,3688219-00028,"1,200.00",SPENNYMOOR TAXIS.
Children and Young Peoples Services,Head of Education and Skills,Transport,230008,Contract Hire,10/01/2020,3688219-AS00029,720.00,SPENNYMOOR TAXIS.
Children and Young Peoples Services,Head of Education and Skills,Transport,230006,Contract Hire,10/01/2020,3688219-CB00026,"1,500.00",SPENNYMOOR TAXIS.
Children and Young Peoples Services,Head of Education and Skills,Transport,230012,Contract Hire,10/01/2020,3688219-EJ00024,"1,322.70",SPENNYMOOR TAXIS.
Dedicated Schools Grant BG0015,DSG High Needs Block,Transport,230010,Contract Hire,10/01/2020,3688219-AL00025,"2,056.47",SPENNYMOOR TAXIS.
Children and Young Peoples Services,Head of Education and Skills,Transport,230006,Contract Hire,10/01/2020,3688228-SI-204,902.50,STEVEN PRATT T/A PTL TAXIS DURHAM.
Children and Young Peoples Services,Head of Education and Skills,Transport,230003,Contract Hire,10/01/2020,3688233-15112SB,861.00,T MOORE & SON.
Children and Young Peoples Services,Head of Education and Skills,Transport,230006,Contract Hire,10/01/2020,3688233-15212BC,948.95,T MOORE & SON.
Children and Young Peoples Services,Head of Education and Skills,Transport,230003,Contract Hire,10/01/2020,3688233-15312SL,"1,110.00",T MOORE & SON.
Children and Young Peoples Services,Head of Education and Skills,Transport,230003,Contract Hire,10/01/2020,3688233-15412SL,"1,212.70",T MOORE & SON.
Children and Young Peoples Services,Head of Education and Skills,Transport,230007,Contract Hire,10/01/2020,3688233-15512WA,"1,348.76",T MOORE & SON.
Children and Young Peoples Services,Head of Education and Skills,Transport,230007,Contract Hire,10/01/2020,3688233-15612PA,"1,282.50",T MOORE & SON.
Children and Young Peoples Services,Head of Education and Skills,Transport,230008,Contract Hire,10/01/2020,3688235-1620,"1,551.00",TALBOTS TAXIS.
Children and Young Peoples Services,Head of Education and Skills,Transport,230008,Contract Hire,10/01/2020,3688236-B1019,"1,400.00",TALBOTS TRAVEL LTD.
Children and Young Peoples Services,Head of Education and Skills,Transport,230008,Contract Hire,10/01/2020,3688236-B1020,"1,400.00",TALBOTS TRAVEL LTD.
Children and Young Peoples Services,Head of Education and Skills,Transport,230008,Contract Hire,10/01/2020,3688236-B1021,"1,370.20",TALBOTS TRAVEL LTD.
Regeneration and Local Services,Technical Services CM0300,Supplies and Services,304221,Equipment and Materials,10/01/2020,3688237-9041271474,"1,513.70",TARMAC TRADING LTD.
Dedicated Schools Grant BG0015,DSG High Needs Block,Transport,230010,Contract Hire,10/01/2020,3688239-DCC/2018-19/010,"2,544.50",TAYLOR`S TAXIS.
Regeneration and Local Services,Corporate Property and Land,Supplies and Services,304221,Equipment and Materials,10/01/2020,3688250-122315,"1,850.00",TOMMY WARDLE.
Regeneration and Local Services,Community Protection,Supplies and Services,338045,Services,10/01/2020,3688255-266661/INVCH12,"11,500.00",TRINITY CHAMBERS.
Regeneration and Local Services,Technical Services CM0300,Supplies and Services,304221,Equipment and Materials,10/01/2020,3688260-206648,737.30,TYNEDALE ROADSTONE LTD.
Resources BK0010,People & Talent Management,Supplies and Services,304083,Equipment and Materials,10/01/2020,3688264-1800166,696.65,USHAW COLLEGE.
Regeneration and Local Services,Environmental Services,Supplies and Services,304259,Equipment and Materials,10/01/2020,3688268-0005008320,"1,365.00",VISION TECHNIQUES (UK) LTD.
Children and Young Peoples Services,Head of Education and Skills,Transport,230006,Contract Hire,10/01/2020,3688270-F702/12,999.60,WAINE SANDERSON T/A 1A CAB.
Regeneration and Local Services,Development and Housing,Premises,106080,Centrally Controlled Rep and Maint,10/01/2020,3688271-11891,"6,989.85",WATERMAN ENVIRONMENTAL SERVICES.
Regeneration and Local Services,Environmental Services,Supplies and Services,384199,Miscellaneous Expenses,10/01/2020,3688273-1045,"7,275.00",WAVEHILL SOCIAL & ECONOMIC RESEARCH.
Regeneration and Local Services,Environmental Services,Supplies and Services,384199,Miscellaneous Expenses,10/01/2020,3688273-1147,"7,275.00",WAVEHILL SOCIAL & ECONOMIC RESEARCH.
Regeneration and Local Services,Technical Services CM0300,Third Party Payments,430100,Rendered by Private Contractors,10/01/2020,3688275-201950305,554.00,WEMO-TEC UK LTD.
Regeneration and Local Services,Corporate Property and Land,Supplies and Services,338027,Services,10/01/2020,3688277-3446766,547.00,WOMBLE BOND DICKINSON (UK) LLP.
Adult and Health Services,Head of Adults,Transport,230005,Contract Hire,13/01/2020,3688304-D11/SM/12,"1,416.15",AABAT TAXIS.
Adult and Health Services,Head of Adults,Transport,230005,Contract Hire,13/01/2020,3688304-D18/SV/12,627.88,AABAT TAXIS.
Adult and Health Services,Head of Adults,Transport,230005,Contract Hire,13/01/2020,3688304-D2/SB/12,"1,200.00",AABAT TAXIS.
Children and Young Peoples Services,Head of Education and Skills,Transport,230008,Contract Hire,13/01/2020,3688304-D10/SL/12,846.72,AABAT TAXIS.
Children and Young Peoples Services,Head of Education and Skills,Transport,230009,Contract Hire,13/01/2020,3688304-D15/SR/12,735.00,AABAT TAXIS.
Children and Young Peoples Services,Head of Education and Skills,Transport,230007,Contract Hire,13/01/2020,3688304-D19/SU,"1,050.00",AABAT TAXIS.
Children and Young Peoples Services,Head of Education and Skills,Transport,230008,Contract Hire,13/01/2020,3688304-D20/SW,"1,003.83",AABAT TAXIS.
Children and Young Peoples Services,Head of Education and Skills,Transport,230016,Contract Hire,13/01/2020,3688304-D3/SC/12,"1,540.00",AABAT TAXIS.
Children and Young Peoples Services,Head of Education and Skills,Transport,230008,Contract Hire,13/01/2020,3688304-D4/SD,"1,666.00",AABAT TAXIS.
Children and Young Peoples Services,Head of Education and Skills,Transport,230012,Contract Hire,13/01/2020,3688305-1/12/19,"1,113.90",ABA TAXIS.
Children and Young Peoples Services,Head of Education and Skills,Transport,230034,Contract Hire,13/01/2020,3688308-829,"1,140.00",AC TAXIS.
Dedicated Schools Grant BG0015,DSG High Needs Block,Transport,230010,Contract Hire,13/01/2020,3688308-830,"1,267.50",AC TAXIS.
Children and Young Peoples Services,Head of Education and Skills,Transport,230007,Contract Hire,13/01/2020,3688309-AC012,900.00,ACE TAXIS (WINSTON).
Regeneration and Local Services,Environmental Services,Transport,230005,Contract Hire,13/01/2020,3688310-I1932594,752.68,ACL HIRE LTD.
Regeneration and Local Services,Environmental Services,Transport,230005,Contract Hire,13/01/2020,3688310-I1932595,752.68,ACL HIRE LTD.
Regeneration and Local Services,Corporate Property and Land,Third Party Payments,430100,Rendered by Private Contractors,13/01/2020,3688312-43203297-61,750.00,ADT FIRE & SECURITY PLC.
Regeneration and Local Services,Technical Services CM0300,Supplies and Services,304221,Equipment and Materials,13/01/2020,3688315-29308001,"2,034.08",AGGREGATE INDUSTRIES UK LTD.
Regeneration and Local Services,Technical Services CM0300,Supplies and Services,304221,Equipment and Materials,13/01/2020,3688315-29321081,"1,092.72",AGGREGATE INDUSTRIES UK LTD.
Regeneration and Local Services,Technical Services CM0300,Supplies and Services,304221,Equipment and Materials,13/01/2020,3688315-29321082,"9,633.56",AGGREGATE INDUSTRIES UK LTD.
Regeneration and Local Services,Technical Services CM0300,Supplies and Services,304221,Equipment and Materials,13/01/2020,3688315-29321083,600.24,AGGREGATE INDUSTRIES UK LTD.
Transformation and Partnerships,Partnerships & Community Engagement Div.,Supplies and Services,338099,Services,13/01/2020,3688316-2418,"4,967.00",ALAN HILLARY EVENTS LTD.
Children and Young Peoples Services,Head of Education and Skills,Transport,230012,Contract Hire,13/01/2020,3688317-38895883,"1,600.35",ALAN SOUTHERN T/A ALANS TAXIS PELTON FELL.
Children and Young Peoples Services,Head of Education and Skills,Transport,230007,Contract Hire,13/01/2020,3688318-232,885.00,ALANS TAXIS BARNARD CASTLE.
Regeneration and Local Services,Business Durham CL0850,Construction work A908,908105,Construction work,13/01/2020,3688319-167471,740.28,ALBANY OFFICE EQUIPMENT (WHOLESALE) LTD.
Children and Young Peoples Services,Head of Education and Skills,Transport,230008,Contract Hire,13/01/2020,3688324-M002-DEC,"1,483.20",ANDREW PYGALL T/A ARP TAXIS.
Children and Young Peoples Services,Head of Education and Skills,Transport,230008,Contract Hire,13/01/2020,3688337-740,"1,632.00",AT TAXIS LTD.
Children and Young Peoples Services,Head of Education and Skills,Transport,230008,Contract Hire,13/01/2020,3688337-741,"1,894.40",AT TAXIS LTD.
Children and Young Peoples Services,Head of Education and Skills,Transport,230008,Contract Hire,13/01/2020,3688337-742,592.00,AT TAXIS LTD.
Children and Young Peoples Services,Head of Education and Skills,Transport,230008,Contract Hire,13/01/2020,3688339-DCC04DEC19,"2,275.00",ATLAS TAXIS BISHOP AUCKLAND.
Children and Young Peoples Services,Head of Education and Skills,Transport,230008,Contract Hire,13/01/2020,3688339-DCC11DEC19,592.00,ATLAS TAXIS BISHOP AUCKLAND.
Children and Young Peoples Services,Head of Education and Skills,Transport,230008,Contract Hire,13/01/2020,3688339-DCC12DEC19,"1,470.00",ATLAS TAXIS BISHOP AUCKLAND.
Children and Young Peoples Services,Head of Education and Skills,Transport,230008,Contract Hire,13/01/2020,3688339-DCC13DEC19,"1,680.00",ATLAS TAXIS BISHOP AUCKLAND.
Children and Young Peoples Services,Head of Education and Skills,Transport,230008,Contract Hire,13/01/2020,3688339-DCC18DEC19,"1,950.00",ATLAS TAXIS BISHOP AUCKLAND.
Children and Young Peoples Services,Head of Education and Skills,Transport,230008,Contract Hire,13/01/2020,3688339-DCC19DEC19,"1,950.00",ATLAS TAXIS BISHOP AUCKLAND.
Children and Young Peoples Services,Head of Education and Skills,Transport,230008,Contract Hire,13/01/2020,3688339-DCC7DEC19,"1,974.30",ATLAS TAXIS BISHOP AUCKLAND.
Children and Young Peoples Services,Head of Education and Skills,Transport,230008,Contract Hire,13/01/2020,3688339-DCC8DEC19,"2,025.00",ATLAS TAXIS BISHOP AUCKLAND.
Children and Young Peoples Services,Head of Education and Skills,Transport,230008,Contract Hire,13/01/2020,3688339-DCC9DEC19,520.00,ATLAS TAXIS BISHOP AUCKLAND.
Children and Young Peoples Services,Head of Education and Skills,Transport,230008,Contract Hire,13/01/2020,3688347-SMITH1DECEMBER19,"1,854.95",BEELINE PRIVATE HIRE.
Children and Young Peoples Services,Head of Education and Skills,Transport,230007,Contract Hire,13/01/2020,3688349-3413-DEC,"1,464.00",BIG MAMA`S TAXI.
Children and Young Peoples Services,Head of Education and Skills,Transport,230006,Contract Hire,13/01/2020,3688349-F738-DEC,"1,294.90",BIG MAMA`S TAXI.
Children and Young Peoples Services,Head of Education and Skills,Transport,230006,Contract Hire,13/01/2020,3688349-F756-DEC,594.00,BIG MAMA`S TAXI.
Adult and Health Services,Head of Adults,Transport,230005,Contract Hire,13/01/2020,3688353-EAS193/12,528.00,BLACKHALL TAXIS.
Children and Young Peoples Services,Head of Education and Skills,Transport,230008,Contract Hire,13/01/2020,3688353-E013/12,"1,330.00",BLACKHALL TAXIS.
Regeneration and Local Services,Environmental Services,Premises,155003,Insurance of Premises,13/01/2020,3688363-151061,"2,433.65",BURROW HUMPHREYS LTD.
Children and Young Peoples Services,Head of Education and Skills,Transport,230008,Contract Hire,13/01/2020,3688365-S00604,"1,314.60",C & R TAXIS.
Children and Young Peoples Services,Head of Education and Skills,Transport,230008,Contract Hire,13/01/2020,3688365-W03004,"1,650.00",C & R TAXIS.
Children and Young Peoples Services,Head of Education and Skills,Transport,230008,Contract Hire,13/01/2020,3688365-W11207,"1,350.00",C & R TAXIS.
Transformation and Partnerships,Partnerships & Community Engagement Div.,Supplies and Services,384086,Miscellaneous Expenses,13/01/2020,3688376-VOUCHER19NB-CHES034,"2,250.00",CHESTER LE STREET & DISTRICT WELFARE COMMITTEE.
Children and Young Peoples Services,Head of Education and Skills,Transport,230006,Contract Hire,13/01/2020,3688379-F797-4,720.00,CHRIS BELL T/A MEGAN`S TAXIS.
Adult and Health Services,Commissioning inc Supporting People,Third Party Payments,479101,Purchase of Care,13/01/2020,3688380-32056,"12,500.00",CHS HEALTHCARE.
Regeneration and Local Services,Business Durham CL0850,Supplies and Services,368008,Incentives to Industrialists,13/01/2020,3688390-RED-01-2020-054,"3,009.02",COUNTY DURHAM ENGINEERING & MANUFACTURING NETWORK LTD (CDEMN).
Regeneration and Local Services,Business Durham CL0850,Supplies and Services,368008,Incentives to Industrialists,13/01/2020,3688390-RED-01-2020-055,801.49,COUNTY DURHAM ENGINEERING & MANUFACTURING NETWORK LTD (CDEMN).
Children and Young Peoples Services,Head of Education and Skills,Transport,230006,Contract Hire,13/01/2020,3688393-109842,755.55,CROFT BUSINESS SERVICES (UK) LTD T/A CROFT TAXIS.
Children and Young Peoples Services,Head of Education and Skills,Transport,230008,Contract Hire,13/01/2020,3688397-DI201912,"1,155.00",D&I TAXIS.
Children and Young Peoples Services,Head of Education and Skills,Transport,230006,Contract Hire,13/01/2020,3688398-381,900.00,DA TRAVEL.
Children and Young Peoples Services,Head of Education and Skills,Transport,230006,Contract Hire,13/01/2020,3688398-382,760.00,DA TRAVEL.
Children and Young Peoples Services,Head of Education and Skills,Transport,230007,Contract Hire,13/01/2020,3688398-385,600.00,DA TRAVEL.
Resources BK0010,Legal & Democratic Services,Supplies and Services,338042,Services,13/01/2020,3688406-347024/INVTD733,"1,400.00",DERE STREET BARRISTERS.
Regeneration and Local Services,Environmental Services,Supplies and Services,384199,Miscellaneous Expenses,13/01/2020,3688407-INV-0176,"8,000.00",DIGVENTURES LTD.
Regeneration and Local Services,Environmental Services,Third Party Payments,430101,Rendered by Private Contractors,13/01/2020,3688409-IV1217171,"2,316.77",DIRECT TYRE MANAGEMENT LTD (DTM).
Regeneration and Local Services,Environmental Services,Third Party Payments,430101,Rendered by Private Contractors,13/01/2020,3688409-IV1221384,"1,025.16",DIRECT TYRE MANAGEMENT LTD (DTM).
Resources BK0010,Digital and Customer Services,Supplies and Services,342051,Computers and Communications,13/01/2020,3688420-SIN004024,"5,000.00",DURHAM STUDENTS UNION.
Children and Young Peoples Services,Head of Early Help Inclusion & Vulnerable Children.,Supplies and Services,352001,Conference Expenses,13/01/2020,3688422-EIF211,580.00,EARLY INTERVENTION LTD.
Children and Young Peoples Services,Head of Education and Skills,Transport,230008,Contract Hire,13/01/2020,3688424-2012201901,"1,638.00",EAST DURHAM TAXIS.
Children and Young Peoples Services,Head of Education and Skills,Transport,230008,Contract Hire,13/01/2020,3688424-2012201902,"2,469.35",EAST DURHAM TAXIS.
Children and Young Peoples Services,Head of Education and Skills,Transport,230012,Contract Hire,13/01/2020,3688424-2012201903,592.25,EAST DURHAM TAXIS.
Children and Young Peoples Services,Head of Education and Skills,Transport,230012,Contract Hire,13/01/2020,3688424-2012201903/2,"1,120.00",EAST DURHAM TAXIS.
Children and Young Peoples Services,Head of Education and Skills,Transport,230008,Contract Hire,13/01/2020,3688424-2012201905,"2,040.00",EAST DURHAM TAXIS.
Children and Young Peoples Services,Head of Education and Skills,Transport,230008,Contract Hire,13/01/2020,3688424-2012201906,"2,760.00",EAST DURHAM TAXIS.
Children and Young Peoples Services,Head of Education and Skills,Transport,230006,Contract Hire,13/01/2020,3688424-2012201907,"2,010.00",EAST DURHAM TAXIS.
Regeneration and Local Services,Technical Services CM0300,Supplies and Services,304999,Equipment and Materials,13/01/2020,3688427-W045347,"2,864.44",ECON ENGINEERING LTD.
Regeneration and Local Services,Technical Services CM0300,Supplies and Services,304999,Equipment and Materials,13/01/2020,3688427-W045348,"2,864.44",ECON ENGINEERING LTD.
Regeneration and Local Services,Technical Services CM0300,Supplies and Services,304999,Equipment and Materials,13/01/2020,3688427-W045349,"2,864.44",ECON ENGINEERING LTD.
Regeneration and Local Services,Technical Services CM0300,Supplies and Services,304999,Equipment and Materials,13/01/2020,3688427-W045350,"2,864.44",ECON ENGINEERING LTD.
Regeneration and Local Services,Technical Services CM0300,Supplies and Services,304999,Equipment and Materials,13/01/2020,3688427-W045351,"2,864.44",ECON ENGINEERING LTD.
Regeneration and Local Services,Technical Services CM0300,Supplies and Services,304999,Equipment and Materials,13/01/2020,3688427-W045352,"2,864.44",ECON ENGINEERING LTD.
Regeneration and Local Services,Technical Services CM0300,Supplies and Services,304999,Equipment and Materials,13/01/2020,3688427-W045353,"8,635.50",ECON ENGINEERING LTD.
Regeneration and Local Services,Technical Services CM0300,Supplies and Services,304999,Equipment and Materials,13/01/2020,3688427-W045354,"9,762.00",ECON ENGINEERING LTD.
Regeneration and Local Services,Corporate Property and Land,Supplies and Services,304221,Equipment and Materials,13/01/2020,3688429-059-255297,"8,909.36",EDMUNDSON ELECTRICAL LTD.
Children and Young Peoples Services,Head of Education and Skills,Transport,230008,Contract Hire,13/01/2020,3688437-N090/12,"1,650.00",FAIR FARE TRAVEL (TAXIS).
Regeneration and Local Services,Corporate Property and Land,Supplies and Services,338027,Services,13/01/2020,3688438-132417/01A,"1,245.00",FAIRHURST (CONSULTING ENGINEERS).
Resources - C A C,Welfare Assistance Fund,Third Party Payments,440999,Other third party payments E440,13/01/2020,3688440-18/12/2019,"75,000.00",FAMILY FUND TRADING LTD T/A FAMILY FUND BUSINESS SERVICES.
Transformation and Partnerships,Partnerships & Community Engagement Div.,Cap Exp on Grants & Other Financial Assistance (REFCUS),918004,Contributions to other bodies 918004,13/01/2020,3688443-VOUCHER19NB-4TOG020,"1,601.89",FERRYHILL LADDER CENTRE LTD.
Dedicated Schools Grant BG0015,DSG High Needs Block,Transport,230010,Contract Hire,13/01/2020,3688445-04FCTDDEC2019,"1,123.35",FIRST CHOICE TAXIS DURHAM.
Transformation and Partnerships,Partnerships & Community Engagement Div.,Cap Exp on Grants & Other Financial Assistance (REFCUS),918004,Contributions to other bodies 918004,13/01/2020,3688447-VOUCHER19AB-EDRC002CSG4,"4,893.00",FISHBURN YOUTH & COMMUNITY CENTRE.
Children and Young Peoples Services,Head of Education and Skills,Transport,230008,Contract Hire,13/01/2020,3688449-1484,"1,286.10",FMR SILVA PITA.
Children and Young Peoples Services,Head of Education and Skills,Transport,230007,Contract Hire,13/01/2020,3688449-1485,967.20,FMR SILVA PITA.
Children and Young Peoples Services,Head of Education and Skills,Transport,230009,Contract Hire,13/01/2020,3688449-1486,570.00,FMR SILVA PITA.
Children and Young Peoples Services,Head of Education and Skills,Transport,230009,Contract Hire,13/01/2020,3688455-13/12,980.00,G ANGHEL T/A A TAXI.
Children and Young Peoples Services,Head of Education and Skills,Transport,235005,Public Transport,13/01/2020,3688457-5398,"21,950.00",GEM TRAVEL.
Regeneration and Local Services,Corporate Property and Land,Third Party Payments,430100,Rendered by Private Contractors,13/01/2020,3688459-AP22674,"2,315.75",GEOFFREY ROBINSON LTD.
Regeneration and Local Services,Technical Services CM0300,Supplies and Services,304221,Equipment and Materials,13/01/2020,3688460-SI789631,"2,279.56",GLASDON UK LTD.
Children and Young Peoples Services,Head of Education and Skills,Transport,235005,Public Transport,13/01/2020,3688461-71708,"4,320.00",GO GATESHEAD LTD.
Children and Young Peoples Services,Head of Education and Skills,Transport,230007,Contract Hire,13/01/2020,3688466-16587,995.00,HODGSONS COACH OPERATORS LTD.
Children and Young Peoples Services,Head of Education and Skills,Transport,230007,Contract Hire,13/01/2020,3688466-16776,945.25,HODGSONS COACH OPERATORS LTD.
Children and Young Peoples Services,Head of Education and Skills,Transport,230007,Contract Hire,13/01/2020,3688466-17128,"2,998.95",HODGSONS COACH OPERATORS LTD.
Children and Young Peoples Services,Head of Education and Skills,Transport,230007,Contract Hire,13/01/2020,3688466-17129,"1,822.50",HODGSONS COACH OPERATORS LTD.
Children and Young Peoples Services,Head of Education and Skills,Transport,230007,Contract Hire,13/01/2020,3688466-17130,"2,748.45",HODGSONS COACH OPERATORS LTD.
Children and Young Peoples Services,Head of Education and Skills,Transport,230007,Contract Hire,13/01/2020,3688466-17136,"1,405.95",HODGSONS COACH OPERATORS LTD.
Children and Young Peoples Services,Head of Education and Skills,Transport,230007,Contract Hire,13/01/2020,3688466-17137,"1,770.00",HODGSONS COACH OPERATORS LTD.
Children and Young Peoples Services,Head of Education and Skills,Transport,230007,Contract Hire,13/01/2020,3688466-17138,"1,129.80",HODGSONS COACH OPERATORS LTD.
Children and Young Peoples Services,Head of Education and Skills,Transport,230007,Contract Hire,13/01/2020,3688466-17139,"1,316.40",HODGSONS COACH OPERATORS LTD.
Children and Young Peoples Services,Head of Education and Skills,Transport,230007,Contract Hire,13/01/2020,3688466-17140,733.80,HODGSONS COACH OPERATORS LTD.
Children and Young Peoples Services,Head of Education and Skills,Transport,230007,Contract Hire,13/01/2020,3688466-17141,"1,045.95",HODGSONS COACH OPERATORS LTD.
Children and Young Peoples Services,Head of Education and Skills,Transport,230007,Contract Hire,13/01/2020,3688466-17142,"1,316.85",HODGSONS COACH OPERATORS LTD.
Children and Young Peoples Services,Head of Education and Skills,Transport,230007,Contract Hire,13/01/2020,3688466-17143,561.75,HODGSONS COACH OPERATORS LTD.
Children and Young Peoples Services,Head of Education and Skills,Transport,230007,Contract Hire,13/01/2020,3688466-17144,558.45,HODGSONS COACH OPERATORS LTD.
Children and Young Peoples Services,Head of Education and Skills,Transport,230007,Contract Hire,13/01/2020,3688466-17145,824.70,HODGSONS COACH OPERATORS LTD.
Children and Young Peoples Services,Head of Education and Skills,Transport,230007,Contract Hire,13/01/2020,3688466-17146,525.00,HODGSONS COACH OPERATORS LTD.
Regeneration and Local Services,Corporate Property and Land,Premises,106080,Centrally Controlled Rep and Maint,13/01/2020,3688468-7080801084,"2,020.94",HONEYWELL NOVAR SYSTEMS LTD.
Dedicated Schools Grant BG0015,DSG High Needs Block,Transport,230010,Contract Hire,13/01/2020,3688470-004/12,"1,416.65",IAN SOULSBY.
Children and Young Peoples Services,Head of Education and Skills,Transport,230016,Contract Hire,13/01/2020,3688476-0736,"1,485.00",JACKSON`S TAXI.
Children and Young Peoples Services,Head of Education and Skills,Transport,230008,Contract Hire,13/01/2020,3688476-0738,"1,834.50",JACKSON`S TAXI.
Regeneration and Local Services,Culture Sport and Tourism,Supplies and Services,304252,Equipment and Materials,13/01/2020,3688477-43247,"1,195.00",JBL SERVICES LTD.
Regeneration and Local Services,Corporate Property and Land,Premises,150015,Apportioned Exps of Operational Blds,13/01/2020,3688481-2339973,705.00,JOHN NIXON LTD.
Regeneration and Local Services,Corporate Property and Land,Premises,150015,Apportioned Exps of Operational Blds,13/01/2020,3688481-2351770,940.00,JOHN NIXON LTD.
Regeneration and Local Services,Corporate Property and Land,Premises,150015,Apportioned Exps of Operational Blds,13/01/2020,3688481-2351771,940.00,JOHN NIXON LTD.
Regeneration and Local Services,Corporate Property and Land,Premises,150015,Apportioned Exps of Operational Blds,13/01/2020,3688481-2351772,840.00,JOHN NIXON LTD.
Children and Young Peoples Services,Head of Education and Skills,Transport,230008,Contract Hire,13/01/2020,3688482-178-31/12/19,"1,806.00",JOHN ROBSON T/A ACE TAXIS.
Children and Young Peoples Services,Head of Education and Skills,Transport,230006,Contract Hire,13/01/2020,3688483-CORPTRAVDEC19,750.00,JOHN W CROOK T/A CORPORATE TRAVEL.
Children and Young Peoples Services,Head of Education and Skills,Transport,230008,Contract Hire,13/01/2020,3688484-0013,"1,978.20",JORA SINGH TAXIS.
Regeneration and Local Services,Technical Services CM0300,Supplies and Services,304221,Equipment and Materials,13/01/2020,3688487-GOI1959/D,"8,223.39",JT DOVE LTD.
Regeneration and Local Services,Technical Services CM0300,Supplies and Services,304221,Equipment and Materials,13/01/2020,3688487-GOI2037/D,574.10,JT DOVE LTD.
Children and Young Peoples Services,Head of Education and Skills,Transport,230008,Contract Hire,13/01/2020,3688488-1040,"1,963.95",K & R TAXIS (STANLEY).
Dedicated Schools Grant BG0015,DSG High Needs Block,Transport,230010,Contract Hire,13/01/2020,3688488-1039,"3,360.00",K & R TAXIS (STANLEY).
Children and Young Peoples Services,Head of Education and Skills,Transport,230008,Contract Hire,13/01/2020,3688504-4178,"1,839.60",LINCAB TAXIS.
Children and Young Peoples Services,Head of Education and Skills,Transport,230008,Contract Hire,13/01/2020,3688504-4199,"2,007.00",LINCAB TAXIS.
Children and Young Peoples Services,Head of Education and Skills,Transport,230008,Contract Hire,13/01/2020,3688506-4707,"1,020.50",LOCAL TRANSPORT LTD.
Children and Young Peoples Services,Head of Education and Skills,Transport,230008,Contract Hire,13/01/2020,3688506-4708,"1,495.00",LOCAL TRANSPORT LTD.
Children and Young Peoples Services,Head of Education and Skills,Transport,230008,Contract Hire,13/01/2020,3688506-4709,"1,235.00",LOCAL TRANSPORT LTD.
Dedicated Schools Grant BG0015,DSG High Needs Block,Transport,230010,Contract Hire,13/01/2020,3688509-204,"1,309.00",LUMLEY TAXIS.
Children and Young Peoples Services,Head of Education and Skills,Transport,230008,Contract Hire,13/01/2020,3688513-165,930.00,M BUTCHER T/A M & M`S TAXIS.
Children and Young Peoples Services,Head of Education and Skills,Transport,230035,Contract Hire,13/01/2020,3688513-166,772.50,M BUTCHER T/A M & M`S TAXIS.
Children and Young Peoples Services,Head of Education and Skills,Transport,230007,Contract Hire,13/01/2020,3688514-12/1912,"1,170.00",MARK & JOHN CHISHOLM T/A (CHEVRON).
Children and Young Peoples Services,Head of Education and Skills,Transport,230007,Contract Hire,13/01/2020,3688514-12/1923,"1,110.00",MARK & JOHN CHISHOLM T/A (CHEVRON).
Dedicated Schools Grant BG0015,DSG High Needs Block,Transport,230010,Contract Hire,13/01/2020,3688514-12/1901,"1,470.00",MARK & JOHN CHISHOLM T/A (CHEVRON).
Adult and Health Services,Head of Adults,Transport,230005,Contract Hire,13/01/2020,3688515-0028,"1,575.00",MARK WATSON T/A MARK`S TAXIS.
Children and Young Peoples Services,Head of Education and Skills,Transport,230012,Contract Hire,13/01/2020,3688515-0026,"1,395.00",MARK WATSON T/A MARK`S TAXIS.
Children and Young Peoples Services,Head of Education and Skills,Transport,230008,Contract Hire,13/01/2020,3688515-0027,"1,050.00",MARK WATSON T/A MARK`S TAXIS.
Children and Young Peoples Services,Head of Early Help Inclusion & Vulnerable Children.,Premises,108099,Service Repairs and Maintenance,13/01/2020,3688520-NE193463,900.29,MCNAUGHTON BLAIR LTD T/A LLOYD WORRALL (NEWCASTLE UPON TYNE) LTD.
Children and Young Peoples Services,Head of Education and Skills,Transport,230008,Contract Hire,13/01/2020,3688521-13A-31/12/19,"1,020.00",MICHAEL A BODDY T/A MBS TAXIS.
Regeneration and Local Services,Technical Services CM0300,Premises,150015,Apportioned Exps of Operational Blds,13/01/2020,3688527-7001498292,770.13,MOBILE MINI UK LTD.
Regeneration and Local Services,Technical Services CM0300,Premises,150015,Apportioned Exps of Operational Blds,13/01/2020,3688527-7001498295,859.16,MOBILE MINI UK LTD.
Children and Young Peoples Services,Head of Education and Skills,Transport,230008,Contract Hire,13/01/2020,3688530-0004/12,"1,749.00",MR A MILLWARD T/A SWISS CABS PRIVATE HIRE.
Adult and Health Services,Head of Adults,Transport,230005,Contract Hire,13/01/2020,3688531-EDB112-19,702.62,MR CT WALKER T/A CW TAXIS.
Children and Young Peoples Services,Head of Education and Skills,Transport,230012,Contract Hire,13/01/2020,3688531-CHPK12-19,"1,330.50",MR CT WALKER T/A CW TAXIS.
Dedicated Schools Grant BG0015,DSG High Needs Block,Transport,230010,Contract Hire,13/01/2020,3688532-O8/12/19,"1,200.00",MR J AGAR T/A PARK TAXIS.
Children and Young Peoples Services,Head of Education and Skills,Transport,230008,Contract Hire,13/01/2020,3688533-068,"1,326.15",MR NEIL LEONARD T/A LENNY`S TAXIS.
Children and Young Peoples Services,Head of Education and Skills,Transport,230008,Contract Hire,13/01/2020,3688533-070,"1,360.00",MR NEIL LEONARD T/A LENNY`S TAXIS.
Children and Young Peoples Services,Head of Education and Skills,Transport,230009,Contract Hire,13/01/2020,3688533-071,900.00,MR NEIL LEONARD T/A LENNY`S TAXIS.
Children and Young Peoples Services,Head of Education and Skills,Transport,230006,Contract Hire,13/01/2020,3688533-072,"1,500.00",MR NEIL LEONARD T/A LENNY`S TAXIS.
Children and Young Peoples Services,Head of Education and Skills,Transport,230009,Contract Hire,13/01/2020,3688534-122019/RS,520.60,MR RICHARD STANDLEY T/A RS TAXI SERVICES.
Dedicated Schools Grant BG0015,DSG High Needs Block,Transport,230010,Contract Hire,13/01/2020,3688535-18,"2,152.00",MR TERENCE DOUGHERTY T/A TERRYS TAXIS.
Regeneration and Local Services,Development and Housing,Supplies and Services,336005,Advertising E336,13/01/2020,3688547-31813776,511.78,NEWSQUEST (YORKSHIRE & NORTH EAST) LTD.
Regeneration and Local Services,Development and Housing,Supplies and Services,336005,Advertising E336,13/01/2020,3688547-31879991,511.78,NEWSQUEST (YORKSHIRE & NORTH EAST) LTD.
Adult and Health Services,Public Health CC0450,Supplies and Services,384155,Miscellaneous Expenses,13/01/2020,3688548-1000062838,"83,485.70",NHS BUSINESS SERVICES AUTHORITY (NHSBSA).
Regeneration and Local Services,Technical Services CM0300,Third Party Payments,430100,Rendered by Private Contractors,13/01/2020,3688557-914597582A,556.00,NORTHUMBRIAN WATER LTD.
Regeneration and Local Services,Environmental Services,Transport,215005,Running Costs of Vehicles,13/01/2020,3688561-504685,"9,114.47",OIL NRG LTD.
Regeneration and Local Services,Environmental Services,Transport,215005,Running Costs of Vehicles,13/01/2020,3688561-519923,"18,738.00",OIL NRG LTD.
Children and Young Peoples Services,Head of Education and Skills,Transport,230008,Contract Hire,13/01/2020,3688572-DCC278,"2,782.74",PAUL`S TAXIS..
Regeneration and Local Services,Environmental Services,Supplies and Services,338066,Services,13/01/2020,3688575-1847,"46,375.00",PETER DODD FENCING & AGRICULTURAL SERVICES.
Children and Young Peoples Services,Head of Education and Skills,Transport,230034,Contract Hire,13/01/2020,3688576-644,700.00,PETERLEE EXECUTIVE CARS.
Regeneration and Local Services,Technical Services CM0300,Third Party Payments,430100,Rendered by Private Contractors,13/01/2020,3688590-12321,819.18,QUANTUM POWER CONNECTIONS LTD.
Children and Young Peoples Services,Head of Education and Skills,Transport,230016,Contract Hire,13/01/2020,3688595-5-DEC,"1,500.00",ROUTE 1.
Transformation and Partnerships,Business Support,Supplies and Services,340001,Postages E340,13/01/2020,3688597-9060068385,"10,300.32",ROYAL MAIL GROUP PLC.
Children and Young Peoples Services,Head of Education and Skills,Transport,230010,Contract Hire,13/01/2020,3688611-12,"1,040.00",SEBASTIAN`S TAXI.
Transformation and Partnerships,Partnerships & Community Engagement Div.,Cap Exp on Grants & Other Financial Assistance (REFCUS),918004,Contributions to other bodies 918004,13/01/2020,3688612-VOUCHER19NB-4TOG018,"1,679.40",SECONDS OUT BOXING ACADEMY..
Resources BK0010,Finance & Transactional Services,Supplies and Services,304516,Equipment and Materials,13/01/2020,3688615-26998,817.50,SHAPE POSTURE SEATING.
Adult and Health Services,Head of Adults,Transport,240045,Car allowances E240,13/01/2020,3688616-212971,"16,300.00",SHAW TRUST.
Regeneration and Local Services,Environmental Services,Transport,230005,Contract Hire,13/01/2020,3688617-11191582,"1,050.00",SHB HIRE LTD.
Children and Young Peoples Services,Head of Education and Skills,Transport,230008,Contract Hire,13/01/2020,3688618-75375,"1,875.00",SHOTTON PRIVATE HIRE.
Children and Young Peoples Services,Head of Education and Skills,Transport,230008,Contract Hire,13/01/2020,3688618-75376,"2,127.30",SHOTTON PRIVATE HIRE.
Children and Young Peoples Services,Head of Education and Skills,Transport,230008,Contract Hire,13/01/2020,3688620-834A,"1,200.00",SJ MACKENZIE T/A SCOTTS TAXIS.
Children and Young Peoples Services,Head of Education and Skills,Transport,230008,Contract Hire,13/01/2020,3688620-836A,999.45,SJ MACKENZIE T/A SCOTTS TAXIS.
Children and Young Peoples Services,Head of Education and Skills,Transport,230008,Contract Hire,13/01/2020,3688620-837A,"1,430.70",SJ MACKENZIE T/A SCOTTS TAXIS.
Children and Young Peoples Services,Head of Education and Skills,Transport,230008,Contract Hire,13/01/2020,3688620-838A,"1,125.00",SJ MACKENZIE T/A SCOTTS TAXIS.
Children and Young Peoples Services,Head of Education and Skills,Transport,230006,Contract Hire,13/01/2020,3688620-839A,"1,193.55",SJ MACKENZIE T/A SCOTTS TAXIS.
Children and Young Peoples Services,Head of Education and Skills,Transport,230008,Contract Hire,13/01/2020,3688620-840A,"1,989.72",SJ MACKENZIE T/A SCOTTS TAXIS.
Children and Young Peoples Services,Head of Education and Skills,Transport,230008,Contract Hire,13/01/2020,3688620-841A,"1,904.76",SJ MACKENZIE T/A SCOTTS TAXIS.
Children and Young Peoples Services,Head of Education and Skills,Transport,230008,Contract Hire,13/01/2020,3688620-842A,"1,350.00",SJ MACKENZIE T/A SCOTTS TAXIS.
Children and Young Peoples Services,Head of Education and Skills,Transport,230008,Contract Hire,13/01/2020,3688624-00027/2,"1,235.00",SPENNYMOOR TAXIS.
Transformation and Partnerships,Partnerships & Community Engagement Div.,Supplies and Services,384086,Miscellaneous Expenses,13/01/2020,3688625-VOUCHER19NB-SPEN003,"1,500.00",SPENNYMOOR TOWN COUNCIL.
Regeneration and Local Services,Corporate Property and Land,Supplies and Services,304221,Equipment and Materials,13/01/2020,3688627-7026,"16,165.00",ST ASTIER LTD.
Children and Young Peoples Services,Head of Education and Skills,Transport,230007,Contract Hire,13/01/2020,3688631-6470,"1,492.50",STEPHEN MAUDE LTD T/A MAUDES COACHES.
Adult and Health Services,Commissioning inc Supporting People,Transport,240045,Car allowances E240,13/01/2020,3688633-10119,"7,226.48",SUPPORTIVE SRC LTD.
Adult and Health Services,Commissioning inc Supporting People,Transport,240045,Car allowances E240,13/01/2020,3688633-10303,"7,698.79",SUPPORTIVE SRC LTD.
Adult and Health Services,Commissioning inc Supporting People,Transport,240045,Car allowances E240,13/01/2020,3688633-10363,"4,185.33",SUPPORTIVE SRC LTD.
Regeneration and Local Services,Technical Services CM0300,Supplies and Services,304221,Equipment and Materials,13/01/2020,3688637-9041180846,509.28,TARMAC TRADING LTD.
Regeneration and Local Services,Technical Services CM0300,Stock A926,926900,Stock in hand-Inventory system,13/01/2020,3688637-9041272113,706.13,TARMAC TRADING LTD.
Regeneration and Local Services,Technical Services CM0300,Supplies and Services,304221,Equipment and Materials,13/01/2020,3688637-9041278334,657.48,TARMAC TRADING LTD.
Regeneration and Local Services,Technical Services CM0300,Supplies and Services,304221,Equipment and Materials,13/01/2020,3688637-9041293133,597.88,TARMAC TRADING LTD.
Adult and Health Services,Commissioning inc Supporting People,Third Party Payments,479102,Purchase of Care,13/01/2020,3688643-40885,"4,655.00",THE APPROPRIATE ADULT SERVICE LTD.
Children and Young Peoples Services,Head of Early Help Inclusion & Vulnerable Children.,Supplies and Services,308011,Furniture,13/01/2020,3688656-18287,"1,799.00",TOUGH FURNITURE LTD.
Dedicated Schools Grant BG0015,DSG High Needs Block,Transport,230010,Contract Hire,13/01/2020,3688658-WL20004,"1,074.00",TRAVEL 6.
Dedicated Schools Grant BG0015,DSG High Needs Block,Transport,230010,Contract Hire,13/01/2020,3688658-WL40003,984.00,TRAVEL 6.
Children and Young Peoples Services,Head of Education and Skills,Transport,230008,Contract Hire,13/01/2020,3688659-04-DEC,"1,430.00",TRIDENT TAXIS.
Children and Young Peoples Services,Head of Education and Skills,Transport,230008,Contract Hire,13/01/2020,3688659-04-DEC2,"1,784.40",TRIDENT TAXIS.
Children and Young Peoples Services,Head of Childrens Social Care,Third Party Payments,440046,Other third party payments E440,13/01/2020,3688669-INV-0050,624.64,WE CARE RECRUITMENT SOLUTIONS LTD.
Children and Young Peoples Services,Head of Education and Skills,Transport,230008,Contract Hire,13/01/2020,3688672-1539023,"1,200.00",WENDYS` TAXIS.
Transformation and Partnerships,Partnerships & Community Engagement Div.,Cap Exp on Grants & Other Financial Assistance (REFCUS),918004,Contributions to other bodies 918004,13/01/2020,3688674-VOUCHER19NB-DCTY035,"5,250.00",WEST RAINTON & LEAMSIDE PARTNERSHIP.
Transformation and Partnerships,Partnerships & Community Engagement Div.,Supplies and Services,384086,Miscellaneous Expenses,13/01/2020,3688677-VOUCHER18NB-GAMP014,"1,260.00",WOODHAM VILLAGE COMMUNITY ASSOCIATION.
Regeneration and Local Services,Culture Sport and Tourism,Supplies and Services,304337,Equipment and Materials,13/01/2020,3688681-I-0623409,500.05,ZOGGS INTERNATIONAL LTD.
Regeneration and Local Services,Culture Sport and Tourism,Supplies and Services,304337,Equipment and Materials,13/01/2020,3688681-I-0628937,605.25,ZOGGS INTERNATIONAL LTD.
Children and Young Peoples Services,Head of Childrens Social Care,Third Party Payments,425021,Rendered by Voluntary Organisations,14/01/2020,3689420-1912/01,"13,285.71",ACORN CARE (UK) LTD T/A ACORN RESIDENTIAL SERVICES.
Children and Young Peoples Services,Head of Childrens Social Care,Third Party Payments,425021,Rendered by Voluntary Organisations,14/01/2020,3689420-2001/01,"5,142.86",ACORN CARE (UK) LTD T/A ACORN RESIDENTIAL SERVICES.
Children and Young Peoples Services,Head of Education and Skills,Transport,230007,Contract Hire,14/01/2020,3689426-224,"1,881.00",ALANS TAXIS BARNARD CASTLE.
Children and Young Peoples Services,Head of Education and Skills,Transport,230007,Contract Hire,14/01/2020,3689426-225,"1,180.00",ALANS TAXIS BARNARD CASTLE.
Children and Young Peoples Services,Head of Education and Skills,Transport,230007,Contract Hire,14/01/2020,3689426-226,"1,400.00",ALANS TAXIS BARNARD CASTLE.
Children and Young Peoples Services,Head of Education and Skills,Transport,230007,Contract Hire,14/01/2020,3689426-227,"1,000.00",ALANS TAXIS BARNARD CASTLE.
